Workbook

Sheet ASD changes
A2: Issues | B2: Location | C2: Comment
B5: ASD Initial Proposal (2026-31)
A6: 1 | B6: Reg Depreciation Calc' worksheet | C6: Added worksheet to calculate regualtory depreciation amounts that are used in worksheet 'Input | Exit Fees' table 3. Linked Input - RAB
A8: 2 | B8: Output | Exit Fee price caps!'H24:M24 | C8: Modified hardcoded values for regulatory years by linking the cells to an existing source from 'Inputs | General' worksheet and extrapolating forward using the appropriate formula .
A10: 3 | B10: Output | Exit Fee price caps!'H61:M64 | C10: Modified hardcoded values for regulatory years by linking the cells to an existing source from 'Inputs | General' worksheet and extrapolating forward using the appropriate formula .

Sheet Title Page
B8: Preliminary Standardised Metering Pricing Model
B10: Version | C10: 1
B11: Date | C11: 2021-10-25
B14: Status
B16: Notes:
B17: Current model version is in draft form, with test data for consultation purposes
B18: There are no protections currently enabled for non-input cells
B20: Version Summary
B22: Date | C22: Version | D22: Author | E22: Changes
B24: 2021-10-25 | C24: 1 | D24: AER | E24: Consultation version (contains anonymised input data)

Sheet Inputs | General
B1: ='Title Page'!B8&" v"&'Title Page'!$C$10 -> Preliminary Standardised Metering Pricing Model v1 | V1: Worksheet check: | W1: =IF(COUNTA($X$14:$X$46)=COUNTIF($X14:$X47,"OK"),"OK","Check") -> OK
B2: =MID(CELL("filename",A1),FIND("]",CELL("filename",A1))+1,255) -> Inputs | General | I2: Key: | J2: Input | K2: External Link | M2: Internal Link
B5: 1. Inputs - General
C7: Inputs | D7: Source | E7: Input Format | G7: Value
C8: NSP name | D8: NSP | G8: AusNet
C9: Decision stage | D9: NSP | G9: draft
C11: Forecast regulatory control period, first year | D11: NSP | E11: YYYY-YY | G11: 2026-27
C12: Forecast regulatory control period, last year | D12: NSP | G12: =LEFT(FPFirstYear,4)+4&"-"&RIGHT(FPFirstYear,2)+4 -> 2030-31
C14: Regulatory Period Length, Yrs | G14: =LEFT(G12,4)-LEFT(FPFirstYear,4)+1 -> 5
C16: Model Used For | G16: Exit Fees (Vic)
B21: =LEFT('Inputs | General'!B5,1)+1&". Linked Inputs - Inflation" -> 2. Linked Inputs - Inflation
G24: Base year | H24: Regulatory period
C25: Year | E25: Units | G25: =LEFT(H25,4)-1&"-"&RIGHT(H25,2)-1 -> 2025-26 | H25: =FPFirstYear -> 2026-27 | I25: =LEFT(H25,4)+1&"-"&RIGHT(H25,2)+1 -> 2027-28 | J25: =LEFT(I25,4)+1&"-"&RIGHT(I25,2)+1 -> 2028-29 | K25: 2029-30 | L25: 2030-31
C26: Inflation Assumption (CPI % increase) | E26: % | H26: ='[1]PTRM input'!G373 -> 0.025 | I26: ='[1]PTRM input'!H373 -> 0.025 | J26: ='[1]PTRM input'!I373 -> 0.025 | K26: ='[1]PTRM input'!J373 -> 0.025 | L26: ='[1]PTRM input'!K373 -> 0.025
C27: Cumulative Inflation Index (CPI end period) | E27: Index | G27: 1 | H27: =G27*(1+H26) -> 1.025 | I27: =H27*(1+I26) -> 1.050625 | J27: =I27*(1+J26) -> 1.076890625 | K27: =J27*(1+K26) -> 1.103812891 | L27: =K27*(1+L26) -> 1.131408213

Sheet Price Cap > (hidden)

Sheet Inputs | Price Cap (hidden)
B1: ='Title Page'!B8&" v"&'Title Page'!$C$10 -> Preliminary Standardised Metering Pricing Model v1 | N1: DNSP: | O1: =IF('Inputs | General'!$G$16="Exit Fees (Vic)","NOT USED",NSP) -> NOT USED | U1: Worksheet check: | V1: =IF(COUNTA($W$4:$W$71)=COUNTIF($W4:$W72,"OK"),"OK","Check") -> OK
B2: =MID(CELL("filename",A1),FIND("]",CELL("filename",A1))+1,255) -> Inputs | Price Cap | H2: Key: | I2: Input | J2: External Link | K2: Internal Link
B5: =LEFT('Inputs | General'!B21,1)+1&". Linked Input - Inflation & Discount Rates" -> 3. Linked Input - Inflation & Discount Rates | J5: =IF('Inputs | General'!$G$16="Exit Fees (Vic)","NOT USED","") -> NOT USED
B7: Linked Inputs - Discount Rates | G7: Base year | H7: Regulatory period
C8: Year | E8: Units | G8: =LEFT(H8,4)-1&"-"&RIGHT(H8,2)-1 -> 2025-26 | H8: =FPFirstYear -> 2026-27 | I8: =LEFT(H8,4)+1&"-"&RIGHT(H8,2)+1 -> 2027-28 | J8: =LEFT(I8,4)+1&"-"&RIGHT(I8,2)+1 -> 2028-29 | K8: 2029-30 | L8: 2030-31 | N8: Link from PTRM
C9: Nominal Vanilla WACC | E9: % | H9: =[1]WACC!G18 -> 0.06036053021 | I9: =[1]WACC!H18 -> 0.0612780038 | J9: =[1]WACC!I18 -> 0.06235802509 | K9: =[1]WACC!J18 -> 0.06376164477 | L9: =[1]WACC!K18 -> 0.06577762021
C10: Cumulative Discount Index | E10: Index | G10: 1 | H10: =G10*(1+H9) -> 1.06036053 | I10: =H10*(1+I9) -> 1.125337307 | J10: =I10*(1+J9) -> 1.195511119 | K10: =J10*(1+K9) -> 1.271738874 | L10: =K10*(1+L9) -> 1.355390831
B15: =LEFT(B5,1)+1&". Linked Input - Building Block Revenue Requirements" -> 4. Linked Input - Building Block Revenue Requirements | J15: =IF('Inputs | General'!$G$16="Exit Fees (Vic)","NOT USED","") -> NOT USED
B17: Linked Inputs - Unsmoothed revenue requirement
E19: Units | H19: =FPFirstYear -> 2026-27 | I19: =LEFT(H19,4)+1&"-"&RIGHT(H19,2)+1 -> 2027-28 | J19: =LEFT(I19,4)+1&"-"&RIGHT(I19,2)+1 -> 2028-29 | K19: 2029-30 | L19: 2030-31 | N19: Link from PTRM
C20: Return on Capital | E20: $m | H20: 12 | I20: 11 | J20: 10 | K20: 9 | L20: 8
C21: Return of Capital (regulatory depreciation) | E21: $m | H21: 18 | I21: 20 | J21: 21 | K21: 22 | L21: 23
C22: Operating Expenditure | E22: $m | H22: 20 | I22: 19.5 | J22: 19 | K22: 18.5 | L22: 18
C23: Revenue Adjustments | E23: $m | H23: 0 | I23: 0 | J23: 0 | K23: 0 | L23: 0
C24: Net Tax Allowance | E24: $m | H24: 0.1 | I24: 0.1 | J24: 0.1 | K24: 0.1 | L24: 0.1
C25: Annual Revenue Requirement (unsmoothed) | E25: $m | H25: =SUM(H20:H24) -> 50.1 | I25: =SUM(I20:I24) -> 50.6 | J25: =SUM(J20:J24) -> 50.1 | K25: =SUM(K20:K24) -> 49.6 | L25: =SUM(L20:L24) -> 49.1
C27: Non-Capital Component | E27: $m | H27: =H22 -> 20 | I27: =I22 -> 19.5 | J27: =J22 -> 19 | K27: =K22 -> 18.5 | L27: =L22 -> 18
C28: Capital Component | E28: $m | H28: =SUM(H20:H21,H23:H24) -> 30.1 | I28: =SUM(I20:I21,I23:I24) -> 31.1 | J28: =SUM(J20:J21,J23:J24) -> 31.1 | K28: =SUM(K20:K21,K23:K24) -> 31.1 | L28: =SUM(L20:L21,L23:L24) -> 31.1
H29: =(H27+H28=H25)/1 -> 1 | I29: =(I27+I28=I25)/1 -> 1 | J29: =(J27+J28=J25)/1 -> 1 | K29: =(K27+K28=K25)/1 -> 1 | L29: =(L27+L28=L25)/1 -> 1
B31: NPV of unsmoothed revenue requirement
E32: Units | G32: NPV
C33: Non-capital | E33: $m | G33: =SUMPRODUCT($H27:$L27,1/$H$10:$L$10) -> 79.90974499
C34: Capital | E34: $m | G34: =SUMPRODUCT($H28:$L28,1/$H$10:$L$10) -> 129.4368249
C35: Total | E35: $m | G35: =G33+G34 -> 209.3465699
B39: =LEFT(B15,1)+1&". Input - Base Year Tariffs, Base Year Volume & Volume Forecast" -> 5. Input - Base Year Tariffs, Base Year Volume & Volume Forecast
H41: =LEFT(J42,4)-1&"-"&RIGHT(J42,2)-1 -> 2025-26 | I41: =LEFT(J42,4)-1&"-"&RIGHT(J42,2)-1 -> 2025-26 | J41: Volume Forecast
A42: ▼ Table Filters | C42: Tariff # | D42: Tariff name | E42: Application | F42: Tariff Code | G42: Other designation | H42: Base year tariff ($/year) | I42: Base year volume | J42: =FPFirstYear -> 2026-27 | K42: =LEFT(J42,4)+1&"-"&RIGHT(J42,2)+1 -> 2027-28 | L42: =LEFT(K42,4)+1&"-"&RIGHT(K42,2)+1 -> 2028-29 | M42: 2029-30 | N42: 2030-31
C43: Tariff # | D43: Tariff name | E43: Application | F43: Tariff Code | G43: Other designation | H43: Base year tariff ($/year) | I43: Base year volume | J43: F-RP0 | K43: F-RP+1 | L43: F-RP+2 | M43: F-RP+3 | N43: F-RP+4
C44: 1 | D44: =D45 -> Residential Non ToU | E44: Non-capital | F44: =F45 -> R1 | G44: =G45 -> Primary | H44: 10 | I44: 1000000 | J44: =Table4[[#This Row],[Base year volume]]*0.9 -> 900000 | K44: =Table4[[#This Row],[F-RP0]]*0.9 -> 810000 | L44: =Table4[[#This Row],[F-RP+1]]*0.9 -> 729000 | M44: =Table4[[#This Row],[F-RP+2]]*0.9 -> 656100 | N44: =Table4[[#This Row],[F-RP+3]]*0.9 -> 590490
C45: 1 | D45: =D46 -> Residential Non ToU | E45: Capital | F45: =F46 -> R1 | G45: =G46 -> Primary | H45: 20 | I45: 1100000 | J45: =Table4[[#This Row],[Base year volume]] -> 1100000 | K45: =Table4[[#This Row],[F-RP0]] -> 1100000 | L45: =Table4[[#This Row],[F-RP+1]] -> 1100000 | M45: =Table4[[#This Row],[F-RP+2]] -> 1100000 | N45: =Table4[[#This Row],[F-RP+3]] -> 1100000
C46: 1 | D46: Residential Non ToU | E46: Total | F46: R1 | G46: Primary | H46: =H44+H45 -> 30
C47: 2 | D47: =D48 -> Residential ToU | E47: Non-capital | F47: =F48 -> R2 | G47: Primary | H47: 20 | I47: 300000 | J47: =Table4[[#This Row],[Base year volume]]*0.9 -> 270000 | K47: =Table4[[#This Row],[F-RP0]]*0.9 -> 243000 | L47: =Table4[[#This Row],[F-RP+1]]*0.9 -> 218700 | M47: =Table4[[#This Row],[F-RP+2]]*0.9 -> 196830 | N47: =Table4[[#This Row],[F-RP+3]]*0.9 -> 177147
C48: 2 | D48: Residential ToU | E48: Capital | F48: R2 | G48: Primary | H48: 20 | I48: 330000 | J48: =Table4[[#This Row],[Base year volume]] -> 330000 | K48: =Table4[[#This Row],[F-RP0]] -> 330000 | L48: =Table4[[#This Row],[F-RP+1]] -> 330000 | M48: =Table4[[#This Row],[F-RP+2]] -> 330000 | N48: =Table4[[#This Row],[F-RP+3]] -> 330000
C49: 2 | D49: Residential ToU | E49: Total | F49: R2 | G49: Primary | H49: =H47+H48 -> 40
C50: 3 | D50: =D51 -> Controlled load | E50: Non-capital | F50: =F51 -> B1 | G50: Secondary | H50: 1 | I50: 300000 | J50: =Table4[[#This Row],[Base year volume]]*0.9 -> 270000 | K50: =Table4[[#This Row],[F-RP0]]*0.9 -> 243000 | L50: =Table4[[#This Row],[F-RP+1]]*0.9 -> 218700 | M50: =Table4[[#This Row],[F-RP+2]]*0.9 -> 196830 | N50: =Table4[[#This Row],[F-RP+3]]*0.9 -> 177147
C51: 3 | D51: Controlled load | E51: Capital | F51: B1 | G51: Secondary | H51: 10 | I51: 330000 | J51: =Table4[[#This Row],[Base year volume]] -> 330000 | K51: =Table4[[#This Row],[F-RP0]] -> 330000 | L51: =Table4[[#This Row],[F-RP+1]] -> 330000 | M51: =Table4[[#This Row],[F-RP+2]] -> 330000 | N51: =Table4[[#This Row],[F-RP+3]] -> 330000
C52: 3 | D52: Controlled load | E52: Total | F52: B1 | G52: Secondary | H52: =H50+H51 -> 11
C53: 4 | D53: =D54 -> Small Business Non ToU | E53: Non-capital | F53: =F54 -> B2 | G53: Primary | H53: 10 | I53: 50000 | J53: =Table4[[#This Row],[Base year volume]]*0.9 -> 45000 | K53: =Table4[[#This Row],[F-RP0]]*0.9 -> 40500 | L53: =Table4[[#This Row],[F-RP+1]]*0.9 -> 36450 | M53: =Table4[[#This Row],[F-RP+2]]*0.9 -> 32805 | N53: =Table4[[#This Row],[F-RP+3]]*0.9 -> 29524.5
C54: 4 | D54: Small Business Non ToU | E54: Capital | F54: B2 | G54: Primary | H54: 30 | I54: 55000 | J54: =Table4[[#This Row],[Base year volume]] -> 55000 | K54: =Table4[[#This Row],[F-RP0]] -> 55000 | L54: =Table4[[#This Row],[F-RP+1]] -> 55000 | M54: =Table4[[#This Row],[F-RP+2]] -> 55000 | N54: =Table4[[#This Row],[F-RP+3]] -> 55000
C55: 4 | D55: Small Business Non ToU | E55: Total | F55: B2 | G55: Primary | H55: =H53+H54 -> 40
C56: 5 | D56: =D57 -> Small Business ToU | E56: Non-capital | F56: =F57 -> LV1 | G56: Primary | H56: 25 | I56: 50000 | J56: =Table4[[#This Row],[Base year volume]]*0.9 -> 45000 | K56: =Table4[[#This Row],[F-RP0]]*0.9 -> 40500 | L56: =Table4[[#This Row],[F-RP+1]]*0.9 -> 36450 | M56: =Table4[[#This Row],[F-RP+2]]*0.9 -> 32805 | N56: =Table4[[#This Row],[F-RP+3]]*0.9 -> 29524.5
C57: 5 | D57: Small Business ToU | E57: Capital | F57: LV1 | G57: Primary | H57: 20 | I57: 55000 | J57: =Table4[[#This Row],[Base year volume]] -> 55000 | K57: =Table4[[#This Row],[F-RP0]] -> 55000 | L57: =Table4[[#This Row],[F-RP+1]] -> 55000 | M57: =Table4[[#This Row],[F-RP+2]] -> 55000 | N57: =Table4[[#This Row],[F-RP+3]] -> 55000
A58: ▼ More Rows | C58: 5 | D58: Small Business ToU | E58: Total | F58: LV1 | G58: Primary | H58: =H56+H57 -> 45
C59: 6 | D59: =D60 -> LV 40-160 MWh (System) | E59: Non-capital | F59: =F60 -> 0 | G59: 0 | H59: 45 | I59: 10000 | J59: =Table4[[#This Row],[Base year volume]]*0.9 -> 9000 | K59: =Table4[[#This Row],[F-RP0]]*0.9 -> 8100 | L59: =Table4[[#This Row],[F-RP+1]]*0.9 -> 7290 | M59: =Table4[[#This Row],[F-RP+2]]*0.9 -> 6561 | N59: =Table4[[#This Row],[F-RP+3]]*0.9 -> 5904.9
C60: 6 | D60: LV 40-160 MWh (System) | E60: Capital | F60: 0 | G60: 0 | H60: 25 | I60: 10000 | J60: =Table4[[#This Row],[Base year volume]] -> 10000 | K60: =Table4[[#This Row],[F-RP0]] -> 10000 | L60: =Table4[[#This Row],[F-RP+1]] -> 10000 | M60: =Table4[[#This Row],[F-RP+2]] -> 10000 | N60: =Table4[[#This Row],[F-RP+3]] -> 10000
C61: 6 | D61: LV 40-160 MWh (System) | E61: Total | F61: 0 | G61: 0 | H61: =H59+H60 -> 70
C62: 7 | D62: =D63 -> 0 | E62: Non-capital | F62: =F63 -> 0 | G62: 0
C63: 7 | D63: 0 | E63: Capital | F63: 0 | G63: 0
C64: 7 | D64: 0 | E64: Total | F64: 0 | G64: 0 | H64: =H62+H63 -> 0
C65: 8 | D65: =D66 -> 0 | E65: Non-capital | F65: =F66 -> 0 | G65: 0
C66: 8 | D66: 0 | E66: Capital | F66: 0 | G66: 0
C67: 8 | D67: 0 | E67: Total | F67: 0 | G67: 0 | H67: =H65+H66 -> 0
C68: 9 | D68: =D69 -> 0 | E68: Non-capital | F68: =F69 -> 0 | G68: 0
C69: 9 | D69: 0 | E69: Capital | F69: 0 | G69: 0
C70: 9 | D70: 0 | E70: Total | F70: 0 | G70: 0 | H70: =H68+H69 -> 0
C71: 10 | D71: =D72 -> 0 | E71: Non-capital | F71: =F72 -> 0 | G71: 0
C72: 10 | D72: 0 | E72: Capital | F72: 0 | G72: 0
C73: 10 | D73: 0 | E73: Total | F73: 0 | G73: 0 | H73: =H71+H72 -> 0
C74: 11 | D74: =D75 -> 0 | E74: Non-capital | F74: =F75 -> 0 | G74: 0
C75: 11 | D75: 0 | E75: Capital | F75: 0 | G75: 0
C76: 11 | D76: 0 | E76: Total | F76: 0 | G76: 0 | H76: =H74+H75 -> 0
C77: 12 | D77: =D78 -> 0 | E77: Non-capital | F77: =F78 -> 0 | G77: 0
C78: 12 | D78: 0 | E78: Capital | F78: 0 | G78: 0
C79: 12 | D79: 0 | E79: Total | F79: 0 | G79: 0 | H79: =H77+H78 -> 0
C80: 13 | D80: =D81 -> 0 | E80: Non-capital | F80: =F81 -> 0 | G80: 0
C81: 13 | D81: 0 | E81: Capital | F81: 0 | G81: 0
C82: 13 | D82: 0 | E82: Total | F82: 0 | G82: 0 | H82: =H80+H81 -> 0
C83: 14 | D83: =D84 -> 0 | E83: Non-capital | F83: =F84 -> 0 | G83: 0
C84: 14 | D84: 0 | E84: Capital | F84: 0 | G84: 0
C85: 14 | D85: 0 | E85: Total | F85: 0 | G85: 0 | H85: =H83+H84 -> 0
C86: 15 | D86: =D87 -> 0 | E86: Non-capital | F86: =F87 -> 0 | G86: 0
C87: 15 | D87: 0 | E87: Capital | F87: 0 | G87: 0
C88: 15 | D88: 0 | E88: Total | F88: 0 | G88: 0 | H88: =H86+H87 -> 0
D90: Total | E90: Non-capital | I90: =SUMIFS(Table4[Base year volume],Table4[[Application]:[Application]],$E90) -> 1710000 | J90: =SUMIFS(Table4[F-RP0],Table4[[Application]:[Application]],$E90) -> 1539000 | K90: =SUMIFS(Table4[F-RP+1],Table4[[Application]:[Application]],$E90) -> 1385100 | L90: =SUMIFS(Table4[F-RP+2],Table4[[Application]:[Application]],$E90) -> 1246590 | M90: =SUMIFS(Table4[F-RP+3],Table4[[Application]:[Application]],$E90) -> 1121931 | N90: =SUMIFS(Table4[F-RP+4],Table4[[Application]:[Application]],$E90) -> 1009737.9
D91: Total | E91: Capital | I91: =SUMIFS(Table4[Base year volume],Table4[[Application]:[Application]],$E91) -> 1880000 | J91: =SUMIFS(Table4[F-RP0],Table4[[Application]:[Application]],$E91) -> 1880000 | K91: =SUMIFS(Table4[F-RP+1],Table4[[Application]:[Application]],$E91) -> 1880000 | L91: =SUMIFS(Table4[F-RP+2],Table4[[Application]:[Application]],$E91) -> 1880000 | M91: =SUMIFS(Table4[F-RP+3],Table4[[Application]:[Application]],$E91) -> 1880000 | N91: =SUMIFS(Table4[F-RP+4],Table4[[Application]:[Application]],$E91) -> 1880000
B95: =LEFT(B39,1)+1&". Set X-Factors" -> 6. Set X-Factors
A97: Price cap calculation
B99: 1: Non-capital
C101: Unsmoothed - Annual Revenue Requirement | E101: ='Calc | Price Cap'!I59/10^6 -> 18.5 | F101: ='Inputs | Price Cap'!H27 -> 20 | G101: ='Inputs | Price Cap'!I27 -> 19.5 | H101: ='Inputs | Price Cap'!J27 -> 19 | I101: ='Inputs | Price Cap'!K27 -> 18.5 | J101: ='Inputs | Price Cap'!L27 -> 18 | L101: ='Inputs | Price Cap'!G33 -> 79.90974499 | M101: NPV (unsmoothed)
F103: =F106-E101 -> 3.22663 | G103: First year difference ($m) | L103: =J101-I101 -> -0.5 | M103: Final year difference ($m)
F104: =(F106/E101)-1 -> 0.1744124324 | G104: First year difference (%) | L104: =(J101/I101)-1 -> -0.02702702703 | M104: Final year difference (%)
C106: Smoothed - Expected Revenue | E106: ='Calc | Price Cap'!I59/10^6 -> 18.5 | F106: ='Calc | Price Cap'!J59/10^6 -> 21.72663 | G106: ='Calc | Price Cap'!K59/10^6 -> 20.244249 | H106: ='Calc | Price Cap'!L59/10^6 -> 18.8649162 | I106: ='Calc | Price Cap'!M59/10^6 -> 17.5756068 | J106: ='Calc | Price Cap'!N59/10^6 -> 16.37517344 | L106: =SUMPRODUCT($F106:$J106,1/'Inputs | Price Cap'!$H$10:$L$10) -> 80.16078959 | M106: NPV (smoothed)
C108: X Factors | F108: P_0 | G108: X_02 | H108: X_03 | I108: X_04 | J108: X_05
C109: positive P0, X imply real decrease in price/ revenue constraint | F109: -0.273156522 | G109: -0.01 | H109: -0.01 | I109: -0.01 | J109: -0.01 | L109: =L101-L106 -> -0.2510446004 | M109: NPV difference (smoothed vs unsmoothed)
B115: 2: Capital
C117: Unsmoothed - Annual Revenue Requirement | E117: ='Calc | Price Cap'!I60/10^6 -> 34.9 | F117: ='Inputs | Price Cap'!H28 -> 30.1 | G117: ='Inputs | Price Cap'!I28 -> 31.1 | H117: ='Inputs | Price Cap'!J28 -> 31.1 | I117: ='Inputs | Price Cap'!K28 -> 31.1 | J117: ='Inputs | Price Cap'!L28 -> 31.1 | L117: ='Inputs | Price Cap'!G34 -> 129.4368249 | M117: NPV (unsmoothed)
F119: =F122-E117 -> -3.6141 | G119: First year difference ($m) | L119: =J117-I117 -> 0 | M119: Final year difference ($m)
F120: =(F122/E117)-1 -> -0.1035558739 | G120: First year difference (%) | L120: =(J117/I117)-1 -> 0 | M120: Final year difference (%)
C122: Smoothed - Expected Revenue | E122: ='Calc | Price Cap'!I60/10^6 -> 34.9 | F122: ='Calc | Price Cap'!J60/10^6 -> 31.2859 | G122: ='Calc | Price Cap'!K60/10^6 -> 31.11135 | H122: ='Calc | Price Cap'!L60/10^6 -> 30.9368 | I122: ='Calc | Price Cap'!M60/10^6 -> 30.76225 | J122: ='Calc | Price Cap'!N60/10^6 -> 30.5877 | L122: =SUMPRODUCT($F122:$J122,1/'Inputs | Price Cap'!$H$10:$L$10) -> 129.7852399 | M122: NPV (smoothed)
C124: X Factors | F124: P_0 | G124: X_02 | H124: X_03 | I124: X_04 | J124: X_05
C125: positive P0, X imply real decrease in price/ revenue constraint | F125: 0.1254211795 | G125: 0.03 | H125: 0.03 | I125: 0.03 | J125: 0.03 | L125: =L117-L122 -> -0.3484149985 | M125: NPV difference (smoothed vs unsmoothed)

Sheet Calc | Price Cap (hidden)
B1: ='Title Page'!B8&" v"&'Title Page'!$C$10 -> Preliminary Standardised Metering Pricing Model v1 | M1: DNSP: | N1: =IF('Inputs | General'!$G$16="Exit Fees (Vic)","NOT USED",NSP) -> NOT USED
B2: =MID(CELL("filename",A1),FIND("]",CELL("filename",A1))+1,255) -> Calc | Price Cap | H2: Key: | I2: Input | J2: External Link | K2: Internal Link
B5: Annual Charges Calculations
B7: Annual Smoothed Revenue Calculation
I8: Base Year Revenue | J8: Annual Revenue
A9: ▼ Table Filters | C9: Tariff # | D9: Tariff name | E9: Application | F9: Tariff Code | G9: Other designation | I9: =LEFT(J9,4)-1&"-"&RIGHT(J9,2)-1 -> 2025-26 | J9: =FPFirstYear -> 2026-27 | K9: =LEFT(J9,4)+1&"-"&RIGHT(J9,2)+1 -> 2027-28 | L9: =LEFT(K9,4)+1&"-"&RIGHT(K9,2)+1 -> 2028-29 | M9: 2029-30 | N9: 2030-31
C10: Tariff # | D10: Tariff name | E10: Application | F10: Tariff Code | G10: Other designation | H10: Column1 | I10: F-RP-1 | J10: F-RP0 | K10: F-RP+1 | L10: F-RP+2 | M10: F-RP+3 | N10: F-RP+4
C11: 1 | D11: ='Inputs | Price Cap'!D44 -> Residential Non ToU | E11: Non-capital | F11: ='Inputs | Price Cap'!F44 -> R1 | G11: ='Inputs | Price Cap'!G44 -> Primary | I11: ='Output | Price Caps'!$I9*'Inputs | Price Cap'!I44 -> 10000000 | J11: ='Output | Price Caps'!J9*'Inputs | Price Cap'!J44 -> 11745000 | K11: ='Output | Price Caps'!K9*'Inputs | Price Cap'!K44 -> 10943100 | L11: ='Output | Price Caps'!L9*'Inputs | Price Cap'!L44 -> 10198710 | M11: ='Output | Price Caps'!M9*'Inputs | Price Cap'!M44 -> 9500328 | N11: ='Output | Price Caps'!N9*'Inputs | Price Cap'!N44 -> 8851445.1
C12: 1 | D12: ='Inputs | Price Cap'!D45 -> Residential Non ToU | E12: Capital | F12: ='Inputs | Price Cap'!F45 -> R1 | G12: ='Inputs | Price Cap'!G45 -> Primary | I12: ='Output | Price Caps'!$I10*'Inputs | Price Cap'!I45 -> 22000000 | J12: ='Output | Price Caps'!J10*'Inputs | Price Cap'!J45 -> 19723000 | K12: ='Output | Price Caps'!K10*'Inputs | Price Cap'!K45 -> 19613000 | L12: ='Output | Price Caps'!L10*'Inputs | Price Cap'!L45 -> 19503000 | M12: ='Output | Price Caps'!M10*'Inputs | Price Cap'!M45 -> 19393000 | N12: ='Output | Price Caps'!N10*'Inputs | Price Cap'!N45 -> 19283000
C13: 1 | D13: ='Inputs | Price Cap'!D46 -> Residential Non ToU | E13: Total | F13: ='Inputs | Price Cap'!F46 -> R1 | G13: ='Inputs | Price Cap'!G46 -> Primary | I13: =I11+I12 -> 32000000 | J13: 31468000 | K13: 30556100 | L13: 29701710 | M13: 28893328 | N13: 28134445.1
C14: 2 | D14: ='Inputs | Price Cap'!D47 -> Residential ToU | E14: Non-capital | F14: ='Inputs | Price Cap'!F47 -> R2 | G14: ='Inputs | Price Cap'!G47 -> Primary | I14: ='Output | Price Caps'!$I12*'Inputs | Price Cap'!I47 -> 6000000 | J14: ='Output | Price Caps'!J12*'Inputs | Price Cap'!J47 -> 7047000 | K14: ='Output | Price Caps'!K12*'Inputs | Price Cap'!K47 -> 6565860 | L14: ='Output | Price Caps'!L12*'Inputs | Price Cap'!L47 -> 6117039 | M14: ='Output | Price Caps'!M12*'Inputs | Price Cap'!M47 -> 5700196.8 | N14: ='Output | Price Caps'!N12*'Inputs | Price Cap'!N47 -> 5310867.06
C15: 2 | D15: ='Inputs | Price Cap'!D48 -> Residential ToU | E15: Capital | F15: ='Inputs | Price Cap'!F48 -> R2 | G15: ='Inputs | Price Cap'!G48 -> Primary | I15: ='Output | Price Caps'!$I13*'Inputs | Price Cap'!I48 -> 6600000 | J15: ='Output | Price Caps'!J13*'Inputs | Price Cap'!J48 -> 5916900 | K15: ='Output | Price Caps'!K13*'Inputs | Price Cap'!K48 -> 5883900 | L15: ='Output | Price Caps'!L13*'Inputs | Price Cap'!L48 -> 5850900 | M15: ='Output | Price Caps'!M13*'Inputs | Price Cap'!M48 -> 5817900 | N15: ='Output | Price Caps'!N13*'Inputs | Price Cap'!N48 -> 5784900
C16: 2 | D16: ='Inputs | Price Cap'!D49 -> Residential ToU | E16: Total | F16: ='Inputs | Price Cap'!F49 -> R2 | G16: ='Inputs | Price Cap'!G49 -> Primary | I16: =I14+I15 -> 12600000 | J16: 12963900 | K16: 12449760 | L16: 11967939 | M16: 11518096.8 | N16: 11095767.06
C17: 3 | D17: ='Inputs | Price Cap'!D50 -> Controlled load | E17: Non-capital | F17: ='Inputs | Price Cap'!F50 -> B1 | G17: ='Inputs | Price Cap'!G50 -> Secondary | I17: ='Output | Price Caps'!$I15*'Inputs | Price Cap'!I50 -> 300000 | J17: ='Output | Price Caps'!J15*'Inputs | Price Cap'!J50 -> 351000 | K17: ='Output | Price Caps'!K15*'Inputs | Price Cap'!K50 -> 328050 | L17: ='Output | Price Caps'!L15*'Inputs | Price Cap'!L50 -> 306180 | M17: ='Output | Price Caps'!M15*'Inputs | Price Cap'!M50 -> 285403.5 | N17: ='Output | Price Caps'!N15*'Inputs | Price Cap'!N50 -> 265720.5
C18: 3 | D18: ='Inputs | Price Cap'!D51 -> Controlled load | E18: Capital | F18: ='Inputs | Price Cap'!F51 -> B1 | G18: ='Inputs | Price Cap'!G51 -> Secondary | I18: ='Output | Price Caps'!$I16*'Inputs | Price Cap'!I51 -> 3300000 | J18: ='Output | Price Caps'!J16*'Inputs | Price Cap'!J51 -> 2956800 | K18: ='Output | Price Caps'!K16*'Inputs | Price Cap'!K51 -> 2940300 | L18: ='Output | Price Caps'!L16*'Inputs | Price Cap'!L51 -> 2923800 | M18: ='Output | Price Caps'!M16*'Inputs | Price Cap'!M51 -> 2907300 | N18: ='Output | Price Caps'!N16*'Inputs | Price Cap'!N51 -> 2890800
C19: 3 | D19: ='Inputs | Price Cap'!D52 -> Controlled load | E19: Total | F19: ='Inputs | Price Cap'!F52 -> B1 | G19: ='Inputs | Price Cap'!G52 -> Secondary | I19: =I17+I18 -> 3600000 | J19: 3307800 | K19: 3268350 | L19: 3229980 | M19: 3192703.5 | N19: 3156520.5
C20: 4 | D20: ='Inputs | Price Cap'!D53 -> Small Business Non ToU | E20: Non-capital | F20: ='Inputs | Price Cap'!F53 -> B2 | G20: ='Inputs | Price Cap'!G53 -> Primary | I20: ='Output | Price Caps'!$I18*'Inputs | Price Cap'!I53 -> 500000 | J20: ='Output | Price Caps'!J18*'Inputs | Price Cap'!J53 -> 587250 | K20: ='Output | Price Caps'!K18*'Inputs | Price Cap'!K53 -> 547155 | L20: ='Output | Price Caps'!L18*'Inputs | Price Cap'!L53 -> 509935.5 | M20: ='Output | Price Caps'!M18*'Inputs | Price Cap'!M53 -> 475016.4 | N20: ='Output | Price Caps'!N18*'Inputs | Price Cap'!N53 -> 442572.255
C21: 4 | D21: ='Inputs | Price Cap'!D54 -> Small Business Non ToU | E21: Capital | F21: ='Inputs | Price Cap'!F54 -> B2 | G21: ='Inputs | Price Cap'!G54 -> Primary | I21: ='Output | Price Caps'!$I19*'Inputs | Price Cap'!I54 -> 1650000 | J21: ='Output | Price Caps'!J19*'Inputs | Price Cap'!J54 -> 1478950 | K21: ='Output | Price Caps'!K19*'Inputs | Price Cap'!K54 -> 1470700 | L21: ='Output | Price Caps'!L19*'Inputs | Price Cap'!L54 -> 1462450 | M21: ='Output | Price Caps'!M19*'Inputs | Price Cap'!M54 -> 1454200 | N21: ='Output | Price Caps'!N19*'Inputs | Price Cap'!N54 -> 1445950
C22: 4 | D22: ='Inputs | Price Cap'!D55 -> Small Business Non ToU | E22: Total | F22: ='Inputs | Price Cap'!F55 -> B2 | G22: ='Inputs | Price Cap'!G55 -> Primary | I22: =I20+I21 -> 2150000 | J22: 2066200 | K22: 2017855 | L22: 1972385.5 | M22: 1929216.4 | N22: 1888522.255
C23: 5 | D23: ='Inputs | Price Cap'!D56 -> Small Business ToU | E23: Non-capital | F23: ='Inputs | Price Cap'!F56 -> LV1 | G23: ='Inputs | Price Cap'!G56 -> Primary | I23: ='Output | Price Caps'!$I21*'Inputs | Price Cap'!I56 -> 1250000 | J23: ='Output | Price Caps'!J21*'Inputs | Price Cap'!J56 -> 1467900 | K23: ='Output | Price Caps'!K21*'Inputs | Price Cap'!K56 -> 1367685 | L23: ='Output | Price Caps'!L21*'Inputs | Price Cap'!L56 -> 1274292 | M23: ='Output | Price Caps'!M21*'Inputs | Price Cap'!M56 -> 1187212.95 | N23: ='Output | Price Caps'!N21*'Inputs | Price Cap'!N56 -> 1106283.015
C24: 5 | D24: ='Inputs | Price Cap'!D57 -> Small Business ToU | E24: Capital | F24: ='Inputs | Price Cap'!F57 -> LV1 | G24: ='Inputs | Price Cap'!G57 -> Primary | I24: ='Output | Price Caps'!$I22*'Inputs | Price Cap'!I57 -> 1100000 | J24: ='Output | Price Caps'!J22*'Inputs | Price Cap'!J57 -> 986150 | K24: ='Output | Price Caps'!K22*'Inputs | Price Cap'!K57 -> 980650 | L24: ='Output | Price Caps'!L22*'Inputs | Price Cap'!L57 -> 975150 | M24: ='Output | Price Caps'!M22*'Inputs | Price Cap'!M57 -> 969650 | N24: ='Output | Price Caps'!N22*'Inputs | Price Cap'!N57 -> 964150
A25: ▼ More Rows | C25: 5 | D25: ='Inputs | Price Cap'!D58 -> Small Business ToU | E25: Total | F25: ='Inputs | Price Cap'!F58 -> LV1 | G25: ='Inputs | Price Cap'!G58 -> Primary | I25: =I23+I24 -> 2350000 | J25: 2454050 | K25: 2348335 | L25: 2249442 | M25: 2156862.95 | N25: 2070433.015
C26: 6 | D26: ='Inputs | Price Cap'!D59 -> LV 40-160 MWh (System) | E26: Non-capital | F26: ='Inputs | Price Cap'!F59 -> 0 | G26: ='Inputs | Price Cap'!G59 -> 0 | I26: ='Output | Price Caps'!$I24*'Inputs | Price Cap'!I59 -> 450000 | J26: ='Output | Price Caps'!J24*'Inputs | Price Cap'!J59 -> 528480 | K26: ='Output | Price Caps'!K24*'Inputs | Price Cap'!K59 -> 492399 | L26: ='Output | Price Caps'!L24*'Inputs | Price Cap'!L59 -> 458759.7 | M26: ='Output | Price Caps'!M24*'Inputs | Price Cap'!M59 -> 427449.15 | N26: ='Output | Price Caps'!N24*'Inputs | Price Cap'!N59 -> 398285.505
C27: 6 | D27: ='Inputs | Price Cap'!D60 -> LV 40-160 MWh (System) | E27: Capital | F27: ='Inputs | Price Cap'!F60 -> 0 | G27: ='Inputs | Price Cap'!G60 -> 0 | I27: ='Output | Price Caps'!$I25*'Inputs | Price Cap'!I60 -> 250000 | J27: ='Output | Price Caps'!J25*'Inputs | Price Cap'!J60 -> 224100 | K27: ='Output | Price Caps'!K25*'Inputs | Price Cap'!K60 -> 222800 | L27: ='Output | Price Caps'!L25*'Inputs | Price Cap'!L60 -> 221500 | M27: ='Output | Price Caps'!M25*'Inputs | Price Cap'!M60 -> 220200 | N27: ='Output | Price Caps'!N25*'Inputs | Price Cap'!N60 -> 218900
C28: 6 | D28: ='Inputs | Price Cap'!D61 -> LV 40-160 MWh (System) | E28: Total | F28: ='Inputs | Price Cap'!F61 -> 0 | G28: ='Inputs | Price Cap'!G61 -> 0 | I28: =I26+I27 -> 700000 | J28: 752580 | K28: 715199 | L28: 680259.7 | M28: 647649.15 | N28: 617185.505
C29: 7 | D29: ='Inputs | Price Cap'!D62 -> 0 | E29: Non-capital | F29: ='Inputs | Price Cap'!F62 -> 0 | G29: ='Inputs | Price Cap'!G62 -> 0 | I29: ='Output | Price Caps'!$I27*'Inputs | Price Cap'!I62 -> 0 | J29: ='Output | Price Caps'!J27*'Inputs | Price Cap'!J62 -> 0 | K29: ='Output | Price Caps'!K27*'Inputs | Price Cap'!K62 -> 0 | L29: ='Output | Price Caps'!L27*'Inputs | Price Cap'!L62 -> 0 | M29: ='Output | Price Caps'!M27*'Inputs | Price Cap'!M62 -> 0 | N29: ='Output | Price Caps'!N27*'Inputs | Price Cap'!N62 -> 0
C30: 7 | D30: ='Inputs | Price Cap'!D63 -> 0 | E30: Capital | F30: ='Inputs | Price Cap'!F63 -> 0 | G30: ='Inputs | Price Cap'!G63 -> 0 | I30: ='Output | Price Caps'!$I28*'Inputs | Price Cap'!I63 -> 0 | J30: ='Output | Price Caps'!J28*'Inputs | Price Cap'!J63 -> 0 | K30: ='Output | Price Caps'!K28*'Inputs | Price Cap'!K63 -> 0 | L30: ='Output | Price Caps'!L28*'Inputs | Price Cap'!L63 -> 0 | M30: ='Output | Price Caps'!M28*'Inputs | Price Cap'!M63 -> 0 | N30: ='Output | Price Caps'!N28*'Inputs | Price Cap'!N63 -> 0
C31: 7 | D31: ='Inputs | Price Cap'!D64 -> 0 | E31: Total | F31: ='Inputs | Price Cap'!F64 -> 0 | G31: ='Inputs | Price Cap'!G64 -> 0 | I31: =I29+I30 -> 0 | J31: 0 | K31: 0 | L31: 0 | M31: 0 | N31: 0
C32: 8 | D32: ='Inputs | Price Cap'!D65 -> 0 | E32: Non-capital | F32: ='Inputs | Price Cap'!F65 -> 0 | G32: ='Inputs | Price Cap'!G65 -> 0 | I32: ='Output | Price Caps'!$I30*'Inputs | Price Cap'!I65 -> 0 | J32: ='Output | Price Caps'!J30*'Inputs | Price Cap'!J65 -> 0 | K32: ='Output | Price Caps'!K30*'Inputs | Price Cap'!K65 -> 0 | L32: ='Output | Price Caps'!L30*'Inputs | Price Cap'!L65 -> 0 | M32: ='Output | Price Caps'!M30*'Inputs | Price Cap'!M65 -> 0 | N32: ='Output | Price Caps'!N30*'Inputs | Price Cap'!N65 -> 0
C33: 8 | D33: ='Inputs | Price Cap'!D66 -> 0 | E33: Capital | F33: ='Inputs | Price Cap'!F66 -> 0 | G33: ='Inputs | Price Cap'!G66 -> 0 | I33: ='Output | Price Caps'!$I31*'Inputs | Price Cap'!I66 -> 0 | J33: ='Output | Price Caps'!J31*'Inputs | Price Cap'!J66 -> 0 | K33: ='Output | Price Caps'!K31*'Inputs | Price Cap'!K66 -> 0 | L33: ='Output | Price Caps'!L31*'Inputs | Price Cap'!L66 -> 0 | M33: ='Output | Price Caps'!M31*'Inputs | Price Cap'!M66 -> 0 | N33: ='Output | Price Caps'!N31*'Inputs | Price Cap'!N66 -> 0
C34: 8 | D34: ='Inputs | Price Cap'!D67 -> 0 | E34: Total | F34: ='Inputs | Price Cap'!F67 -> 0 | G34: ='Inputs | Price Cap'!G67 -> 0 | I34: =I32+I33 -> 0 | J34: 0 | K34: 0 | L34: 0 | M34: 0 | N34: 0
C35: 9 | D35: ='Inputs | Price Cap'!D68 -> 0 | E35: Non-capital | F35: ='Inputs | Price Cap'!F68 -> 0 | G35: ='Inputs | Price Cap'!G68 -> 0 | I35: ='Output | Price Caps'!$I33*'Inputs | Price Cap'!I68 -> 0 | J35: ='Output | Price Caps'!J33*'Inputs | Price Cap'!J68 -> 0 | K35: ='Output | Price Caps'!K33*'Inputs | Price Cap'!K68 -> 0 | L35: ='Output | Price Caps'!L33*'Inputs | Price Cap'!L68 -> 0 | M35: ='Output | Price Caps'!M33*'Inputs | Price Cap'!M68 -> 0 | N35: ='Output | Price Caps'!N33*'Inputs | Price Cap'!N68 -> 0
C36: 9 | D36: ='Inputs | Price Cap'!D69 -> 0 | E36: Capital | F36: ='Inputs | Price Cap'!F69 -> 0 | G36: ='Inputs | Price Cap'!G69 -> 0 | I36: ='Output | Price Caps'!$I34*'Inputs | Price Cap'!I69 -> 0 | J36: ='Output | Price Caps'!J34*'Inputs | Price Cap'!J69 -> 0 | K36: ='Output | Price Caps'!K34*'Inputs | Price Cap'!K69 -> 0 | L36: ='Output | Price Caps'!L34*'Inputs | Price Cap'!L69 -> 0 | M36: ='Output | Price Caps'!M34*'Inputs | Price Cap'!M69 -> 0 | N36: ='Output | Price Caps'!N34*'Inputs | Price Cap'!N69 -> 0
C37: 9 | D37: ='Inputs | Price Cap'!D70 -> 0 | E37: Total | F37: ='Inputs | Price Cap'!F70 -> 0 | G37: ='Inputs | Price Cap'!G70 -> 0 | I37: =I35+I36 -> 0 | J37: 0 | K37: 0 | L37: 0 | M37: 0 | N37: 0
C38: 10 | D38: ='Inputs | Price Cap'!D71 -> 0 | E38: Non-capital | F38: ='Inputs | Price Cap'!F71 -> 0 | G38: ='Inputs | Price Cap'!G71 -> 0 | I38: ='Output | Price Caps'!$I36*'Inputs | Price Cap'!I71 -> 0 | J38: ='Output | Price Caps'!J36*'Inputs | Price Cap'!J71 -> 0 | K38: ='Output | Price Caps'!K36*'Inputs | Price Cap'!K71 -> 0 | L38: ='Output | Price Caps'!L36*'Inputs | Price Cap'!L71 -> 0 | M38: ='Output | Price Caps'!M36*'Inputs | Price Cap'!M71 -> 0 | N38: ='Output | Price Caps'!N36*'Inputs | Price Cap'!N71 -> 0
C39: 10 | D39: ='Inputs | Price Cap'!D72 -> 0 | E39: Capital | F39: ='Inputs | Price Cap'!F72 -> 0 | G39: ='Inputs | Price Cap'!G72 -> 0 | I39: ='Output | Price Caps'!$I37*'Inputs | Price Cap'!I72 -> 0 | J39: ='Output | Price Caps'!J37*'Inputs | Price Cap'!J72 -> 0 | K39: ='Output | Price Caps'!K37*'Inputs | Price Cap'!K72 -> 0 | L39: ='Output | Price Caps'!L37*'Inputs | Price Cap'!L72 -> 0 | M39: ='Output | Price Caps'!M37*'Inputs | Price Cap'!M72 -> 0 | N39: ='Output | Price Caps'!N37*'Inputs | Price Cap'!N72 -> 0
C40: 10 | D40: ='Inputs | Price Cap'!D73 -> 0 | E40: Total | F40: ='Inputs | Price Cap'!F73 -> 0 | G40: ='Inputs | Price Cap'!G73 -> 0 | I40: =I38+I39 -> 0 | J40: 0 | K40: 0 | L40: 0 | M40: 0 | N40: 0
C41: 11 | D41: ='Inputs | Price Cap'!D74 -> 0 | E41: Non-capital | F41: ='Inputs | Price Cap'!F74 -> 0 | G41: ='Inputs | Price Cap'!G74 -> 0 | I41: ='Output | Price Caps'!$I39*'Inputs | Price Cap'!I74 -> 0 | J41: ='Output | Price Caps'!J39*'Inputs | Price Cap'!J74 -> 0 | K41: ='Output | Price Caps'!K39*'Inputs | Price Cap'!K74 -> 0 | L41: ='Output | Price Caps'!L39*'Inputs | Price Cap'!L74 -> 0 | M41: ='Output | Price Caps'!M39*'Inputs | Price Cap'!M74 -> 0 | N41: ='Output | Price Caps'!N39*'Inputs | Price Cap'!N74 -> 0
C42: 11 | D42: ='Inputs | Price Cap'!D75 -> 0 | E42: Capital | F42: ='Inputs | Price Cap'!F75 -> 0 | G42: ='Inputs | Price Cap'!G75 -> 0 | I42: ='Output | Price Caps'!$I40*'Inputs | Price Cap'!I75 -> 0 | J42: ='Output | Price Caps'!J40*'Inputs | Price Cap'!J75 -> 0 | K42: ='Output | Price Caps'!K40*'Inputs | Price Cap'!K75 -> 0 | L42: ='Output | Price Caps'!L40*'Inputs | Price Cap'!L75 -> 0 | M42: ='Output | Price Caps'!M40*'Inputs | Price Cap'!M75 -> 0 | N42: ='Output | Price Caps'!N40*'Inputs | Price Cap'!N75 -> 0
C43: 11 | D43: ='Inputs | Price Cap'!D76 -> 0 | E43: Total | F43: ='Inputs | Price Cap'!F76 -> 0 | G43: ='Inputs | Price Cap'!G76 -> 0 | I43: =I41+I42 -> 0 | J43: 0 | K43: 0 | L43: 0 | M43: 0 | N43: 0
C44: 12 | D44: ='Inputs | Price Cap'!D77 -> 0 | E44: Non-capital | F44: ='Inputs | Price Cap'!F77 -> 0 | G44: ='Inputs | Price Cap'!G77 -> 0 | I44: ='Output | Price Caps'!$I42*'Inputs | Price Cap'!I77 -> 0 | J44: ='Output | Price Caps'!J42*'Inputs | Price Cap'!J77 -> 0 | K44: ='Output | Price Caps'!K42*'Inputs | Price Cap'!K77 -> 0 | L44: ='Output | Price Caps'!L42*'Inputs | Price Cap'!L77 -> 0 | M44: ='Output | Price Caps'!M42*'Inputs | Price Cap'!M77 -> 0 | N44: ='Output | Price Caps'!N42*'Inputs | Price Cap'!N77 -> 0
C45: 12 | D45: ='Inputs | Price Cap'!D78 -> 0 | E45: Capital | F45: ='Inputs | Price Cap'!F78 -> 0 | G45: ='Inputs | Price Cap'!G78 -> 0 | I45: ='Output | Price Caps'!$I43*'Inputs | Price Cap'!I78 -> 0 | J45: ='Output | Price Caps'!J43*'Inputs | Price Cap'!J78 -> 0 | K45: ='Output | Price Caps'!K43*'Inputs | Price Cap'!K78 -> 0 | L45: ='Output | Price Caps'!L43*'Inputs | Price Cap'!L78 -> 0 | M45: ='Output | Price Caps'!M43*'Inputs | Price Cap'!M78 -> 0 | N45: ='Output | Price Caps'!N43*'Inputs | Price Cap'!N78 -> 0
C46: 12 | D46: ='Inputs | Price Cap'!D79 -> 0 | E46: Total | F46: ='Inputs | Price Cap'!F79 -> 0 | G46: ='Inputs | Price Cap'!G79 -> 0 | I46: =I44+I45 -> 0 | J46: 0 | K46: 0 | L46: 0 | M46: 0 | N46: 0
C47: 13 | D47: ='Inputs | Price Cap'!D80 -> 0 | E47: Non-capital | F47: ='Inputs | Price Cap'!F80 -> 0 | G47: ='Inputs | Price Cap'!G80 -> 0 | I47: ='Output | Price Caps'!$I45*'Inputs | Price Cap'!I80 -> 0 | J47: ='Output | Price Caps'!J45*'Inputs | Price Cap'!J80 -> 0 | K47: ='Output | Price Caps'!K45*'Inputs | Price Cap'!K80 -> 0 | L47: ='Output | Price Caps'!L45*'Inputs | Price Cap'!L80 -> 0 | M47: ='Output | Price Caps'!M45*'Inputs | Price Cap'!M80 -> 0 | N47: ='Output | Price Caps'!N45*'Inputs | Price Cap'!N80 -> 0
C48: 13 | D48: ='Inputs | Price Cap'!D81 -> 0 | E48: Capital | F48: ='Inputs | Price Cap'!F81 -> 0 | G48: ='Inputs | Price Cap'!G81 -> 0 | I48: ='Output | Price Caps'!$I46*'Inputs | Price Cap'!I81 -> 0 | J48: ='Output | Price Caps'!J46*'Inputs | Price Cap'!J81 -> 0 | K48: ='Output | Price Caps'!K46*'Inputs | Price Cap'!K81 -> 0 | L48: ='Output | Price Caps'!L46*'Inputs | Price Cap'!L81 -> 0 | M48: ='Output | Price Caps'!M46*'Inputs | Price Cap'!M81 -> 0 | N48: ='Output | Price Caps'!N46*'Inputs | Price Cap'!N81 -> 0
C49: 13 | D49: ='Inputs | Price Cap'!D82 -> 0 | E49: Total | F49: ='Inputs | Price Cap'!F82 -> 0 | G49: ='Inputs | Price Cap'!G82 -> 0 | I49: =I47+I48 -> 0 | J49: 0 | K49: 0 | L49: 0 | M49: 0 | N49: 0
C50: 14 | D50: ='Inputs | Price Cap'!D83 -> 0 | E50: Non-capital | F50: ='Inputs | Price Cap'!F83 -> 0 | G50: ='Inputs | Price Cap'!G83 -> 0 | I50: ='Output | Price Caps'!$I48*'Inputs | Price Cap'!I83 -> 0 | J50: ='Output | Price Caps'!J48*'Inputs | Price Cap'!J83 -> 0 | K50: ='Output | Price Caps'!K48*'Inputs | Price Cap'!K83 -> 0 | L50: ='Output | Price Caps'!L48*'Inputs | Price Cap'!L83 -> 0 | M50: ='Output | Price Caps'!M48*'Inputs | Price Cap'!M83 -> 0 | N50: ='Output | Price Caps'!N48*'Inputs | Price Cap'!N83 -> 0
C51: 14 | D51: ='Inputs | Price Cap'!D84 -> 0 | E51: Capital | F51: ='Inputs | Price Cap'!F84 -> 0 | G51: ='Inputs | Price Cap'!G84 -> 0 | I51: ='Output | Price Caps'!$I49*'Inputs | Price Cap'!I84 -> 0 | J51: ='Output | Price Caps'!J49*'Inputs | Price Cap'!J84 -> 0 | K51: ='Output | Price Caps'!K49*'Inputs | Price Cap'!K84 -> 0 | L51: ='Output | Price Caps'!L49*'Inputs | Price Cap'!L84 -> 0 | M51: ='Output | Price Caps'!M49*'Inputs | Price Cap'!M84 -> 0 | N51: ='Output | Price Caps'!N49*'Inputs | Price Cap'!N84 -> 0
C52: 14 | D52: ='Inputs | Price Cap'!D85 -> 0 | E52: Total | F52: ='Inputs | Price Cap'!F85 -> 0 | G52: ='Inputs | Price Cap'!G85 -> 0 | I52: =I50+I51 -> 0 | J52: 0 | K52: 0 | L52: 0 | M52: 0 | N52: 0
C53: 15 | D53: ='Inputs | Price Cap'!D86 -> 0 | E53: Non-capital | F53: ='Inputs | Price Cap'!F86 -> 0 | G53: ='Inputs | Price Cap'!G86 -> 0 | I53: ='Output | Price Caps'!$I51*'Inputs | Price Cap'!I86 -> 0 | J53: ='Output | Price Caps'!J51*'Inputs | Price Cap'!J86 -> 0 | K53: ='Output | Price Caps'!K51*'Inputs | Price Cap'!K86 -> 0 | L53: ='Output | Price Caps'!L51*'Inputs | Price Cap'!L86 -> 0 | M53: ='Output | Price Caps'!M51*'Inputs | Price Cap'!M86 -> 0 | N53: ='Output | Price Caps'!N51*'Inputs | Price Cap'!N86 -> 0
C54: 15 | D54: ='Inputs | Price Cap'!D87 -> 0 | E54: Capital | F54: ='Inputs | Price Cap'!F87 -> 0 | G54: ='Inputs | Price Cap'!G87 -> 0 | I54: ='Output | Price Caps'!$I52*'Inputs | Price Cap'!I87 -> 0 | J54: ='Output | Price Caps'!J52*'Inputs | Price Cap'!J87 -> 0 | K54: ='Output | Price Caps'!K52*'Inputs | Price Cap'!K87 -> 0 | L54: ='Output | Price Caps'!L52*'Inputs | Price Cap'!L87 -> 0 | M54: ='Output | Price Caps'!M52*'Inputs | Price Cap'!M87 -> 0 | N54: ='Output | Price Caps'!N52*'Inputs | Price Cap'!N87 -> 0
C55: 15 | D55: ='Inputs | Price Cap'!D88 -> 0 | E55: Total | F55: ='Inputs | Price Cap'!F88 -> 0 | G55: ='Inputs | Price Cap'!G88 -> 0 | I55: =I53+I54 -> 0 | J55: 0 | K55: 0 | L55: 0 | M55: 0 | N55: 0
B57: Total Smoothed Revenue
E58: Application | I58: =LEFT(J58,4)-1&"-"&RIGHT(J58,2)-1 -> 2025-26 | J58: =FPFirstYear -> 2026-27 | K58: =LEFT(J58,4)+1&"-"&RIGHT(J58,2)+1 -> 2027-28 | L58: =LEFT(K58,4)+1&"-"&RIGHT(K58,2)+1 -> 2028-29 | M58: 2029-30 | N58: 2030-31
E59: Non-capital | I59: =SUMIFS('Calc | Price Cap'!I$11:I$55,'Output | Price Caps'!$E$9:$E$53,$E59) -> 18500000 | J59: =SUMIFS('Calc | Price Cap'!J$11:J$55,'Output | Price Caps'!$E$9:$E$53,$E59) -> 21726630 | K59: =SUMIFS('Calc | Price Cap'!K$11:K$55,'Output | Price Caps'!$E$9:$E$53,$E59) -> 20244249 | L59: =SUMIFS('Calc | Price Cap'!L$11:L$55,'Output | Price Caps'!$E$9:$E$53,$E59) -> 18864916.2 | M59: =SUMIFS('Calc | Price Cap'!M$11:M$55,'Output | Price Caps'!$E$9:$E$53,$E59) -> 17575606.8 | N59: =SUMIFS('Calc | Price Cap'!N$11:N$55,'Output | Price Caps'!$E$9:$E$53,$E59) -> 16375173.44
E60: Capital | I60: =SUMIFS('Calc | Price Cap'!I$11:I$55,'Output | Price Caps'!$E$9:$E$53,$E60) -> 34900000 | J60: =SUMIFS('Calc | Price Cap'!J$11:J$55,'Output | Price Caps'!$E$9:$E$53,$E60) -> 31285900 | K60: =SUMIFS('Calc | Price Cap'!K$11:K$55,'Output | Price Caps'!$E$9:$E$53,$E60) -> 31111350 | L60: =SUMIFS('Calc | Price Cap'!L$11:L$55,'Output | Price Caps'!$E$9:$E$53,$E60) -> 30936800 | M60: =SUMIFS('Calc | Price Cap'!M$11:M$55,'Output | Price Caps'!$E$9:$E$53,$E60) -> 30762250 | N60: =SUMIFS('Calc | Price Cap'!N$11:N$55,'Output | Price Caps'!$E$9:$E$53,$E60) -> 30587700
E61: Total | I61: =SUMIFS('Calc | Price Cap'!I$11:I$55,'Output | Price Caps'!$E$9:$E$53,$E61) -> 53400000 | J61: =SUMIFS('Calc | Price Cap'!J$11:J$55,'Output | Price Caps'!$E$9:$E$53,$E61) -> 53012530 | K61: =SUMIFS('Calc | Price Cap'!K$11:K$55,'Output | Price Caps'!$E$9:$E$53,$E61) -> 51355599 | L61: =SUMIFS('Calc | Price Cap'!L$11:L$55,'Output | Price Caps'!$E$9:$E$53,$E61) -> 49801716.2 | M61: =SUMIFS('Calc | Price Cap'!M$11:M$55,'Output | Price Caps'!$E$9:$E$53,$E61) -> 48337856.8 | N61: =SUMIFS('Calc | Price Cap'!N$11:N$55,'Output | Price Caps'!$E$9:$E$53,$E61) -> 46962873.44
I63: =(ROUND(I59+I60,0)=ROUND(I61,0))/1 -> 1 | J63: 1 | K63: 1 | L63: 1 | M63: 1 | N63: 1

Sheet Output | Price Caps (hidden)
C1: ='Title Page'!B8&" v"&'Title Page'!$C$10 -> Preliminary Standardised Metering Pricing Model v1 | N1: DNSP: | O1: =IF('Inputs | General'!$G$16="Exit Fees (Vic)","NOT USED",NSP) -> NOT USED | U1: Worksheet check: | V1: =IF(COUNTA($W$5:$W$52)=COUNTIF($W5:$W53,"OK"),"OK","Check") -> OK
C2: =MID(CELL("filename",A1),FIND("]",CELL("filename",A1))+1,255) -> Output | Price Caps | H2: Key: | I2: Input | J2: External Link | K2: Internal Link
B5: RESULT - Price Cap - Annual Charges
I6: Base Year Charges | J6: Price Cap - Annual Charges (nominal)
A7: ▼ Table Filters | C7: Tariff # | D7: Tariff name | E7: Application | F7: Tariff Code | G7: Other designation | I7: =LEFT(J7,4)-1&"-"&RIGHT(J7,2)-1 -> 2025-26 | J7: =FPFirstYear -> 2026-27 | K7: =LEFT(J7,4)+1&"-"&RIGHT(J7,2)+1 -> 2027-28 | L7: =LEFT(K7,4)+1&"-"&RIGHT(K7,2)+1 -> 2028-29 | M7: 2029-30 | N7: 2030-31
C8: Tariff # | D8: Tariff name | E8: Application | F8: Tariff Code | G8: Other designation | H8: Ca | I8: F-RP-1 | J8: F-RP0 | K8: F-RP+1 | L8: F-RP+2 | M8: F-RP+3 | N8: F-RP+4 | O8: Column1
C9: 1 | D9: ='Inputs | Price Cap'!D44 -> Residential Non ToU | E9: Non-capital | F9: ='Inputs | Price Cap'!F44 -> R1 | G9: ='Inputs | Price Cap'!G44 -> Primary | I9: =ROUND('Inputs | Price Cap'!H44,2) -> 10 | J9: =ROUND('Output | Price Caps'!I9*(1-'Inputs | Price Cap'!F$109)*(1+'Inputs | General'!H$26),2) -> 13.05 | K9: =ROUND('Output | Price Caps'!J9*(1-'Inputs | Price Cap'!G$109)*(1+'Inputs | General'!I$26),2) -> 13.51 | L9: =ROUND('Output | Price Caps'!K9*(1-'Inputs | Price Cap'!H$109)*(1+'Inputs | General'!J$26),2) -> 13.99 | M9: =ROUND('Output | Price Caps'!L9*(1-'Inputs | Price Cap'!I$109)*(1+'Inputs | General'!K$26),2) -> 14.48 | N9: =ROUND('Output | Price Caps'!M9*(1-'Inputs | Price Cap'!J$109)*(1+'Inputs | General'!L$26),2) -> 14.99
C10: 1 | D10: ='Inputs | Price Cap'!D45 -> Residential Non ToU | E10: Capital | F10: ='Inputs | Price Cap'!F45 -> R1 | G10: ='Inputs | Price Cap'!G45 -> Primary | I10: =ROUND('Inputs | Price Cap'!H45,2) -> 20 | J10: =ROUND('Output | Price Caps'!I10*(1-'Inputs | Price Cap'!F$125)*(1+'Inputs | General'!H$26),2) -> 17.93 | K10: =ROUND('Output | Price Caps'!J10*(1-'Inputs | Price Cap'!G$125)*(1+'Inputs | General'!I$26),2) -> 17.83 | L10: =ROUND('Output | Price Caps'!K10*(1-'Inputs | Price Cap'!H$125)*(1+'Inputs | General'!J$26),2) -> 17.73 | M10: =ROUND('Output | Price Caps'!L10*(1-'Inputs | Price Cap'!I$125)*(1+'Inputs | General'!K$26),2) -> 17.63 | N10: =ROUND('Output | Price Caps'!M10*(1-'Inputs | Price Cap'!J$125)*(1+'Inputs | General'!L$26),2) -> 17.53
C11: 1 | D11: ='Inputs | Price Cap'!D46 -> Residential Non ToU | E11: Total | F11: ='Inputs | Price Cap'!F46 -> R1 | G11: ='Inputs | Price Cap'!G46 -> Primary | I11: =ROUND('Inputs | Price Cap'!H46,2) -> 30 | J11: =J9+J10 -> 30.98 | K11: =K9+K10 -> 31.34 | L11: =L9+L10 -> 31.72 | M11: =M9+M10 -> 32.11 | N11: =N9+N10 -> 32.52
C12: 2 | D12: ='Inputs | Price Cap'!D47 -> Residential ToU | E12: Non-capital | F12: ='Inputs | Price Cap'!F47 -> R2 | G12: ='Inputs | Price Cap'!G47 -> Primary | I12: =ROUND('Inputs | Price Cap'!H47,2) -> 20 | J12: =ROUND('Output | Price Caps'!I12*(1-'Inputs | Price Cap'!F$109)*(1+'Inputs | General'!H$26),2) -> 26.1 | K12: =ROUND('Output | Price Caps'!J12*(1-'Inputs | Price Cap'!G$109)*(1+'Inputs | General'!I$26),2) -> 27.02 | L12: =ROUND('Output | Price Caps'!K12*(1-'Inputs | Price Cap'!H$109)*(1+'Inputs | General'!J$26),2) -> 27.97 | M12: =ROUND('Output | Price Caps'!L12*(1-'Inputs | Price Cap'!I$109)*(1+'Inputs | General'!K$26),2) -> 28.96 | N12: =ROUND('Output | Price Caps'!M12*(1-'Inputs | Price Cap'!J$109)*(1+'Inputs | General'!L$26),2) -> 29.98
C13: 2 | D13: ='Inputs | Price Cap'!D48 -> Residential ToU | E13: Capital | F13: ='Inputs | Price Cap'!F48 -> R2 | G13: ='Inputs | Price Cap'!G48 -> Primary | I13: =ROUND('Inputs | Price Cap'!H48,2) -> 20 | J13: =ROUND('Output | Price Caps'!I13*(1-'Inputs | Price Cap'!F$125)*(1+'Inputs | General'!H$26),2) -> 17.93 | K13: =ROUND('Output | Price Caps'!J13*(1-'Inputs | Price Cap'!G$125)*(1+'Inputs | General'!I$26),2) -> 17.83 | L13: =ROUND('Output | Price Caps'!K13*(1-'Inputs | Price Cap'!H$125)*(1+'Inputs | General'!J$26),2) -> 17.73 | M13: =ROUND('Output | Price Caps'!L13*(1-'Inputs | Price Cap'!I$125)*(1+'Inputs | General'!K$26),2) -> 17.63 | N13: =ROUND('Output | Price Caps'!M13*(1-'Inputs | Price Cap'!J$125)*(1+'Inputs | General'!L$26),2) -> 17.53
C14: 2 | D14: ='Inputs | Price Cap'!D49 -> Residential ToU | E14: Total | F14: ='Inputs | Price Cap'!F49 -> R2 | G14: ='Inputs | Price Cap'!G49 -> Primary | I14: =ROUND('Inputs | Price Cap'!H49,2) -> 40 | J14: =J12+J13 -> 44.03 | K14: =K12+K13 -> 44.85 | L14: =L12+L13 -> 45.7 | M14: =M12+M13 -> 46.59 | N14: =N12+N13 -> 47.51
C15: 3 | D15: ='Inputs | Price Cap'!D50 -> Controlled load | E15: Non-capital | F15: ='Inputs | Price Cap'!F50 -> B1 | G15: ='Inputs | Price Cap'!G50 -> Secondary | I15: =ROUND('Inputs | Price Cap'!H50,2) -> 1 | J15: =ROUND('Output | Price Caps'!I15*(1-'Inputs | Price Cap'!F$109)*(1+'Inputs | General'!H$26),2) -> 1.3 | K15: =ROUND('Output | Price Caps'!J15*(1-'Inputs | Price Cap'!G$109)*(1+'Inputs | General'!I$26),2) -> 1.35 | L15: =ROUND('Output | Price Caps'!K15*(1-'Inputs | Price Cap'!H$109)*(1+'Inputs | General'!J$26),2) -> 1.4 | M15: =ROUND('Output | Price Caps'!L15*(1-'Inputs | Price Cap'!I$109)*(1+'Inputs | General'!K$26),2) -> 1.45 | N15: =ROUND('Output | Price Caps'!M15*(1-'Inputs | Price Cap'!J$109)*(1+'Inputs | General'!L$26),2) -> 1.5
C16: 3 | D16: ='Inputs | Price Cap'!D51 -> Controlled load | E16: Capital | F16: ='Inputs | Price Cap'!F51 -> B1 | G16: ='Inputs | Price Cap'!G51 -> Secondary | I16: =ROUND('Inputs | Price Cap'!H51,2) -> 10 | J16: =ROUND('Output | Price Caps'!I16*(1-'Inputs | Price Cap'!F$125)*(1+'Inputs | General'!H$26),2) -> 8.96 | K16: =ROUND('Output | Price Caps'!J16*(1-'Inputs | Price Cap'!G$125)*(1+'Inputs | General'!I$26),2) -> 8.91 | L16: =ROUND('Output | Price Caps'!K16*(1-'Inputs | Price Cap'!H$125)*(1+'Inputs | General'!J$26),2) -> 8.86 | M16: =ROUND('Output | Price Caps'!L16*(1-'Inputs | Price Cap'!I$125)*(1+'Inputs | General'!K$26),2) -> 8.81 | N16: =ROUND('Output | Price Caps'!M16*(1-'Inputs | Price Cap'!J$125)*(1+'Inputs | General'!L$26),2) -> 8.76
C17: 3 | D17: ='Inputs | Price Cap'!D52 -> Controlled load | E17: Total | F17: ='Inputs | Price Cap'!F52 -> B1 | G17: ='Inputs | Price Cap'!G52 -> Secondary | I17: =ROUND('Inputs | Price Cap'!H52,2) -> 11 | J17: =J15+J16 -> 10.26 | K17: =K15+K16 -> 10.26 | L17: =L15+L16 -> 10.26 | M17: =M15+M16 -> 10.26 | N17: =N15+N16 -> 10.26
C18: 4 | D18: ='Inputs | Price Cap'!D53 -> Small Business Non ToU | E18: Non-capital | F18: ='Inputs | Price Cap'!F53 -> B2 | G18: ='Inputs | Price Cap'!G53 -> Primary | I18: =ROUND('Inputs | Price Cap'!H53,2) -> 10 | J18: =ROUND('Output | Price Caps'!I18*(1-'Inputs | Price Cap'!F$109)*(1+'Inputs | General'!H$26),2) -> 13.05 | K18: =ROUND('Output | Price Caps'!J18*(1-'Inputs | Price Cap'!G$109)*(1+'Inputs | General'!I$26),2) -> 13.51 | L18: =ROUND('Output | Price Caps'!K18*(1-'Inputs | Price Cap'!H$109)*(1+'Inputs | General'!J$26),2) -> 13.99 | M18: =ROUND('Output | Price Caps'!L18*(1-'Inputs | Price Cap'!I$109)*(1+'Inputs | General'!K$26),2) -> 14.48 | N18: =ROUND('Output | Price Caps'!M18*(1-'Inputs | Price Cap'!J$109)*(1+'Inputs | General'!L$26),2) -> 14.99
C19: 4 | D19: ='Inputs | Price Cap'!D54 -> Small Business Non ToU | E19: Capital | F19: ='Inputs | Price Cap'!F54 -> B2 | G19: ='Inputs | Price Cap'!G54 -> Primary | I19: =ROUND('Inputs | Price Cap'!H54,2) -> 30 | J19: =ROUND('Output | Price Caps'!I19*(1-'Inputs | Price Cap'!F$125)*(1+'Inputs | General'!H$26),2) -> 26.89 | K19: =ROUND('Output | Price Caps'!J19*(1-'Inputs | Price Cap'!G$125)*(1+'Inputs | General'!I$26),2) -> 26.74 | L19: =ROUND('Output | Price Caps'!K19*(1-'Inputs | Price Cap'!H$125)*(1+'Inputs | General'!J$26),2) -> 26.59 | M19: =ROUND('Output | Price Caps'!L19*(1-'Inputs | Price Cap'!I$125)*(1+'Inputs | General'!K$26),2) -> 26.44 | N19: =ROUND('Output | Price Caps'!M19*(1-'Inputs | Price Cap'!J$125)*(1+'Inputs | General'!L$26),2) -> 26.29
C20: 4 | D20: ='Inputs | Price Cap'!D55 -> Small Business Non ToU | E20: Total | F20: ='Inputs | Price Cap'!F55 -> B2 | G20: ='Inputs | Price Cap'!G55 -> Primary | I20: =ROUND('Inputs | Price Cap'!H55,2) -> 40 | J20: =J18+J19 -> 39.94 | K20: =K18+K19 -> 40.25 | L20: =L18+L19 -> 40.58 | M20: =M18+M19 -> 40.92 | N20: =N18+N19 -> 41.28
C21: 5 | D21: ='Inputs | Price Cap'!D56 -> Small Business ToU | E21: Non-capital | F21: ='Inputs | Price Cap'!F56 -> LV1 | G21: ='Inputs | Price Cap'!G56 -> Primary | I21: =ROUND('Inputs | Price Cap'!H56,2) -> 25 | J21: =ROUND('Output | Price Caps'!I21*(1-'Inputs | Price Cap'!F$109)*(1+'Inputs | General'!H$26),2) -> 32.62 | K21: =ROUND('Output | Price Caps'!J21*(1-'Inputs | Price Cap'!G$109)*(1+'Inputs | General'!I$26),2) -> 33.77 | L21: =ROUND('Output | Price Caps'!K21*(1-'Inputs | Price Cap'!H$109)*(1+'Inputs | General'!J$26),2) -> 34.96 | M21: =ROUND('Output | Price Caps'!L21*(1-'Inputs | Price Cap'!I$109)*(1+'Inputs | General'!K$26),2) -> 36.19 | N21: =ROUND('Output | Price Caps'!M21*(1-'Inputs | Price Cap'!J$109)*(1+'Inputs | General'!L$26),2) -> 37.47
C22: 5 | D22: ='Inputs | Price Cap'!D57 -> Small Business ToU | E22: Capital | F22: ='Inputs | Price Cap'!F57 -> LV1 | G22: ='Inputs | Price Cap'!G57 -> Primary | I22: =ROUND('Inputs | Price Cap'!H57,2) -> 20 | J22: =ROUND('Output | Price Caps'!I22*(1-'Inputs | Price Cap'!F$125)*(1+'Inputs | General'!H$26),2) -> 17.93 | K22: =ROUND('Output | Price Caps'!J22*(1-'Inputs | Price Cap'!G$125)*(1+'Inputs | General'!I$26),2) -> 17.83 | L22: =ROUND('Output | Price Caps'!K22*(1-'Inputs | Price Cap'!H$125)*(1+'Inputs | General'!J$26),2) -> 17.73 | M22: =ROUND('Output | Price Caps'!L22*(1-'Inputs | Price Cap'!I$125)*(1+'Inputs | General'!K$26),2) -> 17.63 | N22: =ROUND('Output | Price Caps'!M22*(1-'Inputs | Price Cap'!J$125)*(1+'Inputs | General'!L$26),2) -> 17.53
C23: 5 | D23: ='Inputs | Price Cap'!D58 -> Small Business ToU | E23: Total | F23: ='Inputs | Price Cap'!F58 -> LV1 | G23: ='Inputs | Price Cap'!G58 -> Primary | I23: =ROUND('Inputs | Price Cap'!H58,2) -> 45 | J23: =J21+J22 -> 50.55 | K23: =K21+K22 -> 51.6 | L23: =L21+L22 -> 52.69 | M23: =M21+M22 -> 53.82 | N23: =N21+N22 -> 55
C24: 6 | D24: ='Inputs | Price Cap'!D59 -> LV 40-160 MWh (System) | E24: Non-capital | F24: ='Inputs | Price Cap'!F59 -> 0 | G24: ='Inputs | Price Cap'!G59 -> 0 | I24: =ROUND('Inputs | Price Cap'!H59,2) -> 45 | J24: =ROUND('Output | Price Caps'!I24*(1-'Inputs | Price Cap'!F$109)*(1+'Inputs | General'!H$26),2) -> 58.72 | K24: =ROUND('Output | Price Caps'!J24*(1-'Inputs | Price Cap'!G$109)*(1+'Inputs | General'!I$26),2) -> 60.79 | L24: =ROUND('Output | Price Caps'!K24*(1-'Inputs | Price Cap'!H$109)*(1+'Inputs | General'!J$26),2) -> 62.93 | M24: =ROUND('Output | Price Caps'!L24*(1-'Inputs | Price Cap'!I$109)*(1+'Inputs | General'!K$26),2) -> 65.15 | N24: =ROUND('Output | Price Caps'!M24*(1-'Inputs | Price Cap'!J$109)*(1+'Inputs | General'!L$26),2) -> 67.45
C25: 6 | D25: ='Inputs | Price Cap'!D60 -> LV 40-160 MWh (System) | E25: Capital | F25: ='Inputs | Price Cap'!F60 -> 0 | G25: ='Inputs | Price Cap'!G60 -> 0 | I25: =ROUND('Inputs | Price Cap'!H60,2) -> 25 | J25: =ROUND('Output | Price Caps'!I25*(1-'Inputs | Price Cap'!F$125)*(1+'Inputs | General'!H$26),2) -> 22.41 | K25: =ROUND('Output | Price Caps'!J25*(1-'Inputs | Price Cap'!G$125)*(1+'Inputs | General'!I$26),2) -> 22.28 | L25: =ROUND('Output | Price Caps'!K25*(1-'Inputs | Price Cap'!H$125)*(1+'Inputs | General'!J$26),2) -> 22.15 | M25: =ROUND('Output | Price Caps'!L25*(1-'Inputs | Price Cap'!I$125)*(1+'Inputs | General'!K$26),2) -> 22.02 | N25: =ROUND('Output | Price Caps'!M25*(1-'Inputs | Price Cap'!J$125)*(1+'Inputs | General'!L$26),2) -> 21.89
C26: 6 | D26: ='Inputs | Price Cap'!D61 -> LV 40-160 MWh (System) | E26: Total | F26: ='Inputs | Price Cap'!F61 -> 0 | G26: ='Inputs | Price Cap'!G61 -> 0 | I26: =ROUND('Inputs | Price Cap'!H61,2) -> 70 | J26: =J24+J25 -> 81.13 | K26: =K24+K25 -> 83.07 | L26: =L24+L25 -> 85.08 | M26: =M24+M25 -> 87.17 | N26: =N24+N25 -> 89.34
C27: 7 | D27: ='Inputs | Price Cap'!D62 -> 0 | E27: Non-capital | F27: ='Inputs | Price Cap'!F62 -> 0 | G27: ='Inputs | Price Cap'!G62 -> 0 | I27: =ROUND('Inputs | Price Cap'!H62,2) -> 0 | J27: =ROUND('Output | Price Caps'!I27*(1-'Inputs | Price Cap'!F$109)*(1+'Inputs | General'!H$26),2) -> 0 | K27: =ROUND('Output | Price Caps'!J27*(1-'Inputs | Price Cap'!G$109)*(1+'Inputs | General'!I$26),2) -> 0 | L27: =ROUND('Output | Price Caps'!K27*(1-'Inputs | Price Cap'!H$109)*(1+'Inputs | General'!J$26),2) -> 0 | M27: =ROUND('Output | Price Caps'!L27*(1-'Inputs | Price Cap'!I$109)*(1+'Inputs | General'!K$26),2) -> 0 | N27: =ROUND('Output | Price Caps'!M27*(1-'Inputs | Price Cap'!J$109)*(1+'Inputs | General'!L$26),2) -> 0
C28: 7 | D28: ='Inputs | Price Cap'!D63 -> 0 | E28: Capital | F28: ='Inputs | Price Cap'!F63 -> 0 | G28: ='Inputs | Price Cap'!G63 -> 0 | I28: =ROUND('Inputs | Price Cap'!H63,2) -> 0 | J28: =ROUND('Output | Price Caps'!I28*(1-'Inputs | Price Cap'!F$125)*(1+'Inputs | General'!H$26),2) -> 0 | K28: =ROUND('Output | Price Caps'!J28*(1-'Inputs | Price Cap'!G$125)*(1+'Inputs | General'!I$26),2) -> 0 | L28: =ROUND('Output | Price Caps'!K28*(1-'Inputs | Price Cap'!H$125)*(1+'Inputs | General'!J$26),2) -> 0 | M28: =ROUND('Output | Price Caps'!L28*(1-'Inputs | Price Cap'!I$125)*(1+'Inputs | General'!K$26),2) -> 0 | N28: =ROUND('Output | Price Caps'!M28*(1-'Inputs | Price Cap'!J$125)*(1+'Inputs | General'!L$26),2) -> 0
C29: 7 | D29: ='Inputs | Price Cap'!D64 -> 0 | E29: Total | F29: ='Inputs | Price Cap'!F64 -> 0 | G29: ='Inputs | Price Cap'!G64 -> 0 | I29: =ROUND('Inputs | Price Cap'!H64,2) -> 0 | J29: =J27+J28 -> 0 | K29: =K27+K28 -> 0 | L29: =L27+L28 -> 0 | M29: =M27+M28 -> 0 | N29: =N27+N28 -> 0
C30: 8 | D30: ='Inputs | Price Cap'!D65 -> 0 | E30: Non-capital | F30: ='Inputs | Price Cap'!F65 -> 0 | G30: ='Inputs | Price Cap'!G65 -> 0 | I30: =ROUND('Inputs | Price Cap'!H65,2) -> 0 | J30: =ROUND('Output | Price Caps'!I30*(1-'Inputs | Price Cap'!F$109)*(1+'Inputs | General'!H$26),2) -> 0 | K30: =ROUND('Output | Price Caps'!J30*(1-'Inputs | Price Cap'!G$109)*(1+'Inputs | General'!I$26),2) -> 0 | L30: =ROUND('Output | Price Caps'!K30*(1-'Inputs | Price Cap'!H$109)*(1+'Inputs | General'!J$26),2) -> 0 | M30: =ROUND('Output | Price Caps'!L30*(1-'Inputs | Price Cap'!I$109)*(1+'Inputs | General'!K$26),2) -> 0 | N30: =ROUND('Output | Price Caps'!M30*(1-'Inputs | Price Cap'!J$109)*(1+'Inputs | General'!L$26),2) -> 0
C31: 8 | D31: ='Inputs | Price Cap'!D66 -> 0 | E31: Capital | F31: ='Inputs | Price Cap'!F66 -> 0 | G31: ='Inputs | Price Cap'!G66 -> 0 | I31: =ROUND('Inputs | Price Cap'!H66,2) -> 0 | J31: =ROUND('Output | Price Caps'!I31*(1-'Inputs | Price Cap'!F$125)*(1+'Inputs | General'!H$26),2) -> 0 | K31: =ROUND('Output | Price Caps'!J31*(1-'Inputs | Price Cap'!G$125)*(1+'Inputs | General'!I$26),2) -> 0 | L31: =ROUND('Output | Price Caps'!K31*(1-'Inputs | Price Cap'!H$125)*(1+'Inputs | General'!J$26),2) -> 0 | M31: =ROUND('Output | Price Caps'!L31*(1-'Inputs | Price Cap'!I$125)*(1+'Inputs | General'!K$26),2) -> 0 | N31: =ROUND('Output | Price Caps'!M31*(1-'Inputs | Price Cap'!J$125)*(1+'Inputs | General'!L$26),2) -> 0
C32: 8 | D32: ='Inputs | Price Cap'!D67 -> 0 | E32: Total | F32: ='Inputs | Price Cap'!F67 -> 0 | G32: ='Inputs | Price Cap'!G67 -> 0 | I32: =ROUND('Inputs | Price Cap'!H67,2) -> 0 | J32: =J30+J31 -> 0 | K32: =K30+K31 -> 0 | L32: =L30+L31 -> 0 | M32: =M30+M31 -> 0 | N32: =N30+N31 -> 0
C33: 9 | D33: ='Inputs | Price Cap'!D68 -> 0 | E33: Non-capital | F33: ='Inputs | Price Cap'!F68 -> 0 | G33: ='Inputs | Price Cap'!G68 -> 0 | I33: =ROUND('Inputs | Price Cap'!H68,2) -> 0 | J33: =ROUND('Output | Price Caps'!I33*(1-'Inputs | Price Cap'!F$109)*(1+'Inputs | General'!H$26),2) -> 0 | K33: =ROUND('Output | Price Caps'!J33*(1-'Inputs | Price Cap'!G$109)*(1+'Inputs | General'!I$26),2) -> 0 | L33: =ROUND('Output | Price Caps'!K33*(1-'Inputs | Price Cap'!H$109)*(1+'Inputs | General'!J$26),2) -> 0 | M33: =ROUND('Output | Price Caps'!L33*(1-'Inputs | Price Cap'!I$109)*(1+'Inputs | General'!K$26),2) -> 0 | N33: =ROUND('Output | Price Caps'!M33*(1-'Inputs | Price Cap'!J$109)*(1+'Inputs | General'!L$26),2) -> 0
C34: 9 | D34: ='Inputs | Price Cap'!D69 -> 0 | E34: Capital | F34: ='Inputs | Price Cap'!F69 -> 0 | G34: ='Inputs | Price Cap'!G69 -> 0 | I34: =ROUND('Inputs | Price Cap'!H69,2) -> 0 | J34: =ROUND('Output | Price Caps'!I34*(1-'Inputs | Price Cap'!F$125)*(1+'Inputs | General'!H$26),2) -> 0 | K34: =ROUND('Output | Price Caps'!J34*(1-'Inputs | Price Cap'!G$125)*(1+'Inputs | General'!I$26),2) -> 0 | L34: =ROUND('Output | Price Caps'!K34*(1-'Inputs | Price Cap'!H$125)*(1+'Inputs | General'!J$26),2) -> 0 | M34: =ROUND('Output | Price Caps'!L34*(1-'Inputs | Price Cap'!I$125)*(1+'Inputs | General'!K$26),2) -> 0 | N34: =ROUND('Output | Price Caps'!M34*(1-'Inputs | Price Cap'!J$125)*(1+'Inputs | General'!L$26),2) -> 0
C35: 9 | D35: ='Inputs | Price Cap'!D70 -> 0 | E35: Total | F35: ='Inputs | Price Cap'!F70 -> 0 | G35: ='Inputs | Price Cap'!G70 -> 0 | I35: =ROUND('Inputs | Price Cap'!H70,2) -> 0 | J35: =J33+J34 -> 0 | K35: =K33+K34 -> 0 | L35: =L33+L34 -> 0 | M35: =M33+M34 -> 0 | N35: =N33+N34 -> 0
C36: 10 | D36: ='Inputs | Price Cap'!D71 -> 0 | E36: Non-capital | F36: ='Inputs | Price Cap'!F71 -> 0 | G36: ='Inputs | Price Cap'!G71 -> 0 | I36: =ROUND('Inputs | Price Cap'!H71,2) -> 0 | J36: =ROUND('Output | Price Caps'!I36*(1-'Inputs | Price Cap'!F$109)*(1+'Inputs | General'!H$26),2) -> 0 | K36: =ROUND('Output | Price Caps'!J36*(1-'Inputs | Price Cap'!G$109)*(1+'Inputs | General'!I$26),2) -> 0 | L36: =ROUND('Output | Price Caps'!K36*(1-'Inputs | Price Cap'!H$109)*(1+'Inputs | General'!J$26),2) -> 0 | M36: =ROUND('Output | Price Caps'!L36*(1-'Inputs | Price Cap'!I$109)*(1+'Inputs | General'!K$26),2) -> 0 | N36: =ROUND('Output | Price Caps'!M36*(1-'Inputs | Price Cap'!J$109)*(1+'Inputs | General'!L$26),2) -> 0
C37: 10 | D37: ='Inputs | Price Cap'!D72 -> 0 | E37: Capital | F37: ='Inputs | Price Cap'!F72 -> 0 | G37: ='Inputs | Price Cap'!G72 -> 0 | I37: =ROUND('Inputs | Price Cap'!H72,2) -> 0 | J37: =ROUND('Output | Price Caps'!I37*(1-'Inputs | Price Cap'!F$125)*(1+'Inputs | General'!H$26),2) -> 0 | K37: =ROUND('Output | Price Caps'!J37*(1-'Inputs | Price Cap'!G$125)*(1+'Inputs | General'!I$26),2) -> 0 | L37: =ROUND('Output | Price Caps'!K37*(1-'Inputs | Price Cap'!H$125)*(1+'Inputs | General'!J$26),2) -> 0 | M37: =ROUND('Output | Price Caps'!L37*(1-'Inputs | Price Cap'!I$125)*(1+'Inputs | General'!K$26),2) -> 0 | N37: =ROUND('Output | Price Caps'!M37*(1-'Inputs | Price Cap'!J$125)*(1+'Inputs | General'!L$26),2) -> 0
C38: 10 | D38: ='Inputs | Price Cap'!D73 -> 0 | E38: Total | F38: ='Inputs | Price Cap'!F73 -> 0 | G38: ='Inputs | Price Cap'!G73 -> 0 | I38: =ROUND('Inputs | Price Cap'!H73,2) -> 0 | J38: =J36+J37 -> 0 | K38: =K36+K37 -> 0 | L38: =L36+L37 -> 0 | M38: =M36+M37 -> 0 | N38: =N36+N37 -> 0
C39: 11 | D39: ='Inputs | Price Cap'!D74 -> 0 | E39: Non-capital | F39: ='Inputs | Price Cap'!F74 -> 0 | G39: ='Inputs | Price Cap'!G74 -> 0 | I39: =ROUND('Inputs | Price Cap'!H74,2) -> 0 | J39: =ROUND('Output | Price Caps'!I39*(1-'Inputs | Price Cap'!F$109)*(1+'Inputs | General'!H$26),2) -> 0 | K39: =ROUND('Output | Price Caps'!J39*(1-'Inputs | Price Cap'!G$109)*(1+'Inputs | General'!I$26),2) -> 0 | L39: =ROUND('Output | Price Caps'!K39*(1-'Inputs | Price Cap'!H$109)*(1+'Inputs | General'!J$26),2) -> 0 | M39: =ROUND('Output | Price Caps'!L39*(1-'Inputs | Price Cap'!I$109)*(1+'Inputs | General'!K$26),2) -> 0 | N39: =ROUND('Output | Price Caps'!M39*(1-'Inputs | Price Cap'!J$109)*(1+'Inputs | General'!L$26),2) -> 0
C40: 11 | D40: ='Inputs | Price Cap'!D75 -> 0 | E40: Capital | F40: ='Inputs | Price Cap'!F75 -> 0 | G40: ='Inputs | Price Cap'!G75 -> 0 | I40: =ROUND('Inputs | Price Cap'!H75,2) -> 0 | J40: =ROUND('Output | Price Caps'!I40*(1-'Inputs | Price Cap'!F$125)*(1+'Inputs | General'!H$26),2) -> 0 | K40: =ROUND('Output | Price Caps'!J40*(1-'Inputs | Price Cap'!G$125)*(1+'Inputs | General'!I$26),2) -> 0 | L40: =ROUND('Output | Price Caps'!K40*(1-'Inputs | Price Cap'!H$125)*(1+'Inputs | General'!J$26),2) -> 0 | M40: =ROUND('Output | Price Caps'!L40*(1-'Inputs | Price Cap'!I$125)*(1+'Inputs | General'!K$26),2) -> 0 | N40: =ROUND('Output | Price Caps'!M40*(1-'Inputs | Price Cap'!J$125)*(1+'Inputs | General'!L$26),2) -> 0
C41: 11 | D41: ='Inputs | Price Cap'!D76 -> 0 | E41: Total | F41: ='Inputs | Price Cap'!F76 -> 0 | G41: ='Inputs | Price Cap'!G76 -> 0 | I41: =ROUND('Inputs | Price Cap'!H76,2) -> 0 | J41: =J39+J40 -> 0 | K41: =K39+K40 -> 0 | L41: =L39+L40 -> 0 | M41: =M39+M40 -> 0 | N41: =N39+N40 -> 0
C42: 12 | D42: ='Inputs | Price Cap'!D77 -> 0 | E42: Non-capital | F42: ='Inputs | Price Cap'!F77 -> 0 | G42: ='Inputs | Price Cap'!G77 -> 0 | I42: =ROUND('Inputs | Price Cap'!H77,2) -> 0 | J42: =ROUND('Output | Price Caps'!I42*(1-'Inputs | Price Cap'!F$109)*(1+'Inputs | General'!H$26),2) -> 0 | K42: =ROUND('Output | Price Caps'!J42*(1-'Inputs | Price Cap'!G$109)*(1+'Inputs | General'!I$26),2) -> 0 | L42: =ROUND('Output | Price Caps'!K42*(1-'Inputs | Price Cap'!H$109)*(1+'Inputs | General'!J$26),2) -> 0 | M42: =ROUND('Output | Price Caps'!L42*(1-'Inputs | Price Cap'!I$109)*(1+'Inputs | General'!K$26),2) -> 0 | N42: =ROUND('Output | Price Caps'!M42*(1-'Inputs | Price Cap'!J$109)*(1+'Inputs | General'!L$26),2) -> 0
C43: 12 | D43: ='Inputs | Price Cap'!D78 -> 0 | E43: Capital | F43: ='Inputs | Price Cap'!F78 -> 0 | G43: ='Inputs | Price Cap'!G78 -> 0 | I43: =ROUND('Inputs | Price Cap'!H78,2) -> 0 | J43: =ROUND('Output | Price Caps'!I43*(1-'Inputs | Price Cap'!F$125)*(1+'Inputs | General'!H$26),2) -> 0 | K43: =ROUND('Output | Price Caps'!J43*(1-'Inputs | Price Cap'!G$125)*(1+'Inputs | General'!I$26),2) -> 0 | L43: =ROUND('Output | Price Caps'!K43*(1-'Inputs | Price Cap'!H$125)*(1+'Inputs | General'!J$26),2) -> 0 | M43: =ROUND('Output | Price Caps'!L43*(1-'Inputs | Price Cap'!I$125)*(1+'Inputs | General'!K$26),2) -> 0 | N43: =ROUND('Output | Price Caps'!M43*(1-'Inputs | Price Cap'!J$125)*(1+'Inputs | General'!L$26),2) -> 0
C44: 12 | D44: ='Inputs | Price Cap'!D79 -> 0 | E44: Total | F44: ='Inputs | Price Cap'!F79 -> 0 | G44: ='Inputs | Price Cap'!G79 -> 0 | I44: =ROUND('Inputs | Price Cap'!H79,2) -> 0 | J44: =J42+J43 -> 0 | K44: =K42+K43 -> 0 | L44: =L42+L43 -> 0 | M44: =M42+M43 -> 0 | N44: =N42+N43 -> 0
C45: 13 | D45: ='Inputs | Price Cap'!D80 -> 0 | E45: Non-capital | F45: ='Inputs | Price Cap'!F80 -> 0 | G45: ='Inputs | Price Cap'!G80 -> 0 | I45: =ROUND('Inputs | Price Cap'!H80,2) -> 0 | J45: =ROUND('Output | Price Caps'!I45*(1-'Inputs | Price Cap'!F$109)*(1+'Inputs | General'!H$26),2) -> 0 | K45: =ROUND('Output | Price Caps'!J45*(1-'Inputs | Price Cap'!G$109)*(1+'Inputs | General'!I$26),2) -> 0 | L45: =ROUND('Output | Price Caps'!K45*(1-'Inputs | Price Cap'!H$109)*(1+'Inputs | General'!J$26),2) -> 0 | M45: =ROUND('Output | Price Caps'!L45*(1-'Inputs | Price Cap'!I$109)*(1+'Inputs | General'!K$26),2) -> 0 | N45: =ROUND('Output | Price Caps'!M45*(1-'Inputs | Price Cap'!J$109)*(1+'Inputs | General'!L$26),2) -> 0
C46: 13 | D46: ='Inputs | Price Cap'!D81 -> 0 | E46: Capital | F46: ='Inputs | Price Cap'!F81 -> 0 | G46: ='Inputs | Price Cap'!G81 -> 0 | I46: =ROUND('Inputs | Price Cap'!H81,2) -> 0 | J46: =ROUND('Output | Price Caps'!I46*(1-'Inputs | Price Cap'!F$125)*(1+'Inputs | General'!H$26),2) -> 0 | K46: =ROUND('Output | Price Caps'!J46*(1-'Inputs | Price Cap'!G$125)*(1+'Inputs | General'!I$26),2) -> 0 | L46: =ROUND('Output | Price Caps'!K46*(1-'Inputs | Price Cap'!H$125)*(1+'Inputs | General'!J$26),2) -> 0 | M46: =ROUND('Output | Price Caps'!L46*(1-'Inputs | Price Cap'!I$125)*(1+'Inputs | General'!K$26),2) -> 0 | N46: =ROUND('Output | Price Caps'!M46*(1-'Inputs | Price Cap'!J$125)*(1+'Inputs | General'!L$26),2) -> 0
C47: 13 | D47: ='Inputs | Price Cap'!D82 -> 0 | E47: Total | F47: ='Inputs | Price Cap'!F82 -> 0 | G47: ='Inputs | Price Cap'!G82 -> 0 | I47: =ROUND('Inputs | Price Cap'!H82,2) -> 0 | J47: =J45+J46 -> 0 | K47: =K45+K46 -> 0 | L47: =L45+L46 -> 0 | M47: =M45+M46 -> 0 | N47: =N45+N46 -> 0
C48: 14 | D48: ='Inputs | Price Cap'!D83 -> 0 | E48: Non-capital | F48: ='Inputs | Price Cap'!F83 -> 0 | G48: ='Inputs | Price Cap'!G83 -> 0 | I48: =ROUND('Inputs | Price Cap'!H83,2) -> 0 | J48: =ROUND('Output | Price Caps'!I48*(1-'Inputs | Price Cap'!F$109)*(1+'Inputs | General'!H$26),2) -> 0 | K48: =ROUND('Output | Price Caps'!J48*(1-'Inputs | Price Cap'!G$109)*(1+'Inputs | General'!I$26),2) -> 0 | L48: =ROUND('Output | Price Caps'!K48*(1-'Inputs | Price Cap'!H$109)*(1+'Inputs | General'!J$26),2) -> 0 | M48: =ROUND('Output | Price Caps'!L48*(1-'Inputs | Price Cap'!I$109)*(1+'Inputs | General'!K$26),2) -> 0 | N48: =ROUND('Output | Price Caps'!M48*(1-'Inputs | Price Cap'!J$109)*(1+'Inputs | General'!L$26),2) -> 0
C49: 14 | D49: ='Inputs | Price Cap'!D84 -> 0 | E49: Capital | F49: ='Inputs | Price Cap'!F84 -> 0 | G49: ='Inputs | Price Cap'!G84 -> 0 | I49: =ROUND('Inputs | Price Cap'!H84,2) -> 0 | J49: =ROUND('Output | Price Caps'!I49*(1-'Inputs | Price Cap'!F$125)*(1+'Inputs | General'!H$26),2) -> 0 | K49: =ROUND('Output | Price Caps'!J49*(1-'Inputs | Price Cap'!G$125)*(1+'Inputs | General'!I$26),2) -> 0 | L49: =ROUND('Output | Price Caps'!K49*(1-'Inputs | Price Cap'!H$125)*(1+'Inputs | General'!J$26),2) -> 0 | M49: =ROUND('Output | Price Caps'!L49*(1-'Inputs | Price Cap'!I$125)*(1+'Inputs | General'!K$26),2) -> 0 | N49: =ROUND('Output | Price Caps'!M49*(1-'Inputs | Price Cap'!J$125)*(1+'Inputs | General'!L$26),2) -> 0
C50: 14 | D50: ='Inputs | Price Cap'!D85 -> 0 | E50: Total | F50: ='Inputs | Price Cap'!F85 -> 0 | G50: ='Inputs | Price Cap'!G85 -> 0 | I50: =ROUND('Inputs | Price Cap'!H85,2) -> 0 | J50: =J48+J49 -> 0 | K50: =K48+K49 -> 0 | L50: =L48+L49 -> 0 | M50: =M48+M49 -> 0 | N50: =N48+N49 -> 0
C51: 15 | D51: ='Inputs | Price Cap'!D86 -> 0 | E51: Non-capital | F51: ='Inputs | Price Cap'!F86 -> 0 | G51: ='Inputs | Price Cap'!G86 -> 0 | I51: =ROUND('Inputs | Price Cap'!H86,2) -> 0 | J51: =ROUND('Output | Price Caps'!I51*(1-'Inputs | Price Cap'!F$109)*(1+'Inputs | General'!H$26),2) -> 0 | K51: =ROUND('Output | Price Caps'!J51*(1-'Inputs | Price Cap'!G$109)*(1+'Inputs | General'!I$26),2) -> 0 | L51: =ROUND('Output | Price Caps'!K51*(1-'Inputs | Price Cap'!H$109)*(1+'Inputs | General'!J$26),2) -> 0 | M51: =ROUND('Output | Price Caps'!L51*(1-'Inputs | Price Cap'!I$109)*(1+'Inputs | General'!K$26),2) -> 0 | N51: =ROUND('Output | Price Caps'!M51*(1-'Inputs | Price Cap'!J$109)*(1+'Inputs | General'!L$26),2) -> 0
C52: 15 | D52: ='Inputs | Price Cap'!D87 -> 0 | E52: Capital | F52: ='Inputs | Price Cap'!F87 -> 0 | G52: ='Inputs | Price Cap'!G87 -> 0 | I52: =ROUND('Inputs | Price Cap'!H87,2) -> 0 | J52: =ROUND('Output | Price Caps'!I52*(1-'Inputs | Price Cap'!F$125)*(1+'Inputs | General'!H$26),2) -> 0 | K52: =ROUND('Output | Price Caps'!J52*(1-'Inputs | Price Cap'!G$125)*(1+'Inputs | General'!I$26),2) -> 0 | L52: =ROUND('Output | Price Caps'!K52*(1-'Inputs | Price Cap'!H$125)*(1+'Inputs | General'!J$26),2) -> 0 | M52: =ROUND('Output | Price Caps'!L52*(1-'Inputs | Price Cap'!I$125)*(1+'Inputs | General'!K$26),2) -> 0 | N52: =ROUND('Output | Price Caps'!M52*(1-'Inputs | Price Cap'!J$125)*(1+'Inputs | General'!L$26),2) -> 0
C53: 15 | D53: ='Inputs | Price Cap'!D88 -> 0 | E53: Total | F53: ='Inputs | Price Cap'!F88 -> 0 | G53: ='Inputs | Price Cap'!G88 -> 0 | I53: =ROUND('Inputs | Price Cap'!H88,2) -> 0 | J53: =J51+J52 -> 0 | K53: =K51+K52 -> 0 | L53: =L51+L52 -> 0 | M53: =M51+M52 -> 0 | N53: =N51+N52 -> 0
B56: Implicit X-Factors
D57: X-Factors | E57: =FPFirstYear -> 2026-27 | F57: =LEFT(E57,4)+1&"-"&RIGHT(E57,2)+1 -> 2027-28 | G57: =LEFT(F57,4)+1&"-"&RIGHT(F57,2)+1 -> 2028-29 | H57: =LEFT(G57,4)+1&"-"&RIGHT(G57,2)+1 -> 2029-30 | I57: =LEFT(H57,4)+1&"-"&RIGHT(H57,2)+1 -> 2030-31
E58: P_0 | F58: X_02 | G58: X_03 | H58: X_04 | I58: X_05
D59: All Tariffs - Non-Capital | E59: =NC_P_0_WAPC -> -0.273156522 | F59: =NC_X_02_WAPC -> -0.01 | G59: =NC_X_03_WAPC -> -0.01 | H59: =NC_X_04_WAPC -> -0.01 | I59: =NC_X_05_WAPC -> -0.01
D60: All Tariffs - Capital | E60: =C_P_0_WAPC -> 0.1254211795 | F60: =C_X_02_WAPC -> 0.03 | G60: =C_X_03_WAPC -> 0.03 | H60: =C_X_04_WAPC -> 0.03 | I60: =C_X_05_WAPC -> 0.03
B65: Cost Metric
I66: Base Year Charges | J66: Price Cap - Annual Charges
D67: Price Cap Per Meter | F67: Application | G67: Units | H67: Basis | I67: =LEFT(J67,4)-1&"-"&RIGHT(J67,2)-1 -> 2025-26 | J67: =FPFirstYear -> 2026-27 | K67: =LEFT(J67,4)+1&"-"&RIGHT(J67,2)+1 -> 2027-28 | L67: =LEFT(K67,4)+1&"-"&RIGHT(K67,2)+1 -> 2028-29 | M67: =LEFT(L67,4)+1&"-"&RIGHT(L67,2)+1 -> 2029-30 | N67: =LEFT(M67,4)+1&"-"&RIGHT(M67,2)+1 -> 2030-31
D68: Volume Weighted Average Price Cap - Per Meter | F68: Non-capital | G68: $dollars | H68: nominal | I68: ='Calc | Price Cap'!I59/'Inputs | Price Cap'!I90 -> 10.81871345 | J68: ='Calc | Price Cap'!J59/'Inputs | Price Cap'!J90 -> 14.11736842 | K68: ='Calc | Price Cap'!K59/'Inputs | Price Cap'!K90 -> 14.61573099 | L68: ='Calc | Price Cap'!L59/'Inputs | Price Cap'!L90 -> 15.13321637 | M68: ='Calc | Price Cap'!M59/'Inputs | Price Cap'!M90 -> 15.66549708 | N68: ='Calc | Price Cap'!N59/'Inputs | Price Cap'!N90 -> 16.21725146
D69: Volume Weighted Average Price Cap - Per Meter | F69: Capital | G69: $dollars | H69: nominal | I69: ='Calc | Price Cap'!I60/'Inputs | Price Cap'!I91 -> 18.56382979 | J69: ='Calc | Price Cap'!J60/'Inputs | Price Cap'!J91 -> 16.64143617 | K69: ='Calc | Price Cap'!K60/'Inputs | Price Cap'!K91 -> 16.54859043 | L69: ='Calc | Price Cap'!L60/'Inputs | Price Cap'!L91 -> 16.45574468 | M69: ='Calc | Price Cap'!M60/'Inputs | Price Cap'!M91 -> 16.36289894 | N69: ='Calc | Price Cap'!N60/'Inputs | Price Cap'!N91 -> 16.27005319
D70: Volume Weighted Average Price Cap - Per Non-Capital Meter | F70: Total | G70: $dollars | H70: nominal | I70: ='Calc | Price Cap'!I61/'Inputs | Price Cap'!I90 -> 31.22807018 | J70: ='Calc | Price Cap'!J61/'Inputs | Price Cap'!J90 -> 34.44608837 | K70: ='Calc | Price Cap'!K61/'Inputs | Price Cap'!K90 -> 37.07717782 | L70: ='Calc | Price Cap'!L61/'Inputs | Price Cap'!L90 -> 39.95035754 | M70: ='Calc | Price Cap'!M61/'Inputs | Price Cap'!M90 -> 43.08451839 | N70: ='Calc | Price Cap'!N61/'Inputs | Price Cap'!N90 -> 46.50996406

Sheet Exit Fees >

Sheet Input | Exit Fees
B1: ='Title Page'!B8&" v"&'Title Page'!$C$10 -> Preliminary Standardised Metering Pricing Model v1 | M1: DNSP: | N1: =IF('Inputs | General'!$G$16="Price Cap","NOT USED",NSP) -> AusNet
B2: =MID(CELL("filename",A1),FIND("]",CELL("filename",A1))+1,255) -> Input | Exit Fees | H2: Key: | I2: Input | J2: External Link | K2: Internal Link
B5: =LEFT('Inputs | General'!B21,1)+1&". Linked Input - RAB" -> 3. Linked Input - RAB | J5: =IF('Inputs | General'!$G$16="Price Cap","NOT USED","") -> 
B7: Linked Input - RAB Meters | G7: Base Year | H7: Regulatory Period
E8: Units | G8: =LEFT(H8,4)-1&"-"&RIGHT(H8,2)-1 -> 2025-26 | H8: =FPFirstYear -> 2026-27 | I8: =LEFT(H8,4)+1&"-"&RIGHT(H8,2)+1 -> 2027-28 | J8: =LEFT(I8,4)+1&"-"&RIGHT(I8,2)+1 -> 2028-29 | K8: =LEFT(J8,4)+1&"-"&RIGHT(J8,2)+1 -> 2029-30 | L8: =LEFT(K8,4)+1&"-"&RIGHT(K8,2)+1 -> 2030-31
C9: Opening RAB | E9: $m | G9: =[1]!A1value -> 75.22486142 | H9: =G9+G10-G11 -> 75.22486142 | I9: =H9+H10-H11 -> 53.07608961 | J9: =I9+I10-I11 -> 58.34618663 | K9: =J9+J10-J11 -> 85.84869669 | L9: =K9+K10-K11 -> 131.6115181 | N9: Opening balance of METERS row in PTRM inputs sheet of PTRM
C10: Gross capital expenditure | E10: $m | H10: =[1]Assets!G62 -> 11.7779227 | I10: =[1]Assets!H62 -> 12.77545752 | J10: =[1]Assets!I62 -> 32.90872352 | K10: =[1]Assets!J62 -> 52.98145992 | L10: =[1]Assets!K62 -> 57.74603187 | N10: Gross capex from METERS row in ASSETS sheet of PTRM
C11: Regulatory depreciation | E11: $m | H11: ='Reg Depreciation Calc'!F17 -> 33.92669451 | I11: ='Reg Depreciation Calc'!G17 -> 7.505360501 | J11: ='Reg Depreciation Calc'!H17 -> 5.406213458 | K11: ='Reg Depreciation Calc'!I17 -> 7.2186385 | L11: ='Reg Depreciation Calc'!J17 -> 10.07810923 | N11: Depreciation from METERS row in ASSETS sheet of PTRM
B14: Linked Input - RAB Comms & IT
E15: Units | G15: =LEFT(H15,4)-1&"-"&RIGHT(H15,2)-1 -> 2025-26 | H15: =FPFirstYear -> 2026-27 | I15: =LEFT(H15,4)+1&"-"&RIGHT(H15,2)+1 -> 2027-28 | J15: =LEFT(I15,4)+1&"-"&RIGHT(I15,2)+1 -> 2028-29 | K15: =LEFT(J15,4)+1&"-"&RIGHT(J15,2)+1 -> 2029-30 | L15: =LEFT(K15,4)+1&"-"&RIGHT(K15,2)+1 -> 2030-31
C16: Opening RAB | E16: $m | G16: =[1]!A2value+[1]!A3value -> 41.47579566 | H16: =G16+G17-G18 -> 41.47579566 | I16: =H16+H17-H18 -> 37.09568239 | J16: =I16+I17-I18 -> 31.84206427 | K16: =J16+J17-J18 -> 29.59369371 | L16: =K16+K17-K18 -> 25.49112561 | N16: Opening balance of COMMS & IT rows from PTRM INPUTS sheet of PTRM
C17: Gross capital expenditure | E17: $m | H17: =[1]Assets!G63+[1]Assets!G64 -> 6.06945027 | I17: =[1]Assets!H63+[1]Assets!H64 -> 5.705608826 | J17: =[1]Assets!I63+[1]Assets!I64 -> 6.300776118 | K17: =[1]Assets!J63+[1]Assets!J64 -> 4.533915409 | L17: =[1]Assets!K63+[1]Assets!K64 -> 1.340019595 | N17: Gross capex from COMMS & IT rows in ASSETS sheet of PTRM
C18: Regulatory depreciation | E18: $m | H18: ='Reg Depreciation Calc'!F28 -> 10.44956354 | I18: ='Reg Depreciation Calc'!G28 -> 10.95922694 | J18: ='Reg Depreciation Calc'!H28 -> 8.549146679 | K18: ='Reg Depreciation Calc'!I28 -> 8.636483507 | L18: ='Reg Depreciation Calc'!J28 -> 6.654379023 | N18: Depreciation from COMMS & IT rows in ASSETS sheet of PTRM
E21: Units | G21: =LEFT(H21,4)-1&"-"&RIGHT(H21,2)-1 -> 2025-26 | H21: =FPFirstYear -> 2026-27 | I21: =LEFT(H21,4)+1&"-"&RIGHT(H21,2)+1 -> 2027-28 | J21: =LEFT(I21,4)+1&"-"&RIGHT(I21,2)+1 -> 2028-29 | K21: =LEFT(J21,4)+1&"-"&RIGHT(J21,2)+1 -> 2029-30 | L21: =LEFT(K21,4)+1&"-"&RIGHT(K21,2)+1 -> 2030-31
B22: TOTAL Opening RAB | E22: $m | G22: =G9+G16 -> 116.7006571 | H22: 116.7006571 | I22: 90.171772 | J22: 90.1882509 | K22: 115.4423904 | L22: 157.1026437
B25: =LEFT(B5,1)+1&". Input | Define Exit Fees" -> 4. Input | Define Exit Fees
B27: Enter Allowed Exit Fee in final year of current Regulatory Period | G27: Exit Fee
D28: Exit Fee Name | F28: Units | G28: Last Year - Current RP
D29: Single phase single element | F29: $dollars | G29: 287.57
D30: Single phase two element with contactor | F30: $dollars | G30: 287.57
D31: Multiphase | F31: $dollars | G31: 287.57
D32: Multiphase CT connected | F32: $dollars | G32: 287.57
D33: 0 | F33: $dollars
D34: 0 | F34: $dollars | G34: 0
D35: 0 | F35: $dollars | G35: 0
D36: 0 | F36: $dollars | G36: 0
D37: 0 | F37: $dollars | G37: 0
D38: 0 | F38: $dollars | G38: 0
B42: =LEFT(B25,1)+1&". Input | from Metering ACS Model" -> 5. Input | from Metering ACS Model
B44: METERS
B46: a | C46: Inputs - Designated Exit Fee by Meter Type | G46: b | H46: Linked Input - Meter Types & Unit Costs
K47: Equipment Cost | L47: Labour Cost | M47: Total Cost
D48: Designated Exit Fee | H48: Meter Type | I48: Units | J48: Basis | K48: New Meter Installations | L48: New Meter Installations | M48: New Meter Installations | Q48: Link from Metering - ACS Model
D49: Single phase single element | H49: ='[2]Input | Meters Vols & Costs'!F9 -> AMI - Single Phase, single element | I49: $dollars | J49: ='[2]Input | Meters Vols & Costs'!M103 -> 2024-06-01 | K49: ='[2]Input | Meters Vols & Costs'!P125 -> 253.491047 | L49: ='[2]Input | Meters Vols & Costs'!R103 -> 306.5689304 | M49: =K49+L49 -> 560.0599774
D50: Single phase two element with contactor | H50: ='[2]Input | Meters Vols & Costs'!F10 -> AMI - Single Phase, two element | I50: $dollars | J50: ='[2]Input | Meters Vols & Costs'!M104 -> 2024-06-01 | K50: ='[2]Input | Meters Vols & Costs'!P126 -> 276.9552514 | L50: ='[2]Input | Meters Vols & Costs'!R104 -> 306.5689304 | M50: 583.5241819
D51: Multiphase | H51: ='[2]Input | Meters Vols & Costs'!F11 -> AMI - 3 Phase DC | I51: $dollars | J51: ='[2]Input | Meters Vols & Costs'!M105 -> 2024-06-01 | K51: ='[2]Input | Meters Vols & Costs'!P127 -> 372.5265952 | L51: ='[2]Input | Meters Vols & Costs'!R105 -> 306.5689304 | M51: 679.0955256
D52: Multiphase CT connected | H52: ='[2]Input | Meters Vols & Costs'!F12 -> AMI 3Ph CT | I52: $dollars | J52: ='[2]Input | Meters Vols & Costs'!M106 -> 2024-06-01 | K52: ='[2]Input | Meters Vols & Costs'!P128 -> 472.9072383 | L52: ='[2]Input | Meters Vols & Costs'!R106 -> 766.4223261 | M52: 1239.329564
I53: $dollars | M53: 0
I54: $dollars | M54: 0
I55: $dollars | M55: 0
I56: $dollars | M56: 0
I57: $dollars | M57: 0
I58: $dollars
D59: 0 | I59: $dollars
D60: 0 | H60: ='[2]Input | Meters Vols & Costs'!F20 -> 0 | I60: $dollars
D61: 0 | H61: 0 | I61: $dollars
D62: 0 | H62: 0 | I62: $dollars
D63: 0 | H63: 0 | I63: $dollars
B66: e | C66: Linked Input - Gross Meter Population (Year End), by meter type
J67: Number of meters in year
H68: =H48 -> Meter Type | I68: Units | J68: =LEFT(K68,4)-1&"-"&RIGHT(K68,2)-1 -> 2025-26 | K68: =FPFirstYear -> 2026-27 | L68: =LEFT(K68,4)+1&"-"&RIGHT(K68,2)+1 -> 2027-28 | M68: =LEFT(L68,4)+1&"-"&RIGHT(L68,2)+1 -> 2028-29 | N68: 2029-30 | O68: 2030-31 | Q68: Link from Metering - ACS Model
H69: AMI - Single Phase, single element | I69: No. | J69: ='[2]Input | Meters Vols & Costs'!P412 -> 573745.187 | K69: ='[2]Input | Meters Vols & Costs'!Q412 -> 579476.9263 | L69: ='[2]Input | Meters Vols & Costs'!R412 -> 583639.6368 | M69: ='[2]Input | Meters Vols & Costs'!S412 -> 586339.1946 | N69: ='[2]Input | Meters Vols & Costs'!T412 -> 587574.7385 | O69: ='[2]Input | Meters Vols & Costs'!U412 -> 587155.402
H70: AMI - Single Phase, two element | I70: No. | J70: ='[2]Input | Meters Vols & Costs'!P413 -> 117291.813 | K70: ='[2]Input | Meters Vols & Costs'!Q413 -> 115944.4623 | L70: ='[2]Input | Meters Vols & Costs'!R413 -> 114538.6677 | M70: ='[2]Input | Meters Vols & Costs'!S413 -> 113116.7608 | N70: ='[2]Input | Meters Vols & Costs'!T413 -> 111690.294 | O70: ='[2]Input | Meters Vols & Costs'!U413 -> 110228.3807
H71: AMI - 3 Phase DC | I71: No. | J71: ='[2]Input | Meters Vols & Costs'!P414 -> 158168.274 | K71: ='[2]Input | Meters Vols & Costs'!Q414 -> 169190.443 | L71: ='[2]Input | Meters Vols & Costs'!R414 -> 182184.3966 | M71: ='[2]Input | Meters Vols & Costs'!S414 -> 196994.8076 | N71: ='[2]Input | Meters Vols & Costs'!T414 -> 213633.4907 | O71: ='[2]Input | Meters Vols & Costs'!U414 -> 232322.0556
H72: AMI 3Ph CT | I72: No. | J72: ='[2]Input | Meters Vols & Costs'!P415 -> 5270 | K72: ='[2]Input | Meters Vols & Costs'!Q415 -> 5354.623985 | L72: ='[2]Input | Meters Vols & Costs'!R415 -> 5440.142723 | M72: ='[2]Input | Meters Vols & Costs'!S415 -> 5526.527206 | N72: ='[2]Input | Meters Vols & Costs'!T415 -> 5613.844481 | O72: ='[2]Input | Meters Vols & Costs'!U415 -> 5702.060352
H73: 0 | I73: No.
H74: 0 | I74: No.
H75: 0 | I75: No.
H76: 0 | I76: No.
H77: 0 | I77: No.
H78: 0 | I78: No.
H79: =H59 -> 0 | I79: No.
H80: 0 | I80: No.
H81: 0 | I81: No. | J81: 0 | K81: 0 | L81: 0 | M81: 0 | N81: 0 | O81: 0
H82: 0 | I82: No. | J82: 0 | K82: 0 | L82: 0 | M82: 0 | N82: 0 | O82: 0
H83: 0 | I83: No. | J83: 0 | K83: 0 | L83: 0 | M83: 0 | N83: 0 | O83: 0
H84: Total | I84: No. | J84: =SUM(J69:J83) -> 854475.274 | K84: 869966.4556 | L84: 885802.8438 | M84: 901977.2902 | N84: 918512.3677 | O84: 935407.8987
B87: =LEFT(B42,1)+1&". INPUT | Admin and handling" -> 6. INPUT | Admin and handling
B89: a | C89: Inputs - Admin Hourly Rate
D90: Admin Fees | E90: Units | G90: Rate
D91: Hourly Rate | E91: $dollars/hr | G91: 88.15334444
B94: b | C94: Inputs - Admin & Handling Costs
D95: Admin Process Description | G95: Amount ($Fixed or Hours) | H95: Calculated or Entered | I95: Proportion required | K95: =FPFirstYear -> 2026-27 | L95: =LEFT(K95,4)+1&"-"&RIGHT(K95,2)+1 -> 2027-28 | M95: =LEFT(L95,4)+1&"-"&RIGHT(L95,2)+1 -> 2028-29 | N95: =LEFT(M95,4)+1&"-"&RIGHT(M95,2)+1 -> 2029-30 | O95: =LEFT(N95,4)+1&"-"&RIGHT(N95,2)+1 -> 2030-31
D96: Site visit @ 20% of the time to rectify issues and locate missing meters | G96: 175 | H96: Calc-Fixed | I96: 0.2
D97: Back-office admin processing | G97: 0.25 | H97: Calc-Hourly | I97: 1
D98: Receipt Meters into store | G98: 0.27 | H98: Calc-Hourly | I98: 1 | L98: 15 | M98: 25
D99: 0 | K99: 5 | L99: =IF($H99="Fixed",$I99*$G99,$G$91*$G99*$I99) -> 0 | M99: =IF($H99="Fixed",$I99*$G99,$G$91*$G99*$I99) -> 0 | N99: 3 | O99: =IF($H99="Fixed",$I99*$G99,$G$91*$G99*$I99) -> 0
D100: 0
D101: 0
D102: 0
D103: 0
D104: 0
D105: 0
B107: c | C107: Admin & Handling Cost Calculation (Autofilled)
D108: Admin Process Description | G108: Amount (Fixed or Hours) | H108: Calculated or Entered | I108: Proportion required | K108: =FPFirstYear -> 2026-27 | L108: =LEFT(K108,4)+1&"-"&RIGHT(K108,2)+1 -> 2027-28 | M108: =LEFT(L108,4)+1&"-"&RIGHT(L108,2)+1 -> 2028-29 | N108: =LEFT(M108,4)+1&"-"&RIGHT(M108,2)+1 -> 2029-30 | O108: =LEFT(N108,4)+1&"-"&RIGHT(N108,2)+1 -> 2030-31
D109: =D96 -> Site visit @ 20% of the time to rectify issues and locate missing meters | G109: =G96 -> 175 | H109: Calc-Fixed | I109: =I96 -> 0.2 | K109: =IF($H109="Calc-Fixed",$I109*$G109,IF($H109="Calc-Hourly",$G$91*$G109*$I109,IF($H109="Entered",K96,0))) -> 35 | L109: =IF($H109="Calc-Fixed",$I109*$G109,IF($H109="Calc-Hourly",$G$91*$G109*$I109,IF($H109="Entered",L96,0))) -> 35 | M109: 35 | N109: 35 | O109: 35
D110: Back-office admin processing | G110: 0.25 | H110: Calc-Hourly | I110: 1 | K110: =IF($H110="Calc-Fixed",$I110*$G110,IF($H110="Calc-Hourly",$G$91*$G110*$I110,IF($H110="Entered",K97,0))) -> 22.03833611 | L110: 22.03833611 | M110: 22.03833611 | N110: 22.03833611 | O110: 22.03833611
D111: Receipt Meters into store | G111: 0.27 | H111: Calc-Hourly | I111: 1 | K111: =IF($H111="Calc-Fixed",$I111*$G111,IF($H111="Calc-Hourly",$G$91*$G111*$I111,IF($H111="Entered",K98,0))) -> 23.801403 | L111: 23.801403 | M111: 23.801403 | N111: 23.801403 | O111: 23.801403
D112: 0 | G112: 0 | H112: 0 | I112: 0 | K112: =IF($H112="Calc-Fixed",$I112*$G112,IF($H112="Calc-Hourly",$G$91*$G112*$I112,IF($H112="Entered",K99,0))) -> 0 | L112: 0 | M112: 0 | N112: 0 | O112: 0
D113: 0 | G113: 0 | H113: 0 | I113: 0 | K113: =IF($H113="Calc-Fixed",$I113*$G113,IF($H113="Calc-Hourly",$G$91*$G113*$I113,IF($H113="Entered",K100,0))) -> 0 | L113: 0 | M113: 0 | N113: 0 | O113: 0
D114: 0 | G114: 0 | H114: 0 | I114: 0 | K114: =IF($H114="Calc-Fixed",$I114*$G114,IF($H114="Calc-Hourly",$G$91*$G114*$I114,IF($H114="Entered",K101,0))) -> 0 | L114: 0 | M114: 0 | N114: 0 | O114: 0
D115: 0 | G115: 0 | H115: 0 | I115: 0 | K115: =IF($H115="Calc-Fixed",$I115*$G115,IF($H115="Calc-Hourly",$G$91*$G115*$I115,IF($H115="Entered",K102,0))) -> 0 | L115: 0 | M115: 0 | N115: 0 | O115: 0
D116: 0 | G116: 0 | H116: 0 | I116: 0 | K116: =IF($H116="Calc-Fixed",$I116*$G116,IF($H116="Calc-Hourly",$G$91*$G116*$I116,IF($H116="Entered",K103,0))) -> 0 | L116: 0 | M116: 0 | N116: 0 | O116: 0
D117: 0 | G117: 0 | H117: 0 | I117: 0 | K117: =IF($H117="Calc-Fixed",$I117*$G117,IF($H117="Calc-Hourly",$G$91*$G117*$I117,IF($H117="Entered",K104,0))) -> 0 | L117: 0 | M117: 0 | N117: 0 | O117: 0
D118: 0 | G118: 0 | H118: 0 | I118: 0 | K118: =IF($H118="Calc-Fixed",$I118*$G118,IF($H118="Calc-Hourly",$G$91*$G118*$I118,IF($H118="Entered",K105,0))) -> 0 | L118: 0 | M118: 0 | N118: 0 | O118: 0
D119: TOTAL ADMIN and Handling | K119: =SUM(K109:K118) -> 80.83973911 | L119: =SUM(L109:L118) -> 80.83973911 | M119: =SUM(M109:M118) -> 80.83973911 | N119: =SUM(N109:N118) -> 80.83973911 | O119: =SUM(O109:O118) -> 80.83973911

Sheet Calc | Exit Fees
B1: ='Title Page'!B8&" v"&'Title Page'!$C$10 -> Preliminary Standardised Metering Pricing Model v1 | M1: DNSP: | N1: =IF('Inputs | General'!$G$16="Price Cap","NOT USED",NSP) -> AusNet
B2: =MID(CELL("filename",A1),FIND("]",CELL("filename",A1))+1,255) -> Calc | Exit Fees | H2: Key: | I2: Input | J2: External Link | K2: Internal Link
B5: CALCULATION | Meters
B7: Calculation of Allocated Meters RAB by Designated Exit Fee
E9: Volume of meters | J9: Base Year | K9: Regulatory period
F10: Exit Fee | G10: Units | J10: =LEFT(K10,4)-1&"-"&RIGHT(K10,2)-1 -> 2025-26 | K10: =FPFirstYear -> 2026-27 | L10: =LEFT(K10,4)+1&"-"&RIGHT(K10,2)+1 -> 2027-28 | M10: =LEFT(L10,4)+1&"-"&RIGHT(L10,2)+1 -> 2028-29 | N10: =LEFT(M10,4)+1&"-"&RIGHT(M10,2)+1 -> 2029-30 | O10: =LEFT(N10,4)+1&"-"&RIGHT(N10,2)+1 -> 2030-31
F11: ='Input | Exit Fees'!$D$29:$D$38 -> Single phase single element | G11: $dollars | J11: =IF($F11=0,0,SUMPRODUCT('Input | Exit Fees'!J$69:J$83,('Input | Exit Fees'!$D$49:$D$63=$F11)/1)) -> 573745.187 | K11: =IF($F11=0,0,SUMPRODUCT('Input | Exit Fees'!K$69:K$83,('Input | Exit Fees'!$D$49:$D$63=$F11)/1)) -> 579476.9263 | L11: =IF($F11=0,0,SUMPRODUCT('Input | Exit Fees'!L$69:L$83,('Input | Exit Fees'!$D$49:$D$63=$F11)/1)) -> 583639.6368 | M11: =IF($F11=0,0,SUMPRODUCT('Input | Exit Fees'!M$69:M$83,('Input | Exit Fees'!$D$49:$D$63=$F11)/1)) -> 586339.1946 | N11: =IF($F11=0,0,SUMPRODUCT('Input | Exit Fees'!N$69:N$83,('Input | Exit Fees'!$D$49:$D$63=$F11)/1)) -> 587574.7385 | O11: =IF($F11=0,0,SUMPRODUCT('Input | Exit Fees'!O$69:O$83,('Input | Exit Fees'!$D$49:$D$63=$F11)/1)) -> 587155.402
F12: Single phase two element with contactor | G12: $dollars | J12: =IF($F12=0,0,SUMPRODUCT('Input | Exit Fees'!J$69:J$83,('Input | Exit Fees'!$D$49:$D$63=$F12)/1)) -> 117291.813 | K12: =IF($F12=0,0,SUMPRODUCT('Input | Exit Fees'!K$69:K$83,('Input | Exit Fees'!$D$49:$D$63=$F12)/1)) -> 115944.4623 | L12: =IF($F12=0,0,SUMPRODUCT('Input | Exit Fees'!L$69:L$83,('Input | Exit Fees'!$D$49:$D$63=$F12)/1)) -> 114538.6677 | M12: =IF($F12=0,0,SUMPRODUCT('Input | Exit Fees'!M$69:M$83,('Input | Exit Fees'!$D$49:$D$63=$F12)/1)) -> 113116.7608 | N12: =IF($F12=0,0,SUMPRODUCT('Input | Exit Fees'!N$69:N$83,('Input | Exit Fees'!$D$49:$D$63=$F12)/1)) -> 111690.294 | O12: =IF($F12=0,0,SUMPRODUCT('Input | Exit Fees'!O$69:O$83,('Input | Exit Fees'!$D$49:$D$63=$F12)/1)) -> 110228.3807
F13: Multiphase | G13: $dollars | J13: =IF($F13=0,0,SUMPRODUCT('Input | Exit Fees'!J$69:J$83,('Input | Exit Fees'!$D$49:$D$63=$F13)/1)) -> 158168.274 | K13: =IF($F13=0,0,SUMPRODUCT('Input | Exit Fees'!K$69:K$83,('Input | Exit Fees'!$D$49:$D$63=$F13)/1)) -> 169190.443 | L13: =IF($F13=0,0,SUMPRODUCT('Input | Exit Fees'!L$69:L$83,('Input | Exit Fees'!$D$49:$D$63=$F13)/1)) -> 182184.3966 | M13: =IF($F13=0,0,SUMPRODUCT('Input | Exit Fees'!M$69:M$83,('Input | Exit Fees'!$D$49:$D$63=$F13)/1)) -> 196994.8076 | N13: =IF($F13=0,0,SUMPRODUCT('Input | Exit Fees'!N$69:N$83,('Input | Exit Fees'!$D$49:$D$63=$F13)/1)) -> 213633.4907 | O13: =IF($F13=0,0,SUMPRODUCT('Input | Exit Fees'!O$69:O$83,('Input | Exit Fees'!$D$49:$D$63=$F13)/1)) -> 232322.0556
F14: Multiphase CT connected | G14: $dollars | J14: =IF($F14=0,0,SUMPRODUCT('Input | Exit Fees'!J$69:J$83,('Input | Exit Fees'!$D$49:$D$63=$F14)/1)) -> 5270 | K14: =IF($F14=0,0,SUMPRODUCT('Input | Exit Fees'!K$69:K$83,('Input | Exit Fees'!$D$49:$D$63=$F14)/1)) -> 5354.623985 | L14: =IF($F14=0,0,SUMPRODUCT('Input | Exit Fees'!L$69:L$83,('Input | Exit Fees'!$D$49:$D$63=$F14)/1)) -> 5440.142723 | M14: =IF($F14=0,0,SUMPRODUCT('Input | Exit Fees'!M$69:M$83,('Input | Exit Fees'!$D$49:$D$63=$F14)/1)) -> 5526.527206 | N14: =IF($F14=0,0,SUMPRODUCT('Input | Exit Fees'!N$69:N$83,('Input | Exit Fees'!$D$49:$D$63=$F14)/1)) -> 5613.844481 | O14: =IF($F14=0,0,SUMPRODUCT('Input | Exit Fees'!O$69:O$83,('Input | Exit Fees'!$D$49:$D$63=$F14)/1)) -> 5702.060352
F15: 0 | G15: $dollars | J15: =IF($F15=0,0,SUMPRODUCT('Input | Exit Fees'!J$69:J$83,('Input | Exit Fees'!$D$49:$D$63=$F15)/1)) -> 0 | K15: =IF($F15=0,0,SUMPRODUCT('Input | Exit Fees'!K$69:K$83,('Input | Exit Fees'!$D$49:$D$63=$F15)/1)) -> 0 | L15: =IF($F15=0,0,SUMPRODUCT('Input | Exit Fees'!L$69:L$83,('Input | Exit Fees'!$D$49:$D$63=$F15)/1)) -> 0 | M15: =IF($F15=0,0,SUMPRODUCT('Input | Exit Fees'!M$69:M$83,('Input | Exit Fees'!$D$49:$D$63=$F15)/1)) -> 0 | N15: =IF($F15=0,0,SUMPRODUCT('Input | Exit Fees'!N$69:N$83,('Input | Exit Fees'!$D$49:$D$63=$F15)/1)) -> 0 | O15: =IF($F15=0,0,SUMPRODUCT('Input | Exit Fees'!O$69:O$83,('Input | Exit Fees'!$D$49:$D$63=$F15)/1)) -> 0
F16: 0 | G16: $dollars | J16: =IF($F16=0,0,SUMPRODUCT('Input | Exit Fees'!J$69:J$83,('Input | Exit Fees'!$D$49:$D$63=$F16)/1)) -> 0 | K16: =IF($F16=0,0,SUMPRODUCT('Input | Exit Fees'!K$69:K$83,('Input | Exit Fees'!$D$49:$D$63=$F16)/1)) -> 0 | L16: =IF($F16=0,0,SUMPRODUCT('Input | Exit Fees'!L$69:L$83,('Input | Exit Fees'!$D$49:$D$63=$F16)/1)) -> 0 | M16: =IF($F16=0,0,SUMPRODUCT('Input | Exit Fees'!M$69:M$83,('Input | Exit Fees'!$D$49:$D$63=$F16)/1)) -> 0 | N16: =IF($F16=0,0,SUMPRODUCT('Input | Exit Fees'!N$69:N$83,('Input | Exit Fees'!$D$49:$D$63=$F16)/1)) -> 0 | O16: =IF($F16=0,0,SUMPRODUCT('Input | Exit Fees'!O$69:O$83,('Input | Exit Fees'!$D$49:$D$63=$F16)/1)) -> 0
F17: 0 | G17: $dollars | J17: =IF($F17=0,0,SUMPRODUCT('Input | Exit Fees'!J$69:J$83,('Input | Exit Fees'!$D$49:$D$63=$F17)/1)) -> 0 | K17: =IF($F17=0,0,SUMPRODUCT('Input | Exit Fees'!K$69:K$83,('Input | Exit Fees'!$D$49:$D$63=$F17)/1)) -> 0 | L17: =IF($F17=0,0,SUMPRODUCT('Input | Exit Fees'!L$69:L$83,('Input | Exit Fees'!$D$49:$D$63=$F17)/1)) -> 0 | M17: =IF($F17=0,0,SUMPRODUCT('Input | Exit Fees'!M$69:M$83,('Input | Exit Fees'!$D$49:$D$63=$F17)/1)) -> 0 | N17: =IF($F17=0,0,SUMPRODUCT('Input | Exit Fees'!N$69:N$83,('Input | Exit Fees'!$D$49:$D$63=$F17)/1)) -> 0 | O17: =IF($F17=0,0,SUMPRODUCT('Input | Exit Fees'!O$69:O$83,('Input | Exit Fees'!$D$49:$D$63=$F17)/1)) -> 0
F18: 0 | G18: $dollars | J18: =IF($F18=0,0,SUMPRODUCT('Input | Exit Fees'!J$69:J$83,('Input | Exit Fees'!$D$49:$D$63=$F18)/1)) -> 0 | K18: =IF($F18=0,0,SUMPRODUCT('Input | Exit Fees'!K$69:K$83,('Input | Exit Fees'!$D$49:$D$63=$F18)/1)) -> 0 | L18: =IF($F18=0,0,SUMPRODUCT('Input | Exit Fees'!L$69:L$83,('Input | Exit Fees'!$D$49:$D$63=$F18)/1)) -> 0 | M18: =IF($F18=0,0,SUMPRODUCT('Input | Exit Fees'!M$69:M$83,('Input | Exit Fees'!$D$49:$D$63=$F18)/1)) -> 0 | N18: =IF($F18=0,0,SUMPRODUCT('Input | Exit Fees'!N$69:N$83,('Input | Exit Fees'!$D$49:$D$63=$F18)/1)) -> 0 | O18: =IF($F18=0,0,SUMPRODUCT('Input | Exit Fees'!O$69:O$83,('Input | Exit Fees'!$D$49:$D$63=$F18)/1)) -> 0
F19: 0 | G19: $dollars | J19: =IF($F19=0,0,SUMPRODUCT('Input | Exit Fees'!J$69:J$83,('Input | Exit Fees'!$D$49:$D$63=$F19)/1)) -> 0 | K19: =IF($F19=0,0,SUMPRODUCT('Input | Exit Fees'!K$69:K$83,('Input | Exit Fees'!$D$49:$D$63=$F19)/1)) -> 0 | L19: =IF($F19=0,0,SUMPRODUCT('Input | Exit Fees'!L$69:L$83,('Input | Exit Fees'!$D$49:$D$63=$F19)/1)) -> 0 | M19: =IF($F19=0,0,SUMPRODUCT('Input | Exit Fees'!M$69:M$83,('Input | Exit Fees'!$D$49:$D$63=$F19)/1)) -> 0 | N19: =IF($F19=0,0,SUMPRODUCT('Input | Exit Fees'!N$69:N$83,('Input | Exit Fees'!$D$49:$D$63=$F19)/1)) -> 0 | O19: =IF($F19=0,0,SUMPRODUCT('Input | Exit Fees'!O$69:O$83,('Input | Exit Fees'!$D$49:$D$63=$F19)/1)) -> 0
F20: 0 | G20: $dollars | J20: =IF($F20=0,0,SUMPRODUCT('Input | Exit Fees'!J$69:J$83,('Input | Exit Fees'!$D$49:$D$63=$F20)/1)) -> 0 | K20: =IF($F20=0,0,SUMPRODUCT('Input | Exit Fees'!K$69:K$83,('Input | Exit Fees'!$D$49:$D$63=$F20)/1)) -> 0 | L20: =IF($F20=0,0,SUMPRODUCT('Input | Exit Fees'!L$69:L$83,('Input | Exit Fees'!$D$49:$D$63=$F20)/1)) -> 0 | M20: =IF($F20=0,0,SUMPRODUCT('Input | Exit Fees'!M$69:M$83,('Input | Exit Fees'!$D$49:$D$63=$F20)/1)) -> 0 | N20: =IF($F20=0,0,SUMPRODUCT('Input | Exit Fees'!N$69:N$83,('Input | Exit Fees'!$D$49:$D$63=$F20)/1)) -> 0 | O20: =IF($F20=0,0,SUMPRODUCT('Input | Exit Fees'!O$69:O$83,('Input | Exit Fees'!$D$49:$D$63=$F20)/1)) -> 0
F21: Total | G21: $dollars | J21: =SUM(J11:J20) -> 854475.274 | K21: 869966.4556 | L21: 885802.8438 | M21: 901977.2902 | N21: 918512.3677 | O21: 935407.8987
E24: Cost-Weighted Volume of Meters | K24: Regulatory period
F25: Exit Fee | G25: Units | K25: =FPFirstYear -> 2026-27 | L25: =LEFT(K25,4)+1&"-"&RIGHT(K25,2)+1 -> 2027-28 | M25: =LEFT(L25,4)+1&"-"&RIGHT(L25,2)+1 -> 2028-29 | N25: =LEFT(M25,4)+1&"-"&RIGHT(M25,2)+1 -> 2029-30 | O25: =LEFT(N25,4)+1&"-"&RIGHT(N25,2)+1 -> 2030-31
F26: ='Input | Exit Fees'!$D$29:$D$38 -> Single phase single element | G26: $dollars | K26: =SUMPRODUCT('Input | Exit Fees'!$M$49:$M$63,'Input | Exit Fees'!K$69:K$83,('Input | Exit Fees'!$D$49:$D$63=$F26)/1) -> 324541834.3 | L26: =SUMPRODUCT('Input | Exit Fees'!$M$49:$M$63,'Input | Exit Fees'!L$69:L$83,('Input | Exit Fees'!$D$49:$D$63=$F26)/1) -> 326873201.8 | M26: =SUMPRODUCT('Input | Exit Fees'!$M$49:$M$63,'Input | Exit Fees'!M$69:M$83,('Input | Exit Fees'!$D$49:$D$63=$F26)/1) -> 328385116.1 | N26: =SUMPRODUCT('Input | Exit Fees'!$M$49:$M$63,'Input | Exit Fees'!N$69:N$83,('Input | Exit Fees'!$D$49:$D$63=$F26)/1) -> 329077094.8 | O26: =SUMPRODUCT('Input | Exit Fees'!$M$49:$M$63,'Input | Exit Fees'!O$69:O$83,('Input | Exit Fees'!$D$49:$D$63=$F26)/1) -> 328842241.2
F27: Single phase two element with contactor | G27: $dollars | K27: =SUMPRODUCT('Input | Exit Fees'!$M$49:$M$63,'Input | Exit Fees'!K$69:K$83,('Input | Exit Fees'!$D$49:$D$63=$F27)/1) -> 67656397.49 | L27: =SUMPRODUCT('Input | Exit Fees'!$M$49:$M$63,'Input | Exit Fees'!L$69:L$83,('Input | Exit Fees'!$D$49:$D$63=$F27)/1) -> 66836082.37 | M27: =SUMPRODUCT('Input | Exit Fees'!$M$49:$M$63,'Input | Exit Fees'!M$69:M$83,('Input | Exit Fees'!$D$49:$D$63=$F27)/1) -> 66006365.3 | N27: =SUMPRODUCT('Input | Exit Fees'!$M$49:$M$63,'Input | Exit Fees'!N$69:N$83,('Input | Exit Fees'!$D$49:$D$63=$F27)/1) -> 65173987.46 | O27: =SUMPRODUCT('Input | Exit Fees'!$M$49:$M$63,'Input | Exit Fees'!O$69:O$83,('Input | Exit Fees'!$D$49:$D$63=$F27)/1) -> 64320925.69
F28: Multiphase | G28: $dollars | K28: =SUMPRODUCT('Input | Exit Fees'!$M$49:$M$63,'Input | Exit Fees'!K$69:K$83,('Input | Exit Fees'!$D$49:$D$63=$F28)/1) -> 114896472.8 | L28: =SUMPRODUCT('Input | Exit Fees'!$M$49:$M$63,'Input | Exit Fees'!L$69:L$83,('Input | Exit Fees'!$D$49:$D$63=$F28)/1) -> 123720608.6 | M28: =SUMPRODUCT('Input | Exit Fees'!$M$49:$M$63,'Input | Exit Fees'!M$69:M$83,('Input | Exit Fees'!$D$49:$D$63=$F28)/1) -> 133778292.4 | N28: =SUMPRODUCT('Input | Exit Fees'!$M$49:$M$63,'Input | Exit Fees'!N$69:N$83,('Input | Exit Fees'!$D$49:$D$63=$F28)/1) -> 145077547.7 | O28: =SUMPRODUCT('Input | Exit Fees'!$M$49:$M$63,'Input | Exit Fees'!O$69:O$83,('Input | Exit Fees'!$D$49:$D$63=$F28)/1) -> 157768868.5
F29: Multiphase CT connected | G29: $dollars | K29: =SUMPRODUCT('Input | Exit Fees'!$M$49:$M$63,'Input | Exit Fees'!K$69:K$83,('Input | Exit Fees'!$D$49:$D$63=$F29)/1) -> 6636143.811 | L29: =SUMPRODUCT('Input | Exit Fees'!$M$49:$M$63,'Input | Exit Fees'!L$69:L$83,('Input | Exit Fees'!$D$49:$D$63=$F29)/1) -> 6742129.711 | M29: =SUMPRODUCT('Input | Exit Fees'!$M$49:$M$63,'Input | Exit Fees'!M$69:M$83,('Input | Exit Fees'!$D$49:$D$63=$F29)/1) -> 6849188.554 | N29: =SUMPRODUCT('Input | Exit Fees'!$M$49:$M$63,'Input | Exit Fees'!N$69:N$83,('Input | Exit Fees'!$D$49:$D$63=$F29)/1) -> 6957403.435 | O29: =SUMPRODUCT('Input | Exit Fees'!$M$49:$M$63,'Input | Exit Fees'!O$69:O$83,('Input | Exit Fees'!$D$49:$D$63=$F29)/1) -> 7066731.971
F30: 0 | G30: $dollars | K30: =SUMPRODUCT('Input | Exit Fees'!$M$49:$M$63,'Input | Exit Fees'!K$69:K$83,('Input | Exit Fees'!$D$49:$D$63=$F30)/1) -> 0 | L30: =SUMPRODUCT('Input | Exit Fees'!$M$49:$M$63,'Input | Exit Fees'!L$69:L$83,('Input | Exit Fees'!$D$49:$D$63=$F30)/1) -> 0 | M30: =SUMPRODUCT('Input | Exit Fees'!$M$49:$M$63,'Input | Exit Fees'!M$69:M$83,('Input | Exit Fees'!$D$49:$D$63=$F30)/1) -> 0 | N30: =SUMPRODUCT('Input | Exit Fees'!$M$49:$M$63,'Input | Exit Fees'!N$69:N$83,('Input | Exit Fees'!$D$49:$D$63=$F30)/1) -> 0 | O30: =SUMPRODUCT('Input | Exit Fees'!$M$49:$M$63,'Input | Exit Fees'!O$69:O$83,('Input | Exit Fees'!$D$49:$D$63=$F30)/1) -> 0
F31: 0 | G31: $dollars | K31: =SUMPRODUCT('Input | Exit Fees'!$M$49:$M$63,'Input | Exit Fees'!K$69:K$83,('Input | Exit Fees'!$D$49:$D$63=$F31)/1) -> 0 | L31: =SUMPRODUCT('Input | Exit Fees'!$M$49:$M$63,'Input | Exit Fees'!L$69:L$83,('Input | Exit Fees'!$D$49:$D$63=$F31)/1) -> 0 | M31: =SUMPRODUCT('Input | Exit Fees'!$M$49:$M$63,'Input | Exit Fees'!M$69:M$83,('Input | Exit Fees'!$D$49:$D$63=$F31)/1) -> 0 | N31: =SUMPRODUCT('Input | Exit Fees'!$M$49:$M$63,'Input | Exit Fees'!N$69:N$83,('Input | Exit Fees'!$D$49:$D$63=$F31)/1) -> 0 | O31: =SUMPRODUCT('Input | Exit Fees'!$M$49:$M$63,'Input | Exit Fees'!O$69:O$83,('Input | Exit Fees'!$D$49:$D$63=$F31)/1) -> 0
F32: 0 | G32: $dollars | K32: =SUMPRODUCT('Input | Exit Fees'!$M$49:$M$63,'Input | Exit Fees'!K$69:K$83,('Input | Exit Fees'!$D$49:$D$63=$F32)/1) -> 0 | L32: =SUMPRODUCT('Input | Exit Fees'!$M$49:$M$63,'Input | Exit Fees'!L$69:L$83,('Input | Exit Fees'!$D$49:$D$63=$F32)/1) -> 0 | M32: =SUMPRODUCT('Input | Exit Fees'!$M$49:$M$63,'Input | Exit Fees'!M$69:M$83,('Input | Exit Fees'!$D$49:$D$63=$F32)/1) -> 0 | N32: =SUMPRODUCT('Input | Exit Fees'!$M$49:$M$63,'Input | Exit Fees'!N$69:N$83,('Input | Exit Fees'!$D$49:$D$63=$F32)/1) -> 0 | O32: =SUMPRODUCT('Input | Exit Fees'!$M$49:$M$63,'Input | Exit Fees'!O$69:O$83,('Input | Exit Fees'!$D$49:$D$63=$F32)/1) -> 0
F33: 0 | G33: $dollars | K33: =SUMPRODUCT('Input | Exit Fees'!$M$49:$M$63,'Input | Exit Fees'!K$69:K$83,('Input | Exit Fees'!$D$49:$D$63=$F33)/1) -> 0 | L33: =SUMPRODUCT('Input | Exit Fees'!$M$49:$M$63,'Input | Exit Fees'!L$69:L$83,('Input | Exit Fees'!$D$49:$D$63=$F33)/1) -> 0 | M33: =SUMPRODUCT('Input | Exit Fees'!$M$49:$M$63,'Input | Exit Fees'!M$69:M$83,('Input | Exit Fees'!$D$49:$D$63=$F33)/1) -> 0 | N33: =SUMPRODUCT('Input | Exit Fees'!$M$49:$M$63,'Input | Exit Fees'!N$69:N$83,('Input | Exit Fees'!$D$49:$D$63=$F33)/1) -> 0 | O33: =SUMPRODUCT('Input | Exit Fees'!$M$49:$M$63,'Input | Exit Fees'!O$69:O$83,('Input | Exit Fees'!$D$49:$D$63=$F33)/1) -> 0
F34: 0 | G34: $dollars | K34: =SUMPRODUCT('Input | Exit Fees'!$M$49:$M$63,'Input | Exit Fees'!K$69:K$83,('Input | Exit Fees'!$D$49:$D$63=$F34)/1) -> 0 | L34: =SUMPRODUCT('Input | Exit Fees'!$M$49:$M$63,'Input | Exit Fees'!L$69:L$83,('Input | Exit Fees'!$D$49:$D$63=$F34)/1) -> 0 | M34: =SUMPRODUCT('Input | Exit Fees'!$M$49:$M$63,'Input | Exit Fees'!M$69:M$83,('Input | Exit Fees'!$D$49:$D$63=$F34)/1) -> 0 | N34: =SUMPRODUCT('Input | Exit Fees'!$M$49:$M$63,'Input | Exit Fees'!N$69:N$83,('Input | Exit Fees'!$D$49:$D$63=$F34)/1) -> 0 | O34: =SUMPRODUCT('Input | Exit Fees'!$M$49:$M$63,'Input | Exit Fees'!O$69:O$83,('Input | Exit Fees'!$D$49:$D$63=$F34)/1) -> 0
F35: 0 | G35: $dollars | K35: =SUMPRODUCT('Input | Exit Fees'!$M$49:$M$63,'Input | Exit Fees'!K$69:K$83,('Input | Exit Fees'!$D$49:$D$63=$F35)/1) -> 0 | L35: =SUMPRODUCT('Input | Exit Fees'!$M$49:$M$63,'Input | Exit Fees'!L$69:L$83,('Input | Exit Fees'!$D$49:$D$63=$F35)/1) -> 0 | M35: =SUMPRODUCT('Input | Exit Fees'!$M$49:$M$63,'Input | Exit Fees'!M$69:M$83,('Input | Exit Fees'!$D$49:$D$63=$F35)/1) -> 0 | N35: =SUMPRODUCT('Input | Exit Fees'!$M$49:$M$63,'Input | Exit Fees'!N$69:N$83,('Input | Exit Fees'!$D$49:$D$63=$F35)/1) -> 0 | O35: =SUMPRODUCT('Input | Exit Fees'!$M$49:$M$63,'Input | Exit Fees'!O$69:O$83,('Input | Exit Fees'!$D$49:$D$63=$F35)/1) -> 0
F36: Total | G36: $dollars | K36: =SUM(K26:K35) -> 513730848.4 | L36: =SUM(L26:L35) -> 524172022.4 | M36: =SUM(M26:M35) -> 535018962.4 | N36: =SUM(N26:N35) -> 546286033.3 | O36: =SUM(O26:O35) -> 557998767.3
E39: Proportionate Volume-Weighted Costs | K39: Regulatory period
F40: Exit Fee | G40: Units | K40: =FPFirstYear -> 2026-27 | L40: =LEFT(K40,4)+1&"-"&RIGHT(K40,2)+1 -> 2027-28 | M40: =LEFT(L40,4)+1&"-"&RIGHT(L40,2)+1 -> 2028-29 | N40: =LEFT(M40,4)+1&"-"&RIGHT(M40,2)+1 -> 2029-30 | O40: =LEFT(N40,4)+1&"-"&RIGHT(N40,2)+1 -> 2030-31
F41: ='Input | Exit Fees'!$D$29:$D$38 -> Single phase single element | G41: % | K41: =K26/K$36 -> 0.6317351494 | L41: 0.6235991007 | M41: 0.6137822006 | N41: 0.6023897275 | O41: 0.5893243147
F42: Single phase two element with contactor | G42: % | K42: 0.131696194 | L42: 0.1275079163 | M42: 0.123372011 | N42: 0.1193037777 | O42: 0.1152707308
F43: Multiphase | G43: % | K43: 0.2236511068 | L43: 0.2360305458 | M43: 0.2500440206 | N43: 0.2655706696 | O43: 0.2827405323
F44: Multiphase CT connected | G44: % | K44: 0.01291754979 | L44: 0.01286243718 | M44: 0.01280176786 | N44: 0.01273582521 | O44: 0.01266442219
F45: 0 | G45: % | K45: 0 | L45: 0 | M45: 0 | N45: 0 | O45: 0
F46: 0 | G46: % | K46: 0 | L46: 0 | M46: 0 | N46: 0 | O46: 0
F47: 0 | G47: % | K47: 0 | L47: 0 | M47: 0 | N47: 0 | O47: 0
F48: 0 | G48: % | K48: 0 | L48: 0 | M48: 0 | N48: 0 | O48: 0
F49: 0 | G49: % | K49: 0 | L49: 0 | M49: 0 | N49: 0 | O49: 0
F50: 0 | G50: % | K50: 0 | L50: 0 | M50: 0 | N50: 0 | O50: 0
F51: Total | G51: % | K51: =SUM(K41:K50) -> 1 | L51: =SUM(L41:L50) -> 1 | M51: =SUM(M41:M50) -> 1 | N51: =SUM(N41:N50) -> 1 | O51: =SUM(O41:O50) -> 1
A52: =PRODUCT(J52:O52) -> 1 | K52: =(K51=1)/1 -> 1 | L52: =(L51=1)/1 -> 1 | M52: =(M51=1)/1 -> 1 | N52: =(N51=1)/1 -> 1 | O52: =(O51=1)/1 -> 1
E55: Allocated Meter RAB by Designated Exit Fee | K55: Regulatory period
F56: Exit Fee | G56: Units | K56: =FPFirstYear -> 2026-27 | L56: =LEFT(K56,4)+1&"-"&RIGHT(K56,2)+1 -> 2027-28 | M56: =LEFT(L56,4)+1&"-"&RIGHT(L56,2)+1 -> 2028-29 | N56: =LEFT(M56,4)+1&"-"&RIGHT(M56,2)+1 -> 2029-30 | O56: =LEFT(N56,4)+1&"-"&RIGHT(N56,2)+1 -> 2030-31
F57: ='Input | Exit Fees'!$D$29:$D$38 -> Single phase single element | G57: $m | K57: =AVERAGE('Input | Exit Fees'!G$8:H$9)*'Calc | Exit Fees'!K41 -> 47.52218907 | L57: =AVERAGE('Input | Exit Fees'!H$8:I$9)*'Calc | Exit Fees'!L41 -> 40.00417884 | M57: =AVERAGE('Input | Exit Fees'!I$8:J$9)*'Calc | Exit Fees'!M41 -> 34.19450495 | N57: =AVERAGE('Input | Exit Fees'!J$8:K$9)*'Calc | Exit Fees'!N41 -> 43.43075824 | O57: =AVERAGE('Input | Exit Fees'!K$8:L$9)*'Calc | Exit Fees'!O41 -> 64.07729603
F58: Single phase two element with contactor | G58: $m | K58: =AVERAGE('Input | Exit Fees'!G$8:H$9)*'Calc | Exit Fees'!K42 -> 9.906827945 | L58: =AVERAGE('Input | Exit Fees'!H$8:I$9)*'Calc | Exit Fees'!L42 -> 8.179693463 | M58: =AVERAGE('Input | Exit Fees'!I$8:J$9)*'Calc | Exit Fees'!M42 -> 6.873195143 | N58: =AVERAGE('Input | Exit Fees'!J$8:K$9)*'Calc | Exit Fees'!N42 -> 8.601497149 | O58: =AVERAGE('Input | Exit Fees'!K$8:L$9)*'Calc | Exit Fees'!O42 -> 12.53339894
F59: Multiphase | G59: $m | K59: =AVERAGE('Input | Exit Fees'!G$8:H$9)*'Calc | Exit Fees'!K43 -> 16.82412351 | L59: =AVERAGE('Input | Exit Fees'!H$8:I$9)*'Calc | Exit Fees'!L43 -> 15.14147175 | M59: =AVERAGE('Input | Exit Fees'!I$8:J$9)*'Calc | Exit Fees'!M43 -> 13.93023697 | N59: =AVERAGE('Input | Exit Fees'!J$8:K$9)*'Calc | Exit Fees'!N43 -> 19.14696586 | O59: =AVERAGE('Input | Exit Fees'!K$8:L$9)*'Calc | Exit Fees'!O43 -> 30.74240844
F60: Multiphase CT connected | G60: $m | K60: =AVERAGE('Input | Exit Fees'!G$8:H$9)*'Calc | Exit Fees'!K44 -> 0.9717208925 | L60: =AVERAGE('Input | Exit Fees'!H$8:I$9)*'Calc | Exit Fees'!L44 -> 0.8251314615 | M60: =AVERAGE('Input | Exit Fees'!I$8:J$9)*'Calc | Exit Fees'!M44 -> 0.7132010571 | N60: =AVERAGE('Input | Exit Fees'!J$8:K$9)*'Calc | Exit Fees'!N44 -> 0.918220415 | O60: =AVERAGE('Input | Exit Fees'!K$8:L$9)*'Calc | Exit Fees'!O44 -> 1.377003985
F61: 0 | G61: $m | K61: =AVERAGE('Input | Exit Fees'!G$8:H$9)*'Calc | Exit Fees'!K45 -> 0 | L61: =AVERAGE('Input | Exit Fees'!H$8:I$9)*'Calc | Exit Fees'!L45 -> 0 | M61: =AVERAGE('Input | Exit Fees'!I$8:J$9)*'Calc | Exit Fees'!M45 -> 0 | N61: =AVERAGE('Input | Exit Fees'!J$8:K$9)*'Calc | Exit Fees'!N45 -> 0 | O61: =AVERAGE('Input | Exit Fees'!K$8:L$9)*'Calc | Exit Fees'!O45 -> 0
F62: 0 | G62: $m | K62: =AVERAGE('Input | Exit Fees'!G$8:H$9)*'Calc | Exit Fees'!K46 -> 0 | L62: =AVERAGE('Input | Exit Fees'!H$8:I$9)*'Calc | Exit Fees'!L46 -> 0 | M62: =AVERAGE('Input | Exit Fees'!I$8:J$9)*'Calc | Exit Fees'!M46 -> 0 | N62: =AVERAGE('Input | Exit Fees'!J$8:K$9)*'Calc | Exit Fees'!N46 -> 0 | O62: =AVERAGE('Input | Exit Fees'!K$8:L$9)*'Calc | Exit Fees'!O46 -> 0
F63: 0 | G63: $m | K63: =AVERAGE('Input | Exit Fees'!G$8:H$9)*'Calc | Exit Fees'!K47 -> 0 | L63: =AVERAGE('Input | Exit Fees'!H$8:I$9)*'Calc | Exit Fees'!L47 -> 0 | M63: =AVERAGE('Input | Exit Fees'!I$8:J$9)*'Calc | Exit Fees'!M47 -> 0 | N63: =AVERAGE('Input | Exit Fees'!J$8:K$9)*'Calc | Exit Fees'!N47 -> 0 | O63: =AVERAGE('Input | Exit Fees'!K$8:L$9)*'Calc | Exit Fees'!O47 -> 0
F64: 0 | G64: $m | K64: =AVERAGE('Input | Exit Fees'!G$8:H$9)*'Calc | Exit Fees'!K48 -> 0 | L64: =AVERAGE('Input | Exit Fees'!H$8:I$9)*'Calc | Exit Fees'!L48 -> 0 | M64: =AVERAGE('Input | Exit Fees'!I$8:J$9)*'Calc | Exit Fees'!M48 -> 0 | N64: =AVERAGE('Input | Exit Fees'!J$8:K$9)*'Calc | Exit Fees'!N48 -> 0 | O64: =AVERAGE('Input | Exit Fees'!K$8:L$9)*'Calc | Exit Fees'!O48 -> 0
F65: 0 | G65: $m | K65: =AVERAGE('Input | Exit Fees'!G$8:H$9)*'Calc | Exit Fees'!K49 -> 0 | L65: =AVERAGE('Input | Exit Fees'!H$8:I$9)*'Calc | Exit Fees'!L49 -> 0 | M65: =AVERAGE('Input | Exit Fees'!I$8:J$9)*'Calc | Exit Fees'!M49 -> 0 | N65: =AVERAGE('Input | Exit Fees'!J$8:K$9)*'Calc | Exit Fees'!N49 -> 0 | O65: =AVERAGE('Input | Exit Fees'!K$8:L$9)*'Calc | Exit Fees'!O49 -> 0
F66: 0 | G66: $m | K66: =AVERAGE('Input | Exit Fees'!G$8:H$9)*'Calc | Exit Fees'!K50 -> 0 | L66: =AVERAGE('Input | Exit Fees'!H$8:I$9)*'Calc | Exit Fees'!L50 -> 0 | M66: =AVERAGE('Input | Exit Fees'!I$8:J$9)*'Calc | Exit Fees'!M50 -> 0 | N66: =AVERAGE('Input | Exit Fees'!J$8:K$9)*'Calc | Exit Fees'!N50 -> 0 | O66: =AVERAGE('Input | Exit Fees'!K$8:L$9)*'Calc | Exit Fees'!O50 -> 0
F67: Total | G67: $m | K67: =SUM(K57:K66) -> 75.22486142 | L67: =SUM(L57:L66) -> 64.15047551 | M67: =SUM(M57:M66) -> 55.71113812 | N67: =SUM(N57:N66) -> 72.09744166 | O67: =SUM(O57:O66) -> 108.7301074
A68: =PRODUCT(J68:O68) -> 1 | K68: =(K67=AVERAGE('Input | Exit Fees'!G$8:H$9))/1 -> 1 | L68: =(L67=AVERAGE('Input | Exit Fees'!H$8:I$9))/1 -> 1 | M68: =(M67=AVERAGE('Input | Exit Fees'!I$8:J$9))/1 -> 1 | N68: =(N67=AVERAGE('Input | Exit Fees'!J$8:K$9))/1 -> 1 | O68: =(O67=AVERAGE('Input | Exit Fees'!K$8:L$9))/1 -> 1
E70: Allocated Meter RAB by Designated Exit Fee Per Meter | K70: Regulatory period
F71: Exit Fee | G71: Units | K71: =FPFirstYear -> 2026-27 | L71: =LEFT(K71,4)+1&"-"&RIGHT(K71,2)+1 -> 2027-28 | M71: =LEFT(L71,4)+1&"-"&RIGHT(L71,2)+1 -> 2028-29 | N71: =LEFT(M71,4)+1&"-"&RIGHT(M71,2)+1 -> 2029-30 | O71: =LEFT(N71,4)+1&"-"&RIGHT(N71,2)+1 -> 2030-31
F72: ='Input | Exit Fees'!$D$29:$D$38 -> Single phase single element | G72: $dollars | K72: =IFERROR(K57*10^6/K11,0) -> 82.00876844 | L72: 68.54260115 | M72: 58.31864093 | N72: 73.91529178 | O72: 109.1317491
F73: Single phase two element with contactor | G73: $dollars | K73: 85.44459779 | L73: 71.4142536 | M73: 60.76195159 | N73: 77.01203782 | O73: 113.7039196
F74: Multiphase | G74: $dollars | K74: 99.43897075 | L74: 83.11069463 | M74: 70.71372659 | N74: 89.62530077 | O74: 132.3266892
F75: Multiphase CT connected | G75: $dollars | K75: 181.4732267 | L75: 151.6745982 | M75: 129.0504924 | N75: 163.5635647 | O75: 241.4923554
F76: 0 | G76: $dollars | K76: 0 | L76: 0 | M76: 0 | N76: 0 | O76: 0
F77: 0 | G77: $dollars | K77: 0 | L77: 0 | M77: 0 | N77: 0 | O77: 0
F78: 0 | G78: $dollars | K78: 0 | L78: 0 | M78: 0 | N78: 0 | O78: 0
F79: 0 | G79: $dollars | K79: 0 | L79: 0 | M79: 0 | N79: 0 | O79: 0
F80: 0 | G80: $dollars | K80: 0 | L80: 0 | M80: 0 | N80: 0 | O80: 0
F81: 0 | G81: $dollars | K81: 0 | L81: 0 | M81: 0 | N81: 0 | O81: 0
B83: Calculations | Comms & IT
C85: Calculation of Allocated Comms & IT RAB by Designated Exit Fee
K87: Regulatory period
F88: Exit Fee Component | G88: Units | K88: =FPFirstYear -> 2026-27 | L88: =LEFT(K88,4)+1&"-"&RIGHT(K88,2)+1 -> 2027-28 | M88: =LEFT(L88,4)+1&"-"&RIGHT(L88,2)+1 -> 2028-29 | N88: =LEFT(M88,4)+1&"-"&RIGHT(M88,2)+1 -> 2029-30 | O88: =LEFT(N88,4)+1&"-"&RIGHT(N88,2)+1 -> 2030-31
F89: Comms & IT RAB per meter | G89: $dollars | K89: =(AVERAGE('Input | Exit Fees'!G$16:H$16)*10^6)/'Calc | Exit Fees'!K$21 -> 47.67516654 | L89: =(AVERAGE('Input | Exit Fees'!H$16:I$16)*10^6)/'Calc | Exit Fees'!L$21 -> 44.35043226 | M89: =(AVERAGE('Input | Exit Fees'!I$16:J$16)*10^6)/'Calc | Exit Fees'!M$21 -> 38.21479067 | N89: =(AVERAGE('Input | Exit Fees'!J$16:K$16)*10^6)/'Calc | Exit Fees'!N$21 -> 33.44307608 | O89: =(AVERAGE('Input | Exit Fees'!K$16:L$16)*10^6)/'Calc | Exit Fees'!O$21 -> 29.44427741
B96: Calculations | Exit Fees with Component Detail
F98: Base Year | G98: Regulatory period
G99: Tariff ($/year)
C100: No. | D100: Exit Fee Name | E100: Component | F100: 2020-21 | G100: 2021-22 | H100: 2022-23 | I100: 2023-24 | J100: 2024-25 | K100: 2025-26
C101: 1 | D101: ='Input | Exit Fees'!D29 -> Single phase single element
E102: Meter RAB | G102: =IF($D101=0,0,SUMIFS('Calc | Exit Fees'!K$72:K$81,'Input | Exit Fees'!$D$29:$D$38,$D101)) -> 82.00876844 | H102: =IF($D101=0,0,SUMIFS('Calc | Exit Fees'!L$72:L$81,'Input | Exit Fees'!$D$29:$D$38,$D101)) -> 68.54260115 | I102: =IF($D101=0,0,SUMIFS('Calc | Exit Fees'!M$72:M$81,'Input | Exit Fees'!$D$29:$D$38,$D101)) -> 58.31864093 | J102: =IF($D101=0,0,SUMIFS('Calc | Exit Fees'!N$72:N$81,'Input | Exit Fees'!$D$29:$D$38,$D101)) -> 73.91529178 | K102: =IF($D101=0,0,SUMIFS('Calc | Exit Fees'!O$72:O$81,'Input | Exit Fees'!$D$29:$D$38,$D101)) -> 109.1317491
E103: Comms & IT | G103: =IF($D101=0,0,'Calc | Exit Fees'!K$89) -> 47.67516654 | H103: =IF($D101=0,0,'Calc | Exit Fees'!L$89) -> 44.35043226 | I103: =IF($D101=0,0,'Calc | Exit Fees'!M$89) -> 38.21479067 | J103: =IF($D101=0,0,'Calc | Exit Fees'!N$89) -> 33.44307608 | K103: =IF($D101=0,0,'Calc | Exit Fees'!O$89) -> 29.44427741
E104: Admin cost | G104: =IF($D101=0,0,'Input | Exit Fees'!K$119) -> 80.83973911 | H104: =IF($D101=0,0,'Input | Exit Fees'!L$119) -> 80.83973911 | I104: =IF($D101=0,0,'Input | Exit Fees'!M$119) -> 80.83973911 | J104: =IF($D101=0,0,'Input | Exit Fees'!N$119) -> 80.83973911 | K104: =IF($D101=0,0,'Input | Exit Fees'!O$119) -> 80.83973911
E106: TOTAL exit fee | F106: =IF(D101=0,0,'Input | Exit Fees'!G29) -> 287.57 | G106: =SUM(G102:G105) -> 210.5236741 | H106: =SUM(H102:H105) -> 193.7327725 | I106: 177.3731707 | J106: 188.198107 | K106: 219.4157657
C107: 2 | D107: ='Input | Exit Fees'!D30 -> Single phase two element with contactor
E108: =IF($D107=0,"",E$102) -> Meter RAB | G108: =IF($D107=0,0,SUMIFS('Calc | Exit Fees'!K$72:K$81,'Input | Exit Fees'!$D$29:$D$38,$D107)) -> 85.44459779 | H108: =IF($D107=0,0,SUMIFS('Calc | Exit Fees'!L$72:L$81,'Input | Exit Fees'!$D$29:$D$38,$D107)) -> 71.4142536 | I108: =IF($D107=0,0,SUMIFS('Calc | Exit Fees'!M$72:M$81,'Input | Exit Fees'!$D$29:$D$38,$D107)) -> 60.76195159 | J108: =IF($D107=0,0,SUMIFS('Calc | Exit Fees'!N$72:N$81,'Input | Exit Fees'!$D$29:$D$38,$D107)) -> 77.01203782 | K108: =IF($D107=0,0,SUMIFS('Calc | Exit Fees'!O$72:O$81,'Input | Exit Fees'!$D$29:$D$38,$D107)) -> 113.7039196
E109: =IF($D107=0,"",E$103) -> Comms & IT | G109: =IF($D107=0,0,'Calc | Exit Fees'!K$89) -> 47.67516654 | H109: =IF($D107=0,0,'Calc | Exit Fees'!L$89) -> 44.35043226 | I109: =IF($D107=0,0,'Calc | Exit Fees'!M$89) -> 38.21479067 | J109: =IF($D107=0,0,'Calc | Exit Fees'!N$89) -> 33.44307608 | K109: =IF($D107=0,0,'Calc | Exit Fees'!O$89) -> 29.44427741
E110: =IF($D107=0,"",E$104) -> Admin cost | G110: =IF($D107=0,0,'Input | Exit Fees'!K$119) -> 80.83973911 | H110: =IF($D107=0,0,'Input | Exit Fees'!L$119) -> 80.83973911 | I110: =IF($D107=0,0,'Input | Exit Fees'!M$119) -> 80.83973911 | J110: =IF($D107=0,0,'Input | Exit Fees'!N$119) -> 80.83973911 | K110: =IF($D107=0,0,'Input | Exit Fees'!O$119) -> 80.83973911
E112: =IF($D107=0,"",E$106) -> TOTAL exit fee | F112: =IF(D107=0,0,'Input | Exit Fees'!G30) -> 287.57 | G112: =SUM(G108:G111) -> 213.9595034 | H112: =SUM(H108:H111) -> 196.604425 | I112: 179.8164814 | J112: 191.294853 | K112: 223.9879361
C113: 3 | D113: ='Input | Exit Fees'!D31 -> Multiphase
E114: =IF($D113=0,"",E$102) -> Meter RAB | G114: =IF($D113=0,0,SUMIFS('Calc | Exit Fees'!K$72:K$81,'Input | Exit Fees'!$D$29:$D$38,$D113)) -> 99.43897075 | H114: =IF($D113=0,0,SUMIFS('Calc | Exit Fees'!L$72:L$81,'Input | Exit Fees'!$D$29:$D$38,$D113)) -> 83.11069463 | I114: =IF($D113=0,0,SUMIFS('Calc | Exit Fees'!M$72:M$81,'Input | Exit Fees'!$D$29:$D$38,$D113)) -> 70.71372659 | J114: =IF($D113=0,0,SUMIFS('Calc | Exit Fees'!N$72:N$81,'Input | Exit Fees'!$D$29:$D$38,$D113)) -> 89.62530077 | K114: =IF($D113=0,0,SUMIFS('Calc | Exit Fees'!O$72:O$81,'Input | Exit Fees'!$D$29:$D$38,$D113)) -> 132.3266892
E115: =IF($D113=0,"",E$103) -> Comms & IT | G115: =IF($D113=0,0,'Calc | Exit Fees'!K$89) -> 47.67516654 | H115: =IF($D113=0,0,'Calc | Exit Fees'!L$89) -> 44.35043226 | I115: =IF($D113=0,0,'Calc | Exit Fees'!M$89) -> 38.21479067 | J115: =IF($D113=0,0,'Calc | Exit Fees'!N$89) -> 33.44307608 | K115: =IF($D113=0,0,'Calc | Exit Fees'!O$89) -> 29.44427741
E116: =IF($D113=0,"",E$104) -> Admin cost | G116: =IF($D113=0,0,'Input | Exit Fees'!K$119) -> 80.83973911 | H116: =IF($D113=0,0,'Input | Exit Fees'!L$119) -> 80.83973911 | I116: =IF($D113=0,0,'Input | Exit Fees'!M$119) -> 80.83973911 | J116: =IF($D113=0,0,'Input | Exit Fees'!N$119) -> 80.83973911 | K116: =IF($D113=0,0,'Input | Exit Fees'!O$119) -> 80.83973911
E118: =IF($D113=0,"",E$106) -> TOTAL exit fee | F118: =IF(D113=0,0,'Input | Exit Fees'!G31) -> 287.57 | G118: =SUM(G114:G117) -> 227.9538764 | H118: =SUM(H114:H117) -> 208.300866 | I118: 189.7682564 | J118: 203.908116 | K118: 242.6107057
C119: 4 | D119: ='Input | Exit Fees'!D32 -> Multiphase CT connected
E120: =IF($D119=0,"",E$102) -> Meter RAB | G120: =IF($D119=0,0,SUMIFS('Calc | Exit Fees'!K$72:K$81,'Input | Exit Fees'!$D$29:$D$38,$D119)) -> 181.4732267 | H120: =IF($D119=0,0,SUMIFS('Calc | Exit Fees'!L$72:L$81,'Input | Exit Fees'!$D$29:$D$38,$D119)) -> 151.6745982 | I120: =IF($D119=0,0,SUMIFS('Calc | Exit Fees'!M$72:M$81,'Input | Exit Fees'!$D$29:$D$38,$D119)) -> 129.0504924 | J120: =IF($D119=0,0,SUMIFS('Calc | Exit Fees'!N$72:N$81,'Input | Exit Fees'!$D$29:$D$38,$D119)) -> 163.5635647 | K120: =IF($D119=0,0,SUMIFS('Calc | Exit Fees'!O$72:O$81,'Input | Exit Fees'!$D$29:$D$38,$D119)) -> 241.4923554
E121: =IF($D119=0,"",E$103) -> Comms & IT | G121: =IF($D119=0,0,'Calc | Exit Fees'!K$89) -> 47.67516654 | H121: =IF($D119=0,0,'Calc | Exit Fees'!L$89) -> 44.35043226 | I121: =IF($D119=0,0,'Calc | Exit Fees'!M$89) -> 38.21479067 | J121: =IF($D119=0,0,'Calc | Exit Fees'!N$89) -> 33.44307608 | K121: =IF($D119=0,0,'Calc | Exit Fees'!O$89) -> 29.44427741
E122: =IF($D119=0,"",E$104) -> Admin cost | G122: =IF($D119=0,0,'Input | Exit Fees'!K$119) -> 80.83973911 | H122: =IF($D119=0,0,'Input | Exit Fees'!L$119) -> 80.83973911 | I122: =IF($D119=0,0,'Input | Exit Fees'!M$119) -> 80.83973911 | J122: =IF($D119=0,0,'Input | Exit Fees'!N$119) -> 80.83973911 | K122: =IF($D119=0,0,'Input | Exit Fees'!O$119) -> 80.83973911
E124: =IF($D119=0,"",E$106) -> TOTAL exit fee | F124: =IF(D119=0,0,'Input | Exit Fees'!G32) -> 287.57 | G124: =SUM(G120:G123) -> 309.9881324 | H124: =SUM(H120:H123) -> 276.8647695 | I124: 248.1050222 | J124: 277.8463799 | K124: 351.7763719
C125: 5 | D125: ='Input | Exit Fees'!D33 -> 0
E126: =IF($D125=0,"",E$102) ->  | G126: =IF($D125=0,0,SUMIFS('Calc | Exit Fees'!K$72:K$81,'Input | Exit Fees'!$D$29:$D$38,$D125)) -> 0 | H126: =IF($D125=0,0,SUMIFS('Calc | Exit Fees'!L$72:L$81,'Input | Exit Fees'!$D$29:$D$38,$D125)) -> 0 | I126: =IF($D125=0,0,SUMIFS('Calc | Exit Fees'!M$72:M$81,'Input | Exit Fees'!$D$29:$D$38,$D125)) -> 0 | J126: =IF($D125=0,0,SUMIFS('Calc | Exit Fees'!N$72:N$81,'Input | Exit Fees'!$D$29:$D$38,$D125)) -> 0 | K126: =IF($D125=0,0,SUMIFS('Calc | Exit Fees'!O$72:O$81,'Input | Exit Fees'!$D$29:$D$38,$D125)) -> 0
E127: =IF($D125=0,"",E$103) ->  | G127: =IF($D125=0,0,'Calc | Exit Fees'!K$89) -> 0 | H127: =IF($D125=0,0,'Calc | Exit Fees'!L$89) -> 0 | I127: =IF($D125=0,0,'Calc | Exit Fees'!M$89) -> 0 | J127: =IF($D125=0,0,'Calc | Exit Fees'!N$89) -> 0 | K127: =IF($D125=0,0,'Calc | Exit Fees'!O$89) -> 0
E128: =IF($D125=0,"",E$104) ->  | G128: =IF($D125=0,0,'Input | Exit Fees'!K$119) -> 0 | H128: =IF($D125=0,0,'Input | Exit Fees'!L$119) -> 0 | I128: =IF($D125=0,0,'Input | Exit Fees'!M$119) -> 0 | J128: =IF($D125=0,0,'Input | Exit Fees'!N$119) -> 0 | K128: =IF($D125=0,0,'Input | Exit Fees'!O$119) -> 0
E130: =IF($D125=0,"",E$106) ->  | F130: =IF(D125=0,0,'Input | Exit Fees'!G33) -> 0 | G130: =SUM(G126:G129) -> 0 | H130: =SUM(H126:H129) -> 0 | I130: 0 | J130: 0 | K130: 0
C131: 6 | D131: ='Input | Exit Fees'!D34 -> 0
E132: =IF($D131=0,"",E$102) ->  | G132: =IF($D131=0,0,SUMIFS('Calc | Exit Fees'!K$72:K$81,'Input | Exit Fees'!$D$29:$D$38,$D131)) -> 0 | H132: =IF($D131=0,0,SUMIFS('Calc | Exit Fees'!L$72:L$81,'Input | Exit Fees'!$D$29:$D$38,$D131)) -> 0 | I132: =IF($D131=0,0,SUMIFS('Calc | Exit Fees'!M$72:M$81,'Input | Exit Fees'!$D$29:$D$38,$D131)) -> 0 | J132: =IF($D131=0,0,SUMIFS('Calc | Exit Fees'!N$72:N$81,'Input | Exit Fees'!$D$29:$D$38,$D131)) -> 0 | K132: =IF($D131=0,0,SUMIFS('Calc | Exit Fees'!O$72:O$81,'Input | Exit Fees'!$D$29:$D$38,$D131)) -> 0
E133: =IF($D131=0,"",E$103) ->  | G133: =IF($D131=0,0,'Calc | Exit Fees'!K$89) -> 0 | H133: =IF($D131=0,0,'Calc | Exit Fees'!L$89) -> 0 | I133: =IF($D131=0,0,'Calc | Exit Fees'!M$89) -> 0 | J133: =IF($D131=0,0,'Calc | Exit Fees'!N$89) -> 0 | K133: =IF($D131=0,0,'Calc | Exit Fees'!O$89) -> 0
E134: =IF($D131=0,"",E$104) ->  | G134: =IF($D131=0,0,'Input | Exit Fees'!K$119) -> 0 | H134: =IF($D131=0,0,'Input | Exit Fees'!L$119) -> 0 | I134: =IF($D131=0,0,'Input | Exit Fees'!M$119) -> 0 | J134: =IF($D131=0,0,'Input | Exit Fees'!N$119) -> 0 | K134: =IF($D131=0,0,'Input | Exit Fees'!O$119) -> 0
E136: =IF($D131=0,"",E$106) ->  | F136: =IF(D131=0,0,'Input | Exit Fees'!G34) -> 0 | G136: =SUM(G132:G135) -> 0 | H136: =SUM(H132:H135) -> 0 | I136: 0 | J136: 0 | K136: 0
C137: 7 | D137: ='Input | Exit Fees'!D35 -> 0
E138: =IF($D137=0,"",E$102) ->  | G138: =IF($D137=0,0,SUMIFS('Calc | Exit Fees'!K$72:K$81,'Input | Exit Fees'!$D$29:$D$38,$D137)) -> 0 | H138: =IF($D137=0,0,SUMIFS('Calc | Exit Fees'!L$72:L$81,'Input | Exit Fees'!$D$29:$D$38,$D137)) -> 0 | I138: =IF($D137=0,0,SUMIFS('Calc | Exit Fees'!M$72:M$81,'Input | Exit Fees'!$D$29:$D$38,$D137)) -> 0 | J138: =IF($D137=0,0,SUMIFS('Calc | Exit Fees'!N$72:N$81,'Input | Exit Fees'!$D$29:$D$38,$D137)) -> 0 | K138: =IF($D137=0,0,SUMIFS('Calc | Exit Fees'!O$72:O$81,'Input | Exit Fees'!$D$29:$D$38,$D137)) -> 0
E139: =IF($D137=0,"",E$103) ->  | G139: =IF($D137=0,0,'Calc | Exit Fees'!K$89) -> 0 | H139: =IF($D137=0,0,'Calc | Exit Fees'!L$89) -> 0 | I139: =IF($D137=0,0,'Calc | Exit Fees'!M$89) -> 0 | J139: =IF($D137=0,0,'Calc | Exit Fees'!N$89) -> 0 | K139: =IF($D137=0,0,'Calc | Exit Fees'!O$89) -> 0
E140: =IF($D137=0,"",E$104) ->  | G140: =IF($D137=0,0,'Input | Exit Fees'!K$119) -> 0 | H140: =IF($D137=0,0,'Input | Exit Fees'!L$119) -> 0 | I140: =IF($D137=0,0,'Input | Exit Fees'!M$119) -> 0 | J140: =IF($D137=0,0,'Input | Exit Fees'!N$119) -> 0 | K140: =IF($D137=0,0,'Input | Exit Fees'!O$119) -> 0
E142: =IF($D137=0,"",E$106) ->  | F142: =IF(D137=0,0,'Input | Exit Fees'!G35) -> 0 | G142: =SUM(G138:G141) -> 0 | H142: =SUM(H138:H141) -> 0 | I142: 0 | J142: 0 | K142: 0
C143: 8 | D143: ='Input | Exit Fees'!D36 -> 0
E144: =IF($D143=0,"",E$102) ->  | G144: =IF($D143=0,0,SUMIFS('Calc | Exit Fees'!K$72:K$81,'Input | Exit Fees'!$D$29:$D$38,$D143)) -> 0 | H144: =IF($D143=0,0,SUMIFS('Calc | Exit Fees'!L$72:L$81,'Input | Exit Fees'!$D$29:$D$38,$D143)) -> 0 | I144: =IF($D143=0,0,SUMIFS('Calc | Exit Fees'!M$72:M$81,'Input | Exit Fees'!$D$29:$D$38,$D143)) -> 0 | J144: =IF($D143=0,0,SUMIFS('Calc | Exit Fees'!N$72:N$81,'Input | Exit Fees'!$D$29:$D$38,$D143)) -> 0 | K144: =IF($D143=0,0,SUMIFS('Calc | Exit Fees'!O$72:O$81,'Input | Exit Fees'!$D$29:$D$38,$D143)) -> 0
E145: =IF($D143=0,"",E$103) ->  | G145: =IF($D143=0,0,'Calc | Exit Fees'!K$89) -> 0 | H145: =IF($D143=0,0,'Calc | Exit Fees'!L$89) -> 0 | I145: =IF($D143=0,0,'Calc | Exit Fees'!M$89) -> 0 | J145: =IF($D143=0,0,'Calc | Exit Fees'!N$89) -> 0 | K145: =IF($D143=0,0,'Calc | Exit Fees'!O$89) -> 0
E146: =IF($D143=0,"",E$104) ->  | G146: =IF($D143=0,0,'Input | Exit Fees'!K$119) -> 0 | H146: =IF($D143=0,0,'Input | Exit Fees'!L$119) -> 0 | I146: =IF($D143=0,0,'Input | Exit Fees'!M$119) -> 0 | J146: =IF($D143=0,0,'Input | Exit Fees'!N$119) -> 0 | K146: =IF($D143=0,0,'Input | Exit Fees'!O$119) -> 0
E148: =IF($D143=0,"",E$106) ->  | F148: =IF(D143=0,0,'Input | Exit Fees'!G36) -> 0 | G148: =SUM(G144:G147) -> 0 | H148: =SUM(H144:H147) -> 0 | I148: 0 | J148: 0 | K148: 0
C149: 9 | D149: ='Input | Exit Fees'!D37 -> 0
E150: =IF($D149=0,"",E$102) ->  | G150: =IF($D149=0,0,SUMIFS('Calc | Exit Fees'!K$72:K$81,'Input | Exit Fees'!$D$29:$D$38,$D149)) -> 0 | H150: =IF($D149=0,0,SUMIFS('Calc | Exit Fees'!L$72:L$81,'Input | Exit Fees'!$D$29:$D$38,$D149)) -> 0 | I150: =IF($D149=0,0,SUMIFS('Calc | Exit Fees'!M$72:M$81,'Input | Exit Fees'!$D$29:$D$38,$D149)) -> 0 | J150: =IF($D149=0,0,SUMIFS('Calc | Exit Fees'!N$72:N$81,'Input | Exit Fees'!$D$29:$D$38,$D149)) -> 0 | K150: =IF($D149=0,0,SUMIFS('Calc | Exit Fees'!O$72:O$81,'Input | Exit Fees'!$D$29:$D$38,$D149)) -> 0
E151: =IF($D149=0,"",E$103) ->  | G151: =IF($D149=0,0,'Calc | Exit Fees'!K$89) -> 0 | H151: =IF($D149=0,0,'Calc | Exit Fees'!L$89) -> 0 | I151: =IF($D149=0,0,'Calc | Exit Fees'!M$89) -> 0 | J151: =IF($D149=0,0,'Calc | Exit Fees'!N$89) -> 0 | K151: =IF($D149=0,0,'Calc | Exit Fees'!O$89) -> 0
E152: =IF($D149=0,"",E$104) ->  | G152: =IF($D149=0,0,'Input | Exit Fees'!K$119) -> 0 | H152: =IF($D149=0,0,'Input | Exit Fees'!L$119) -> 0 | I152: =IF($D149=0,0,'Input | Exit Fees'!M$119) -> 0 | J152: =IF($D149=0,0,'Input | Exit Fees'!N$119) -> 0 | K152: =IF($D149=0,0,'Input | Exit Fees'!O$119) -> 0
E154: =IF($D149=0,"",E$106) ->  | F154: =IF(D149=0,0,'Input | Exit Fees'!G37) -> 0 | G154: =SUM(G150:G153) -> 0 | H154: =SUM(H150:H153) -> 0 | I154: 0 | J154: 0 | K154: 0
C155: 10 | D155: ='Input | Exit Fees'!D38 -> 0
E156: =IF($D155=0,"",E$102) ->  | G156: =IF($D155=0,0,SUMIFS('Calc | Exit Fees'!K$72:K$81,'Input | Exit Fees'!$D$29:$D$38,$D155)) -> 0 | H156: =IF($D155=0,0,SUMIFS('Calc | Exit Fees'!L$72:L$81,'Input | Exit Fees'!$D$29:$D$38,$D155)) -> 0 | I156: =IF($D155=0,0,SUMIFS('Calc | Exit Fees'!M$72:M$81,'Input | Exit Fees'!$D$29:$D$38,$D155)) -> 0 | J156: =IF($D155=0,0,SUMIFS('Calc | Exit Fees'!N$72:N$81,'Input | Exit Fees'!$D$29:$D$38,$D155)) -> 0 | K156: =IF($D155=0,0,SUMIFS('Calc | Exit Fees'!O$72:O$81,'Input | Exit Fees'!$D$29:$D$38,$D155)) -> 0
E157: =IF($D155=0,"",E$103) ->  | G157: =IF($D155=0,0,'Calc | Exit Fees'!K$89) -> 0 | H157: =IF($D155=0,0,'Calc | Exit Fees'!L$89) -> 0 | I157: =IF($D155=0,0,'Calc | Exit Fees'!M$89) -> 0 | J157: =IF($D155=0,0,'Calc | Exit Fees'!N$89) -> 0 | K157: =IF($D155=0,0,'Calc | Exit Fees'!O$89) -> 0
E158: =IF($D155=0,"",E$104) ->  | G158: =IF($D155=0,0,'Input | Exit Fees'!K$119) -> 0 | H158: =IF($D155=0,0,'Input | Exit Fees'!L$119) -> 0 | I158: =IF($D155=0,0,'Input | Exit Fees'!M$119) -> 0 | J158: =IF($D155=0,0,'Input | Exit Fees'!N$119) -> 0 | K158: =IF($D155=0,0,'Input | Exit Fees'!O$119) -> 0
E160: =IF($D155=0,"",E$106) ->  | F160: =IF(D155=0,0,'Input | Exit Fees'!G38) -> 0 | G160: =SUM(G156:G159) -> 0 | H160: =SUM(H156:H159) -> 0 | I160: 0 | J160: 0 | K160: 0

Sheet Output | Exit Fee price caps
B1: ='Title Page'!B8&" v"&'Title Page'!$C$10 -> Preliminary Standardised Metering Pricing Model v1 | M1: DNSP: | N1: D
B2: =MID(CELL("filename",A1),FIND("]",CELL("filename",A1))+1,255) -> Output | Exit Fee price caps | H2: Key: | I2: Input | J2: External Link | K2: Internal Link
C5: Applicable Exit Fees Price Caps
H7: Base Year | I7: Regulatory Period
D8: Exit Fee Name | F8: Units | G8: Basis | H8: 2025-26 | I8: =FPFirstYear -> 2026-27 | J8: =LEFT(I8,4)+1&"-"&RIGHT(I8,2)+1 -> 2027-28 | K8: =LEFT(J8,4)+1&"-"&RIGHT(J8,2)+1 -> 2028-29 | L8: =LEFT(K8,4)+1&"-"&RIGHT(K8,2)+1 -> 2029-30 | M8: =LEFT(L8,4)+1&"-"&RIGHT(L8,2)+1 -> 2030-31
D9: =D25 -> Single phase single element | F9: $dollars | G9: nominal | H9: =ROUND(H25,2) -> 287.57 | I9: =IF(I25=0,0,ROUND(H9*(1-I45)*(1+I$41),2)) -> 210.52 | J9: =IF(J25=0,0,ROUND(I9*(1-J45)*(1+J$41),2)) -> 193.73 | K9: 177.37 | L9: 188.19 | M9: 219.41
D10: =D26 -> Single phase two element with contactor | F10: $dollars | G10: nominal | H10: 287.57 | I10: 213.96 | J10: 196.6 | K10: 179.81 | L10: 191.29 | M10: 223.98
D11: Multiphase | F11: $dollars | G11: nominal | H11: =ROUND(H27,2) -> 287.57 | I11: =IF(I27=0,0,ROUND(H11*(1-I47)*(1+I$41),2)) -> 227.95 | J11: =IF(J27=0,0,ROUND(I11*(1-J47)*(1+J$41),2)) -> 208.3 | K11: 189.77 | L11: 203.91 | M11: 242.61
D12: Multiphase CT connected | F12: $dollars | G12: nominal | H12: 287.57 | I12: 309.99 | J12: 276.87 | K12: 248.11 | L12: 277.85 | M12: 351.78
D13: 0 | F13: $dollars | G13: nominal | H13: 0 | I13: 0 | J13: 0 | K13: 0 | L13: 0 | M13: 0
D14: 0 | F14: $dollars | G14: nominal | H14: 0 | I14: 0 | J14: 0 | K14: 0 | L14: 0 | M14: 0
D15: 0 | F15: $dollars | G15: nominal | H15: 0 | I15: 0 | J15: 0 | K15: 0 | L15: 0 | M15: 0
D16: 0 | F16: $dollars | G16: nominal | H16: 0 | I16: 0 | J16: 0 | K16: 0 | L16: 0 | M16: 0
D17: 0 | F17: $dollars | G17: nominal | H17: 0 | I17: 0 | J17: 0 | K17: 0 | L17: 0 | M17: 0
D18: 0 | F18: $dollars | G18: nominal | H18: 0 | I18: 0 | J18: 0 | K18: 0 | L18: 0 | M18: 0
C21: Exit Fees Per Meter
H23: Base Year | I23: Regulatory Period
D24: Exit Fee Name | F24: Units | G24: Basis | H24: =H8 -> 2025-26 | I24: =FPFirstYear -> 2026-27 | J24: =LEFT(I24,4)+1&"-"&RIGHT(I24,2)+1 -> 2027-28 | K24: =LEFT(J24,4)+1&"-"&RIGHT(J24,2)+1 -> 2028-29 | L24: =LEFT(K24,4)+1&"-"&RIGHT(K24,2)+1 -> 2029-30 | M24: =LEFT(L24,4)+1&"-"&RIGHT(L24,2)+1 -> 2030-31
D25: ='Input | Exit Fees'!$D29 -> Single phase single element | F25: $dollars | G25: nominal | H25: =INDEX(Table3[2020-21],MATCH('Output | Exit Fee price caps'!$D25,Table3[[Exit Fee Name]:[Exit Fee Name]],0)+5) -> 287.57 | I25: =INDEX(Table3[2021-22],MATCH('Output | Exit Fee price caps'!$D25,Table3[[Exit Fee Name]:[Exit Fee Name]],0)+5) -> 210.5236741 | J25: =INDEX(Table3[2022-23],MATCH('Output | Exit Fee price caps'!$D25,Table3[[Exit Fee Name]:[Exit Fee Name]],0)+5) -> 193.7327725 | K25: =INDEX(Table3[2023-24],MATCH('Output | Exit Fee price caps'!$D25,Table3[[Exit Fee Name]:[Exit Fee Name]],0)+5) -> 177.3731707 | L25: =INDEX(Table3[2024-25],MATCH('Output | Exit Fee price caps'!$D25,Table3[[Exit Fee Name]:[Exit Fee Name]],0)+5) -> 188.198107 | M25: =INDEX(Table3[2025-26],MATCH('Output | Exit Fee price caps'!$D25,Table3[[Exit Fee Name]:[Exit Fee Name]],0)+5) -> 219.4157657
D26: ='Input | Exit Fees'!$D30 -> Single phase two element with contactor | F26: $dollars | G26: nominal | H26: =INDEX(Table3[2020-21],MATCH('Output | Exit Fee price caps'!$D26,Table3[[Exit Fee Name]:[Exit Fee Name]],0)+5) -> 287.57 | I26: =INDEX(Table3[2021-22],MATCH('Output | Exit Fee price caps'!$D26,Table3[[Exit Fee Name]:[Exit Fee Name]],0)+5) -> 213.9595034 | J26: =INDEX(Table3[2022-23],MATCH('Output | Exit Fee price caps'!$D26,Table3[[Exit Fee Name]:[Exit Fee Name]],0)+5) -> 196.604425 | K26: =INDEX(Table3[2023-24],MATCH('Output | Exit Fee price caps'!$D26,Table3[[Exit Fee Name]:[Exit Fee Name]],0)+5) -> 179.8164814 | L26: =INDEX(Table3[2024-25],MATCH('Output | Exit Fee price caps'!$D26,Table3[[Exit Fee Name]:[Exit Fee Name]],0)+5) -> 191.294853 | M26: =INDEX(Table3[2025-26],MATCH('Output | Exit Fee price caps'!$D26,Table3[[Exit Fee Name]:[Exit Fee Name]],0)+5) -> 223.9879361
D27: ='Input | Exit Fees'!$D31 -> Multiphase | F27: $dollars | G27: nominal | H27: =INDEX(Table3[2020-21],MATCH('Output | Exit Fee price caps'!$D27,Table3[[Exit Fee Name]:[Exit Fee Name]],0)+5) -> 287.57 | I27: =INDEX(Table3[2021-22],MATCH('Output | Exit Fee price caps'!$D27,Table3[[Exit Fee Name]:[Exit Fee Name]],0)+5) -> 227.9538764 | J27: =INDEX(Table3[2022-23],MATCH('Output | Exit Fee price caps'!$D27,Table3[[Exit Fee Name]:[Exit Fee Name]],0)+5) -> 208.300866 | K27: =INDEX(Table3[2023-24],MATCH('Output | Exit Fee price caps'!$D27,Table3[[Exit Fee Name]:[Exit Fee Name]],0)+5) -> 189.7682564 | L27: =INDEX(Table3[2024-25],MATCH('Output | Exit Fee price caps'!$D27,Table3[[Exit Fee Name]:[Exit Fee Name]],0)+5) -> 203.908116 | M27: =INDEX(Table3[2025-26],MATCH('Output | Exit Fee price caps'!$D27,Table3[[Exit Fee Name]:[Exit Fee Name]],0)+5) -> 242.6107057
D28: ='Input | Exit Fees'!$D32 -> Multiphase CT connected | F28: $dollars | G28: nominal | H28: =INDEX(Table3[2020-21],MATCH('Output | Exit Fee price caps'!$D28,Table3[[Exit Fee Name]:[Exit Fee Name]],0)+5) -> 287.57 | I28: =INDEX(Table3[2021-22],MATCH('Output | Exit Fee price caps'!$D28,Table3[[Exit Fee Name]:[Exit Fee Name]],0)+5) -> 309.9881324 | J28: =INDEX(Table3[2022-23],MATCH('Output | Exit Fee price caps'!$D28,Table3[[Exit Fee Name]:[Exit Fee Name]],0)+5) -> 276.8647695 | K28: =INDEX(Table3[2023-24],MATCH('Output | Exit Fee price caps'!$D28,Table3[[Exit Fee Name]:[Exit Fee Name]],0)+5) -> 248.1050222 | L28: =INDEX(Table3[2024-25],MATCH('Output | Exit Fee price caps'!$D28,Table3[[Exit Fee Name]:[Exit Fee Name]],0)+5) -> 277.8463799 | M28: =INDEX(Table3[2025-26],MATCH('Output | Exit Fee price caps'!$D28,Table3[[Exit Fee Name]:[Exit Fee Name]],0)+5) -> 351.7763719
D29: ='Input | Exit Fees'!$D33 -> 0 | F29: $dollars | G29: nominal | H29: =INDEX(Table3[2020-21],MATCH('Output | Exit Fee price caps'!$D29,Table3[[Exit Fee Name]:[Exit Fee Name]],0)+5) -> 0 | I29: =INDEX(Table3[2021-22],MATCH('Output | Exit Fee price caps'!$D29,Table3[[Exit Fee Name]:[Exit Fee Name]],0)+5) -> 0 | J29: =INDEX(Table3[2022-23],MATCH('Output | Exit Fee price caps'!$D29,Table3[[Exit Fee Name]:[Exit Fee Name]],0)+5) -> 0 | K29: =INDEX(Table3[2023-24],MATCH('Output | Exit Fee price caps'!$D29,Table3[[Exit Fee Name]:[Exit Fee Name]],0)+5) -> 0 | L29: =INDEX(Table3[2024-25],MATCH('Output | Exit Fee price caps'!$D29,Table3[[Exit Fee Name]:[Exit Fee Name]],0)+5) -> 0 | M29: =INDEX(Table3[2025-26],MATCH('Output | Exit Fee price caps'!$D29,Table3[[Exit Fee Name]:[Exit Fee Name]],0)+5) -> 0
D30: ='Input | Exit Fees'!$D34 -> 0 | F30: $dollars | G30: nominal | H30: =INDEX(Table3[2020-21],MATCH('Output | Exit Fee price caps'!$D30,Table3[[Exit Fee Name]:[Exit Fee Name]],0)+5) -> 0 | I30: =INDEX(Table3[2021-22],MATCH('Output | Exit Fee price caps'!$D30,Table3[[Exit Fee Name]:[Exit Fee Name]],0)+5) -> 0 | J30: =INDEX(Table3[2022-23],MATCH('Output | Exit Fee price caps'!$D30,Table3[[Exit Fee Name]:[Exit Fee Name]],0)+5) -> 0 | K30: =INDEX(Table3[2023-24],MATCH('Output | Exit Fee price caps'!$D30,Table3[[Exit Fee Name]:[Exit Fee Name]],0)+5) -> 0 | L30: =INDEX(Table3[2024-25],MATCH('Output | Exit Fee price caps'!$D30,Table3[[Exit Fee Name]:[Exit Fee Name]],0)+5) -> 0 | M30: =INDEX(Table3[2025-26],MATCH('Output | Exit Fee price caps'!$D30,Table3[[Exit Fee Name]:[Exit Fee Name]],0)+5) -> 0
D31: ='Input | Exit Fees'!$D35 -> 0 | F31: $dollars | G31: nominal | H31: =INDEX(Table3[2020-21],MATCH('Output | Exit Fee price caps'!$D31,Table3[[Exit Fee Name]:[Exit Fee Name]],0)+5) -> 0 | I31: =INDEX(Table3[2021-22],MATCH('Output | Exit Fee price caps'!$D31,Table3[[Exit Fee Name]:[Exit Fee Name]],0)+5) -> 0 | J31: =INDEX(Table3[2022-23],MATCH('Output | Exit Fee price caps'!$D31,Table3[[Exit Fee Name]:[Exit Fee Name]],0)+5) -> 0 | K31: =INDEX(Table3[2023-24],MATCH('Output | Exit Fee price caps'!$D31,Table3[[Exit Fee Name]:[Exit Fee Name]],0)+5) -> 0 | L31: =INDEX(Table3[2024-25],MATCH('Output | Exit Fee price caps'!$D31,Table3[[Exit Fee Name]:[Exit Fee Name]],0)+5) -> 0 | M31: =INDEX(Table3[2025-26],MATCH('Output | Exit Fee price caps'!$D31,Table3[[Exit Fee Name]:[Exit Fee Name]],0)+5) -> 0
D32: ='Input | Exit Fees'!$D36 -> 0 | F32: $dollars | G32: nominal | H32: =INDEX(Table3[2020-21],MATCH('Output | Exit Fee price caps'!$D32,Table3[[Exit Fee Name]:[Exit Fee Name]],0)+5) -> 0 | I32: =INDEX(Table3[2021-22],MATCH('Output | Exit Fee price caps'!$D32,Table3[[Exit Fee Name]:[Exit Fee Name]],0)+5) -> 0 | J32: =INDEX(Table3[2022-23],MATCH('Output | Exit Fee price caps'!$D32,Table3[[Exit Fee Name]:[Exit Fee Name]],0)+5) -> 0 | K32: =INDEX(Table3[2023-24],MATCH('Output | Exit Fee price caps'!$D32,Table3[[Exit Fee Name]:[Exit Fee Name]],0)+5) -> 0 | L32: =INDEX(Table3[2024-25],MATCH('Output | Exit Fee price caps'!$D32,Table3[[Exit Fee Name]:[Exit Fee Name]],0)+5) -> 0 | M32: =INDEX(Table3[2025-26],MATCH('Output | Exit Fee price caps'!$D32,Table3[[Exit Fee Name]:[Exit Fee Name]],0)+5) -> 0
D33: ='Input | Exit Fees'!$D37 -> 0 | F33: $dollars | G33: nominal | H33: =INDEX(Table3[2020-21],MATCH('Output | Exit Fee price caps'!$D33,Table3[[Exit Fee Name]:[Exit Fee Name]],0)+5) -> 0 | I33: =INDEX(Table3[2021-22],MATCH('Output | Exit Fee price caps'!$D33,Table3[[Exit Fee Name]:[Exit Fee Name]],0)+5) -> 0 | J33: =INDEX(Table3[2022-23],MATCH('Output | Exit Fee price caps'!$D33,Table3[[Exit Fee Name]:[Exit Fee Name]],0)+5) -> 0 | K33: =INDEX(Table3[2023-24],MATCH('Output | Exit Fee price caps'!$D33,Table3[[Exit Fee Name]:[Exit Fee Name]],0)+5) -> 0 | L33: =INDEX(Table3[2024-25],MATCH('Output | Exit Fee price caps'!$D33,Table3[[Exit Fee Name]:[Exit Fee Name]],0)+5) -> 0 | M33: =INDEX(Table3[2025-26],MATCH('Output | Exit Fee price caps'!$D33,Table3[[Exit Fee Name]:[Exit Fee Name]],0)+5) -> 0
D34: ='Input | Exit Fees'!$D38 -> 0 | F34: $dollars | G34: nominal | H34: =INDEX(Table3[2020-21],MATCH('Output | Exit Fee price caps'!$D34,Table3[[Exit Fee Name]:[Exit Fee Name]],0)+5) -> 0 | I34: =INDEX(Table3[2021-22],MATCH('Output | Exit Fee price caps'!$D34,Table3[[Exit Fee Name]:[Exit Fee Name]],0)+5) -> 0 | J34: =INDEX(Table3[2022-23],MATCH('Output | Exit Fee price caps'!$D34,Table3[[Exit Fee Name]:[Exit Fee Name]],0)+5) -> 0 | K34: =INDEX(Table3[2023-24],MATCH('Output | Exit Fee price caps'!$D34,Table3[[Exit Fee Name]:[Exit Fee Name]],0)+5) -> 0 | L34: =INDEX(Table3[2024-25],MATCH('Output | Exit Fee price caps'!$D34,Table3[[Exit Fee Name]:[Exit Fee Name]],0)+5) -> 0 | M34: =INDEX(Table3[2025-26],MATCH('Output | Exit Fee price caps'!$D34,Table3[[Exit Fee Name]:[Exit Fee Name]],0)+5) -> 0
C39: Xfactors
D41: CPI | F41: % | I41: ='Inputs | General'!H26 -> 0.025 | J41: ='Inputs | General'!I26 -> 0.025 | K41: ='Inputs | General'!J26 -> 0.025 | L41: ='Inputs | General'!K26 -> 0.025 | M41: ='Inputs | General'!L26 -> 0.025
I43: =FPFirstYear -> 2026-27 | J43: =LEFT(I43,4)+1&"-"&RIGHT(I43,2)+1 -> 2027-28 | K43: =LEFT(J43,4)+1&"-"&RIGHT(J43,2)+1 -> 2028-29 | L43: =LEFT(K43,4)+1&"-"&RIGHT(K43,2)+1 -> 2029-30 | M43: =LEFT(L43,4)+1&"-"&RIGHT(L43,2)+1 -> 2030-31
D44: Exit Fee Name | F44: Units | I44: P_0 | J44: X_02 | K44: X_03 | L44: X_04 | M44: X_05
D45: ='Input | Exit Fees'!$D29 -> Single phase single element | F45: % | I45: =IFERROR(-1*(((I25/H25)/(1+I$41)-1)),"") -> 0.2857775487 | J45: 0.1022027154 | K45: 0.1067747932 | L45: -0.03515040356 | M45: -0.1374405677
D46: ='Input | Exit Fees'!$D30 -> Single phase two element with contactor | F46: % | I46: 0.2741211567 | J46: 0.1035257046 | K46: 0.1076970239 | L46: -0.03788664681 | M46: -0.1423455063
D47: ='Input | Exit Fees'!$D31 -> Multiphase | F47: % | I47: 0.226643858 | J47: 0.1085022975 | K47: 0.1111906261 | L47: -0.04830360506 | M47: -0.1607844558
D48: ='Input | Exit Fees'!$D32 -> Multiphase CT connected | F48: % | I48: -0.05166549437 | J48: 0.1286377055 | K48: 0.1257331853 | L48: -0.0925600641 | M48: -0.2352022026
D49: ='Input | Exit Fees'!$D33 -> 0 | F49: %
D50: ='Input | Exit Fees'!$D34 -> 0 | F50: %
D51: ='Input | Exit Fees'!$D35 -> 0 | F51: %
D52: ='Input | Exit Fees'!$D36 -> 0 | F52: %
D53: ='Input | Exit Fees'!$D37 -> 0 | F53: %
D54: ='Input | Exit Fees'!$D38 -> 0 | F54: %
C58: Cost Metric
H60: Base Year | I60: Regulatory Period
D61: Exit Fee Per Meter | F61: Units | G61: Basis | H61: =H8 -> 2025-26 | I61: =FPFirstYear -> 2026-27 | J61: =LEFT(I61,4)+1&"-"&RIGHT(I61,2)+1 -> 2027-28 | K61: =LEFT(J61,4)+1&"-"&RIGHT(J61,2)+1 -> 2028-29 | L61: =LEFT(K61,4)+1&"-"&RIGHT(K61,2)+1 -> 2029-30 | M61: =LEFT(L61,4)+1&"-"&RIGHT(L61,2)+1 -> 2030-31
D62: Volume Weighted Average Exit Fee - Per Meter | F62: $dollars | G62: nominal | H62: =SUMPRODUCT(H$25:H$34,'Calc | Exit Fees'!J$11:J$20)/'Calc | Exit Fees'!J$21 -> 287.57 | I62: =SUMPRODUCT(I$25:I$34,'Calc | Exit Fees'!K$11:K$20)/'Calc | Exit Fees'!K$21 -> 214.9835976 | J62: =SUMPRODUCT(J$25:J$34,'Calc | Exit Fees'!L$11:L$20)/'Calc | Exit Fees'!L$21 -> 197.6108866 | K62: =SUMPRODUCT(K$25:K$34,'Calc | Exit Fees'!M$11:M$20)/'Calc | Exit Fees'!M$21 -> 180.8200961 | L62: =SUMPRODUCT(L$25:L$34,'Calc | Exit Fees'!N$11:N$20)/'Calc | Exit Fees'!N$21 -> 192.7765233 | M62: =SUMPRODUCT(M$25:M$34,'Calc | Exit Fees'!O$11:O$20)/'Calc | Exit Fees'!O$21 -> 226.5221919

Sheet LUTs and Dropdowns
B1: ='Title Page'!B8&" v"&'Title Page'!$C$10 -> Preliminary Standardised Metering Pricing Model v1
B2: =MID(CELL("filename",A1),FIND("]",CELL("filename",A1))+1,255) -> LUTs and Dropdowns
B14: Model Use
B15: Price Cap
B16: Exit Fees (Vic)
B17: Show All Sheets
B20: Admin Charges
B21: Entered
B22: Calc-Fixed
B23: Calc-Hourly

Sheet Reg Depreciation Calc
E2: =[1]Assets!F4 -> 2025-26 | F2: =[1]Assets!G4 -> 2026-27 | G2: =[1]Assets!H4 -> 2027-28 | H2: =[1]Assets!I4 -> 2028-29 | I2: =[1]Assets!J4 -> 2029-30 | J2: =[1]Assets!K4 -> 2030-31
C4: CPI
D6: Infation Assumption | F6: =[1]Assets!G6 -> 0.025 | G6: =[1]Assets!H6 -> 0.025 | H6: =[1]Assets!I6 -> 0.025 | I6: =[1]Assets!J6 -> 0.025 | J6: =[1]Assets!K6 -> 0.025
D7: Cummulative Inflation Index | E7: =[1]Assets!F7 -> 1 | F7: =[1]Assets!G7 -> 1.025 | G7: =[1]Assets!H7 -> 1.050625 | H7: =[1]Assets!I7 -> 1.076890625 | I7: =[1]Assets!J7 -> 1.103812891 | J7: =[1]Assets!K7 -> 1.131408213
C9: Meters
D11: Opening RAB | F11: =E14 -> 75.22486142 | G11: =F14 -> 51.78155084 | H11: 55.56554441 | I11: 79.81440576 | J11: 119.4655655
D12: add Capex | F12: =[1]Assets!G11 -> 11.4906563 | G12: =[1]Assets!H11 -> 12.15986438 | H12: =[1]Assets!I11 -> 30.55902128 | I12: =[1]Assets!J11 -> 47.99858777 | J12: =[1]Assets!K11 -> 51.03907786
D13: less Straight Line Depreciation | F13: =-[1]Assets!G128 -> -34.93396688 | G13: =-[1]Assets!H128 -> -8.375870812 | H13: =-[1]Assets!I128 -> -6.310159928 | I13: =-[1]Assets!J128 -> -8.347428013 | J13: =-[1]Assets!K128 -> -11.54733386
D14: Closing RAB | E14: ='Input | Exit Fees'!G9 -> 75.22486142 | F14: =SUM(F11:F13) -> 51.78155084 | G14: =SUM(G11:G13) -> 55.56554441 | H14: 79.81440576 | I14: 119.4655655 | J14: 158.9573095
D15: Inflation on Opening RAB | F15: =F11*F$6 -> 1.880621535 | G15: =G11*G$6 -> 1.294538771 | H15: 1.38913861 | I15: 1.995360144 | J15: 2.986639138
D16: Nominal Straight Line Depreciation | F16: =-F13*F$7 -> 35.80731605 | G16: =-G13*G$7 -> 8.799899272 | H16: 6.795352068 | I16: 9.213998644 | J16: 13.06474837
D17: Regulatory Depreciation | F17: =F16-F15 -> 33.92669451 | G17: =G16-G15 -> 7.505360501 | H17: 5.406213458 | I17: 7.2186385 | J17: 10.07810923
C20: Comms & IT
D22: Opening RAB | F22: =E25 -> 41.47579566 | G22: =F25 -> 36.19090965 | H22: 30.32926457 | I22: 27.53733556 | J22: 23.19692468
D23: add Capex | F23: =[1]Assets!G12+[1]Assets!G13 -> 5.921414897 | G23: =[1]Assets!H12+[1]Assets!H13+[1]Assets!H60 -> 5.430680619 | H23: =[1]Assets!I12+[1]Assets!I13+[1]Assets!I60 -> 5.850896991 | I23: =[1]Assets!J12+[1]Assets!J13+[1]Assets!J60 -> 4.107503588 | J23: =[1]Assets!K12+[1]Assets!K13+[1]Assets!K60 -> 1.184382064
D24: less Straight Line Depreciation | F24: =-[1]Assets!G141-[1]Assets!G154 -> -11.20630091 | G24: =-[1]Assets!H141-[1]Assets!H154 -> -11.29232569 | H24: =-[1]Assets!I141-[1]Assets!I154 -> -8.642826001 | I24: =-[1]Assets!J141-[1]Assets!J154 -> -8.447914475 | J24: =-[1]Assets!K141-[1]Assets!K154 -> -6.394068964
D25: Closing RAB | E25: ='Input | Exit Fees'!G16 -> 41.47579566 | F25: =SUM(F22:F24) -> 36.19090965 | G25: =SUM(G22:G24) -> 30.32926457 | H25: =SUM(H22:H24) -> 27.53733556 | I25: =SUM(I22:I24) -> 23.19692468 | J25: =SUM(J22:J24) -> 17.98723778
D26: Inflation on Opening RAB | F26: =F22*F$6 -> 1.036894891 | G26: =G22*G$6 -> 0.9047727412 | H26: 0.7582316143 | I26: 0.6884333891 | J26: 0.5799231169
D27: Nominal Straight Line Depreciation | F27: =-F24*F$7 -> 11.48645843 | G27: =-G24*G$7 -> 11.86399968 | H27: 9.307378294 | I27: 9.324916896 | J27: 7.23430214
D28: Regulatory Depreciation | F28: =F27-F26 -> 10.44956354 | G28: =G27-G26 -> 10.95922694 | H28: =H27-H26 -> 8.549146679 | I28: =I27-I26 -> 8.636483507 | J28: =J27-J26 -> 6.654379023
